Workbook

Sheet 20.01.2024
B1: Согласовано Начальник МКУ "Управление образования" Муслюмовского района РТ ____________________ /Л.Я. Хабибуллина/ | G1: Согласовано Заведующий МБДОУ "Ляйсан" ___________________ (А.Ф.Латипова) | CL1: Утверждаю Индивидуальный предприниматель Ибрагимова Э.И. ______________ /Э.И. Ибрагимова/
A2: ЦИКЛИЧНОЕ ДВУХНЕДЕЛЬНОЕ МЕНЮ ДЛЯ ОРГАНИЗАЦИИ ПИТАНИЯ ДЕТЕЙ В ВОЗРАСТЕ ОТ 3 ДО 7 ЛЕТ, ПОСЕЩАЮЩИХ ДОШКОЛЬНЫЕ ОБРАЗОВАТЕЛЬНЫЕ УЧРЕЖДЕНИЯ И ДОШКОЛЬНЫЕ ГРУППЫ ОБРАЗОВАТЕЛЬНЫХ УЧРЕЖДЕНИЙ МУСЛЮМОВСКОГО МУНИЦИПАЛЬНОГО РАЙОНА РТ НА 2024 г.
A6: =IF(Dop!B3<>"",Dop!B3,"") -> Сад | AI6: =IF(Дата_Сост<>"",Дата_Сост,"") -> 2024-01-08
A8: Но-мер рец. | B8: Прием пищи, наименование изделий (блюд) | C8: Вы-ход, г | D8: Белки, г | F8: Жиры, г | H8: Угле-воды, г | I8: ЭЦ, ккал | J8: НЖК | K8: ПНЖК | L8: МЖК | M8: Холестерин | N8: МД | O8: Крахмал | P8: ПВ | Q8: РПВ | R8: НПВ | S8: Органические кислоты | T8: Зола | U8: Na | V8: K | W8: Минеральные элементы, мг | AA8: Витамины, мг | AI8: Вита-мин С, мг | AJ8: Алкоголь, г | AK8: Валин | AL8: изолейцин | AM8: лейцин | AN8: лизин | AO8: метионин | AP8: треонин | AQ8: триптофан | AR8: фенилаланин | AS8: аланин | AT8: аргинин | AU8: аспарагиновая | AV8: гистидин | AW8: глицин | AX8: глутаминовая | AY8: оксипролин | AZ8: пролин | BA8: серин | BB8: тирозин | BC8: цистин | BD8: масляная | BE8: капроновая | BF8: каприловая | BG8: каприновая | BH8: лауриновая | BI8: миристиновая | BJ8: пентадекановая | BK8: пальмитиновая | BL8: маргариновая | BM8: стеариновая | BN8: арахиновая | BO8: бегеновая | BP8: лигноцериновая | BQ8: миристолеиновая | BR8: пальмитолеиновая | BS8: олеиновая | BT8: гадолеиновая | BU8: эруковая | BV8: линолевая | BW8: линоленовая | BX8: арахидоновая | BY8: Аденин | BZ8: Гуанин | CA8: Ph | CC8: Цена, руб | CD8: Доля, % | CG8: I (макс.), мкг | CH8: I (мин.), мкг | CI8: I (сред.), мкг | CJ8: Zn (макс.), мкг | CK8: Zn (мин.), мкг | CL8: Zn (сред.), мкг | CM8: Se (макс.), мкг | CN8: Se (мин.), мкг | CO8: Se (сред.), мкг | CP8: Вложен-ный сахар, г | CQ8: Вложен-ная соль, г
D9: всего | E9: в т.ч. жив. | F9: всего | G9: в т.ч. раст. | W9: Ca | X9: Mg | Y9: P | Z9: Fe | AA9: А,мг | AB9: B | AC9: РЭ,мкг | AD9: ТЭ,мг | AE9: В1 | AF9: В2 | AG9: РР | AH9: НЭ
B10: 1 НЕДЕЛЯ
B11: 1 ДЕНЬ
B12: Завтрак
A13: ="-" -> - | B13: Батон | C13: 40 | D13: 3.08 | E13: 0 | F13: 1.2 | G13: 1.2 | H13: 21.32 | I13: 107.808 | J13: 0.2 | K13: 0 | L13: 0 | M13: 0 | N13: 1.32 | O13: 18.72 | P13: 1.28 | Q13: 0 | R13: 0 | S13: 0.12 | T13: 0.64 | U13: 171.6 | V13: 52.4 | W13: 8.8 | X13: 13.2 | Y13: 34 | Z13: 0.8 | AA13: 0 | AB13: 0 | AC13: 0 | AD13: 0.68 | AE13: 0.06 | AF13: 0.02 | AG13: 0.64 | AH13: 1.2 | AI13: 0 | AJ13: 0 | AK13: 148.8 | AL13: 154.4 | AM13: 236.4 | AN13: 79.6 | AO13: 46.8 | AP13: 93.6 | AQ13: 35.2 | AR13: 168 | AS13: 104.4 | AT13: 145.2 | AU13: 120.4 | AV13: 64.4 | AW13: 112 | AX13: 930 | AY13: 0 | AZ13: 302.8 | BA13: 132.4 | BB13: 88.8 | BC13: 69.2 | BD13: 0 | BE13: 0 | BF13: 0 | BG13: 0 | BH13: 0 | BI13: 0.01 | BJ13: 0 | BK13: 0.13 | BL13: 0 | BM13: 0.06 | BN13: 0 | BO13: 0 | BP13: 0 | BQ13: 0 | BR13: 0 | BS13: 0.47 | BT13: 0 | BU13: 0 | BV13: 0.35 | BW13: 0.01 | BX13: 0 | BY13: 0 | BZ13: 0 | CA13: 0 | CB13: 13.64 | CE13: 0 | CG13: 0 | CH13: 0 | CI13: 0 | CJ13: 665 | CK13: 256.2 | CL13: 460.6 | CM13: 5.32 | CN13: 5.32 | CO13: 5.32 | CP13: 0 | CQ13: 0
A14: ="" ->  | B14: Масло сливочное | C14: 5 | D14: 0.04 | E14: 0.04 | F14: 3.63 | G14: 0 | H14: 0.07 | I14: 33.032 | J14: 2.36 | K14: 0.11 | L14: 0 | M14: 0 | N14: 0.07 | O14: 0 | P14: 0 | Q14: 0 | R14: 0 | S14: 0 | T14: 0.07 | U14: 0.75 | V14: 1.5 | W14: 1.2 | X14: 0 | Y14: 1.5 | Z14: 0.01 | AA14: 20 | AB14: 15 | AC14: 22.5 | AD14: 0.05 | AE14: 0 | AF14: 0.01 | AG14: 0.01 | AH14: 0.01 | AI14: 0 | AJ14: 0 | AK14: 2.1 | AL14: 2.05 | AM14: 3.8 | AN14: 2.25 | AO14: 0.85 | AP14: 2.35 | AQ14: 2.15 | AR14: 2.1 | AS14: 1.8 | AT14: 1.3 | AU14: 2.85 | AV14: 1.75 | AW14: 1.2 | AX14: 7.1 | AY14: 0 | AZ14: 2.4 | BA14: 2.7 | BB14: 2.1 | BC14: 0.5 | BD14: 0.13 | BE14: 0.06 | BF14: 0.03 | BG14: 0.08 | BH14: 0.09 | BI14: 0.4 | BJ14: 0 | BK14: 1.1 | BL14: 0 | BM14: 0.34 | BN14: 0 | BO14: 0 | BP14: 0 | BQ14: 0.08 | BR14: 0.12 | BS14: 0.9 | BT14: 0 | BU14: 0 | BV14: 0.05 | BW14: 0 | BX14: 0 | BY14: 0 | BZ14: 0 | CA14: 0 | CB14: 1.25 | CE14: 22.5 | CG14: 0.2 | CH14: 0.05 | CI14: 0.13 | CJ14: 10 | CK14: 4.1 | CL14: 7.05 | CM14: 0.86 | CN14: 0.44 | CO14: 0.65 | CP14: 0 | CQ14: 0
A15: ="-" -> - | B15: Печенье | C15: 20 | D15: 1.5 | E15: 0 | F15: 1.96 | G15: 0 | H15: 15.34 | I15: 84.452 | J15: 0.42 | K15: 0 | L15: 0 | M15: 0 | N15: 4.72 | O15: 10.16 | P15: 0.46 | Q15: 0 | R15: 0 | S15: 0.1 | T15: 0.2 | U15: 66 | V15: 22 | W15: 5.8 | X15: 4 | Y15: 18 | Z15: 0.42 | AA15: 2 | AB15: 1.6 | AC15: 2.2 | AD15: 0.7 | AE15: 0.02 | AF15: 0.01 | AG15: 0.14 | AH15: 0.38 | AI15: 0 | AJ15: 0 | AK15: 249.4 | AL15: 185.2 | AM15: 318.8 | AN15: 286.6 | AO15: 87.6 | AP15: 162.4 | AQ15: 47.6 | AR15: 185.6 | AS15: 0 | AT15: 0 | AU15: 0 | AV15: 87.8 | AW15: 0 | AX15: 0 | AY15: 0 | AZ15: 0 | BA15: 0 | BB15: 0 | BC15: 0 | BD15: 0 | BE15: 0 | BF15: 0 | BG15: 0 | BH15: 0 | BI15: 0 | BJ15: 0 | BK15: 0 | BL15: 0 | BM15: 0 | BN15: 0 | BO15: 0 | BP15: 0 | BQ15: 0 | BR15: 0 | BS15: 0 | BT15: 0 | BU15: 0 | BV15: 0 | BW15: 0 | BX15: 0 | BY15: 0 | BZ15: 0 | CA15: 0 | CB15: 0.9 | CE15: 2.27 | CG15: 1.26 | CH15: 1.26 | CI15: 1.26 | CJ15: 648 | CK15: 414 | CL15: 531 | CM15: 6.16 | CN15: 6.16 | CO15: 6.16 | CP15: 0 | CQ15: 0
A16: ="27/10" -> 27/10 | B16: Чай (вариант 2) | C16: 180 | D16: 0.18 | E16: 0 | F16: 0.04 | G16: 0.04 | H16: 4.53 | I16: 18.157086 | J16: 0 | K16: 0 | L16: 0 | M16: 0 | N16: 4.44 | O16: 0 | P16: 0.09 | Q16: 0 | R16: 0 | S16: 0 | T16: 0.05 | U16: 0.04 | V16: 0.13 | W16: 0.13 | X16: 0 | Y16: 0 | Z16: 0.01 | AA16: 0 | AB16: 0 | AC16: 0 | AD16: 0 | AE16: 0 | AF16: 0 | AG16: 0 | AH16: 0 | AI16: 0 | AJ16: 0 | AK16: 0 | AL16: 0 | AM16: 0 | AN16: 0 | AO16: 0 | AP16: 0 | AQ16: 0 | AR16: 0 | AS16: 0 | AT16: 0 | AU16: 0 | AV16: 0 | AW16: 0 | AX16: 0 | AY16: 0 | AZ16: 0 | BA16: 0 | BB16: 0 | BC16: 0 | BD16: 0 | BE16: 0 | BF16: 0 | BG16: 0 | BH16: 0 | BI16: 0 | BJ16: 0 | BK16: 0 | BL16: 0 | BM16: 0 | BN16: 0 | BO16: 0 | BP16: 0 | BQ16: 0 | BR16: 0 | BS16: 0 | BT16: 0 | BU16: 0 | BV16: 0 | BW16: 0 | BX16: 0 | BY16: 0 | BZ16: 0 | CA16: 0 | CB16: 180.08 | CE16: 0 | CG16: 3.07 | CH16: 3.07 | CI16: 3.07 | CJ16: 331.88 | CK16: 130.5 | CL16: 231.19 | CM16: 33.01 | CN16: 19.51 | CO16: 26.26 | CP16: 4.5 | CQ16: 0
A17: ="15/4" -> 15/4 | B17: Каша ячневая молочная с маслом сливочным | C17: 180 | D17: 5.37 | E17: 2.12 | F17: 4.29 | G17: 0.47 | H17: 30.37 | I17: 177.2516088 | J17: 3.06 | K17: 0.08 | L17: 0 | M17: 0 | N17: 6.82 | O17: 20.9 | P17: 2.65 | Q17: 0 | R17: 0 | S17: 0.07 | T17: 1.44 | U17: 216.17 | V17: 158.53 | W17: 103.69 | X17: 24.52 | Y17: 165.04 | Z17: 0.65 | AA17: 17.28 | AB17: 14.4 | AC17: 32.04 | AD17: 0.58 | AE17: 0.09 | AF17: 0.11 | AG17: 0.84 | AH17: 2.28 | AI17: 0.37 | AJ17: 0 | AK17: 163.85 | AL17: 158.74 | AM17: 175.16 | AN17: 119.96 | AO17: 54.72 | AP17: 86.19 | AQ17: 42.06 | AR17: 177.39 | AS17: 138.27 | AT17: 166.7 | AU17: 216.81 | AV17: 79.02 | AW17: 139.56 | AX17: 815.27 | AY17: 0 | AZ17: 444.93 | BA17: 133.8 | BB17: 102.94 | BC17: 68.02 | BD17: 0.09 | BE17: 0.04 | BF17: 0.02 | BG17: 0.05 | BH17: 0.05 | BI17: 0.25 | BJ17: 0 | BK17: 0.7 | BL17: 0 | BM17: 0.22 | BN17: 0 | BO17: 0 | BP17: 0 | BQ17: 0.05 | BR17: 0.07 | BS17: 0.57 | BT17: 0 | BU17: 0 | BV17: 0.03 | BW17: 0 | BX17: 0 | BY17: 0 | BZ17: 0 | CA17: 0 | CB17: 160.02 | CE17: 19.68 | CG17: 25.68 | CH17: 10.89 | CI17: 18.28 | CJ17: 1610.75 | CK17: 737.21 | CL17: 1173.98 | CM17: 33.91 | CN17: 17.91 | CO17: 25.91 | CP17: 3.6 | CQ17: 0.45
B18: Итого за 'Завтрак' | C18: =SUM(C13:C17) -> 425 | D18: 10.17 | E18: 2.16 | F18: 11.12 | G18: 1.71 | H18: 71.63 | I18: 420.7 | J18: 6.04 | K18: 0.19 | L18: 0 | M18: 0 | N18: 17.36 | O18: 49.78 | P18: 4.49 | Q18: 0 | R18: 0 | S18: 0.29 | T18: 2.4 | U18: 454.57 | V18: 234.56 | W18: 119.62 | X18: 41.72 | Y18: 218.54 | Z18: 1.9 | AA18: 39.28 | AB18: 31 | AC18: 56.74 | AD18: 2.01 | AE18: 0.17 | AF18: 0.15 | AG18: 1.62 | AH18: 3.87 | AI18: 0.37 | AJ18: 0 | AK18: 564.15 | AL18: 500.39 | AM18: 734.16 | AN18: 488.41 | AO18: 189.97 | AP18: 344.54 | AQ18: 127.01 | AR18: 533.09 | AS18: 244.47 | AT18: 313.2 | AU18: 340.06 | AV18: 232.97 | AW18: 252.76 | AX18: 1752.37 | AY18: 0 | AZ18: 750.13 | BA18: 268.9 | BB18: 193.84 | BC18: 137.72 | BD18: 0.22 | BE18: 0.1 | BF18: 0.05 | BG18: 0.12 | BH18: 0.14 | BI18: 0.66 | BJ18: 0 | BK18: 1.94 | BL18: 0 | BM18: 0.62 | BN18: 0 | BO18: 0 | BP18: 0 | BQ18: 0.13 | BR18: 0.19 | BS18: 1.94 | BT18: 0 | BU18: 0 | BV18: 0.43 | BW18: 0.01 | BX18: 0 | BY18: 0 | BZ18: 0 | CA18: 0 | CB18: 355.9 | CD18: =$I$18/#REF!*100 ->  | CE18: 44.45 | CG18: 30.21 | CH18: 15.27 | CI18: 22.74 | CJ18: 3265.62 | CK18: 1542.01 | CL18: 2403.82 | CM18: 79.25 | CN18: 49.33 | CO18: 64.29 | CP18: 8.1 | CQ18: 0.45
B19: 10:00
A20: ="-" -> - | B20: Сок | C20: 100 | D20: 0.5 | E20: 0 | F20: 0.1 | G20: 0 | H20: 10.3 | I20: 43.24 | J20: 0 | K20: 0 | L20: 0 | M20: 0 | N20: 9.9 | O20: 0.2 | P20: 0.2 | Q20: 0 | R20: 0 | S20: 0.5 | T20: 0.3 | U20: 6 | V20: 120 | W20: 7 | X20: 4 | Y20: 7 | Z20: 1.4 | AA20: 0 | AB20: 0 | AC20: 0 | AD20: 0.1 | AE20: 0.01 | AF20: 0.01 | AG20: 0.1 | AH20: 0.2 | AI20: 2 | AJ20: 0.2 | AK20: 8 | AL20: 10 | AM20: 14 | AN20: 14 | AO20: 2 | AP20: 8 | AQ20: 2 | AR20: 7 | AS20: 13 | AT20: 8 | AU20: 58 | AV20: 5 | AW20: 11 | AX20: 32 | AY20: 0 | AZ20: 10 | BA20: 12 | BB20: 5 | BC20: 4 | BD20: 0 | BE20: 0 | BF20: 0 | BG20: 0 | BH20: 0 | BI20: 0 | BJ20: 0 | BK20: 0 | BL20: 0 | BM20: 0 | BN20: 0 | BO20: 0 | BP20: 0 | BQ20: 0 | BR20: 0 | BS20: 0 | BT20: 0 | BU20: 0 | BV20: 0 | BW20: 0 | BX20: 0 | BY20: 0 | BZ20: 0 | CA20: 0 | CB20: 88.1 | CE20: 0 | CG20: 4 | CH20: 4 | CI20: 4 | CJ20: 400 | CK20: 182 | CL20: 291 | CM20: 0.6 | CN20: 0.6 | CO20: 0.6 | CP20: 0 | CQ20: 0
B21: Итого за '10:00' | C21: =SUM(C20) -> 100 | D21: 0.5 | E21: 0 | F21: 0.1 | G21: 0 | H21: 10.3 | I21: 43.24 | J21: 0 | K21: 0 | L21: 0 | M21: 0 | N21: 9.9 | O21: 0.2 | P21: 0.2 | Q21: 0 | R21: 0 | S21: 0.5 | T21: 0.3 | U21: 6 | V21: 120 | W21: 7 | X21: 4 | Y21: 7 | Z21: 1.4 | AA21: 0 | AB21: 0 | AC21: 0 | AD21: 0.1 | AE21: 0.01 | AF21: 0.01 | AG21: 0.1 | AH21: 0.2 | AI21: 2 | AJ21: 0.2 | AK21: 8 | AL21: 10 | AM21: 14 | AN21: 14 | AO21: 2 | AP21: 8 | AQ21: 2 | AR21: 7 | AS21: 13 | AT21: 8 | AU21: 58 | AV21: 5 | AW21: 11 | AX21: 32 | AY21: 0 | AZ21: 10 | BA21: 12 | BB21: 5 | BC21: 4 | BD21: 0 | BE21: 0 | BF21: 0 | BG21: 0 | BH21: 0 | BI21: 0 | BJ21: 0 | BK21: 0 | BL21: 0 | BM21: 0 | BN21: 0 | BO21: 0 | BP21: 0 | BQ21: 0 | BR21: 0 | BS21: 0 | BT21: 0 | BU21: 0 | BV21: 0 | BW21: 0 | BX21: 0 | BY21: 0 | BZ21: 0 | CA21: 0 | CB21: 88.1 | CD21: =$I$21/#REF!*100 ->  | CE21: 0 | CG21: 4 | CH21: 4 | CI21: 4 | CJ21: 400 | CK21: 182 | CL21: 291 | CM21: 0.6 | CN21: 0.6 | CO21: 0.6 | CP21: 0 | CQ21: 0
B22: Обед
A23: ="-" -> - | B23: Хлеб пшеничный | C23: 20 | D23: 1.32 | E23: 0 | F23: 0.13 | G23: 0.13 | H23: 9.38 | I23: 44.7802 | J23: 0 | K23: 0 | L23: 0 | M23: 0 | N23: 0.22 | O23: 9.12 | P23: 0.04 | Q23: 0 | R23: 0 | S23: 0 | T23: 0.36 | U23: 0 | V23: 0 | W23: 0 | X23: 0 | Y23: 0 | Z23: 0 | AA23: 0 | AB23: 0 | AC23: 0 | AD23: 0 | AE23: 0 | AF23: 0 | AG23: 0 | AH23: 0 | AI23: 0 | AJ23: 0 | AK23: 63.86 | AL23: 66.47 | AM23: 101.79 | AN23: 33.76 | AO23: 20.01 | AP23: 40.02 | AQ23: 15.14 | AR23: 72.38 | AS23: 44.89 | AT23: 62.64 | AU23: 51.68 | AV23: 27.14 | AW23: 48.02 | AX23: 401.59 | AY23: 0 | AZ23: 130.85 | BA23: 56.9 | BB23: 37.76 | BC23: 29.93 | BD23: 0 | BE23: 0 | BF23: 0 | BG23: 0 | BH23: 0 | BI23: 0 | BJ23: 0 | BK23: 0.02 | BL23: 0 | BM23: 0 | BN23: 0 | BO23: 0 | BP23: 0 | BQ23: 0 | BR23: 0 | BS23: 0.01 | BT23: 0 | BU23: 0 | BV23: 0.06 | BW23: 0 | BX23: 0 | BY23: 0 | BZ23: 0 | CA23: 0 | CB23: 7.82 | CE23: 0 | CG23: 0 | CH23: 0 | CI23: 0 | CJ23: 380 | CK23: 146.4 | CL23: 263.2 | CM23: 3.04 | CN23: 3.04 | CO23: 3.04 | CP23: 0 | CQ23: 0
A24: ="-" -> - | B24: Хлеб ржаной | C24: 20 | D24: 1.32 | E24: 0 | F24: 0.24 | G24: 0.24 | H24: 8.34 | I24: 38.676 | J24: 0.04 | K24: 0 | L24: 0 | M24: 0 | N24: 0.24 | O24: 6.44 | P24: 1.66 | Q24: 0 | R24: 0 | S24: 0.2 | T24: 0.5 | U24: 122 | V24: 49 | W24: 7 | X24: 9.4 | Y24: 31.6 | Z24: 0.78 | AA24: 0 | AB24: 1 | AC24: 0.2 | AD24: 0.28 | AE24: 0.04 | AF24: 0.02 | AG24: 0.14 | AH24: 0.4 | AI24: 0 | AJ24: 0 | AK24: 64.4 | AL24: 49.6 | AM24: 85.4 | AN24: 44.6 | AO24: 18.6 | AP24: 39.6 | AQ24: 16 | AR24: 74.2 | AS24: 59.4 | AT24: 58.2 | AU24: 92.8 | AV24: 24.8 | AW24: 62 | AX24: 311.8 | AY24: 0 | AZ24: 105.2 | BA24: 58.2 | BB24: 36 | BC24: 26 | BD24: 0 | BE24: 0 | BF24: 0 | BG24: 0 | BH24: 0 | BI24: 0 | BJ24: 0 | BK24: 0.03 | BL24: 0 | BM24: 0 | BN24: 0 | BO24: 0 | BP24: 0 | BQ24: 0 | BR24: 0 | BS24: 0.02 | BT24: 0 | BU24: 0 | BV24: 0.1 | BW24: 0.02 | BX24: 0 | BY24: 0 | BZ24: 0 | CA24: 0 | CB24: 9.4 | CE24: 0.17 | CG24: 1 | CH24: 1 | CI24: 1 | CJ24: 190 | CK24: 73.2 | CL24: 131.6 | CM24: 1.9 | CN24: 1.58 | CO24: 1.74 | CP24: 0 | CQ24: 0
A25: ="3/10" -> 3/10 | B25: Компот из яблок | C25: 180 | D25: 0.14 | E25: 0 | F25: 0.14 | G25: 0.14 | H25: 21.67 | I25: 84.015216 | J25: 0.04 | K25: 0 | L25: 0 | M25: 0 | N25: 20.78 | O25: 0.27 | P25: 0.62 | Q25: 0 | R25: 0 | S25: 0.29 | T25: 0.2 | U25: 9.44 | V25: 99.61 | W25: 6.11 | X25: 3.08 | Y25: 3.68 | Z25: 0.82 | AA25: 0 | AB25: 9.72 | AC25: 1.8 | AD25: 0.07 | AE25: 0.01 | AF25: 0.01 | AG25: 0.09 | AH25: 0.14 | AI25: 1.44 | AJ25: 0 | AK25: 4.23 | AL25: 4.59 | AM25: 6.7 | AN25: 6.35 | AO25: 1.06 | AP25: 3.88 | AQ25: 1.06 | AR25: 3.18 | AS25: 6 | AT25: 3.53 | AU25: 27.52 | AV25: 2.47 | AW25: 4.94 | AX25: 14.82 | AY25: 0 | AZ25: 4.59 | BA25: 5.64 | BB25: 2.12 | BC25: 1.76 | BD25: 0 | BE25: 0 | BF25: 0 | BG25: 0 | BH25: 0 | BI25: 0 | BJ25: 0 | BK25: 0 | BL25: 0 | BM25: 0 | BN25: 0 | BO25: 0 | BP25: 0 | BQ25: 0 | BR25: 0 | BS25: 0 | BT25: 0 | BU25: 0 | BV25: 0 | BW25: 0 | BX25: 0 | BY25: 0 | BZ25: 0 | CA25: 0 | CB25: 220.09 | CE25: 1.62 | CG25: 3.75 | CH25: 3.75 | CI25: 3.75 | CJ25: 360 | CK25: 174.15 | CL25: 267.08 | CM25: 34.34 | CN25: 20.16 | CO25: 27.25 | CP25: 18 | CQ25: 0
A26: ="3/1" -> 3/1 | B26: Салат из белокочанной капусты с растительным маслом | C26: 50 | D26: 0.8 | E26: 0 | F26: 2.98 | G26: 2.98 | H26: 4.45 | I26: 45.782219 | J26: 0.38 | K26: 1.95 | L26: 0 | M26: 0 | N26: 3.52 | O26: 0.04 | P26: 0.89 | Q26: 0 | R26: 0 | S26: 0.13 | T26: 0.56 | U26: 100.65 | V26: 133.84 | W26: 22.35 | X26: 7.19 | Y26: 14.07 | Z26: 0.28 | AA26: 0 | AB26: 8.92 | AC26: 1.37 | AD26: 1.37 | AE26: 0.01 | AF26: 0.02 | AG26: 0.31 | AH26: 0.41 | AI26: 20.07 | AJ26: 0 | AK26: 25.86 | AL26: 22.3 | AM26: 28.54 | AN26: 27.2 | AO26: 9.81 | AP26: 20.07 | AQ26: 4.46 | AR26: 24.97 | AS26: 31.66 | AT26: 37.9 | AU26: 76.69 | AV26: 12.49 | AW26: 20.96 | AX26: 122.62 | AY26: 0 | AZ26: 26.31 | BA26: 26.31 | BB26: 22.3 | BC26: 8.92 | BD26: 0 | BE26: 0 | BF26: 0 | BG26: 0 | BH26: 0 | BI26: 0 | BJ26: 0 | BK26: 0.18 | BL26: 0 | BM26: 0.12 | BN26: 0.01 | BO26: 0.02 | BP26: 0 | BQ26: 0 | BR26: 0 | BS26: 0.7 | BT26: 0 | BU26: 0 | BV26: 1.73 | BW26: 0 | BX26: 0 | BY26: 0 | BZ26: 0 | CA26: 0 | CB26: 41.14 | CE26: 1.49 | CG26: 11.03 | CH26: 4.77 | CI26: 7.9 | CJ26: 325.07 | CK26: 77.83 | CL26: 201.45 | CM26: 5.97 | CN26: 5.77 | CO26: 5.87 | CP26: 1.5 | CQ26: 0.25
A27: ="16/2" -> 16/2 | B27: Суп картофельный с бобовыми на говяжьем бульоне | C27: 180 | D27: 3.79 | E27: 5.74 | F27: 2.21 | G27: 2.21 | H27: 15.83 | I27: 94.580352 | J27: 0.29 | K27: 1.17 | L27: 0 | M27: 0 | N27: 2.15 | O27: 11.29 | P27: 2.38 | Q27: 0 | R27: 0 | S27: 0.11 | T27: 1.3 | U27: 146.23 | V27: 353.65 | W27: 24.89 | X27: 26.14 | Y27: 71.33 | Z27: 1.38 | AA27: 0 | AB27: 785.38 | AC27: 145.37 | AD27: 0.97 | AE27: 0.14 | AF27: 0.05 | AG27: 0.74 | AH27: 1.7 | AI27: 3.31 | AJ27: 0 | AK27: 154.39 | AL27: 170.41 | AM27: 253.6 | AN27: 242.59 | AO27: 33.09 | AP27: 134.91 | AQ27: 44.31 | AR27: 159.19 | AS27: 152.27 | AT27: 287.4 | AU27: 348.5 | AV27: 70.86 | AW27: 150.58 | AX27: 541.98 | AY27: 0 | AZ27: 105.84 | BA27: 129.97 | BB27: 109.23 | BC27: 40.71 | BD27: 0 | BE27: 0 | BF27: 0 | BG27: 0 | BH27: 0 | BI27: 0 | BJ27: 0 | BK27: 0.16 | BL27: 0 | BM27: 0.08 | BN27: 0.01 | BO27: 0.01 | BP27: 0 | BQ27: 0 | BR27: 0 | BS27: 0.53 | BT27: 0 | BU27: 0 | BV27: 1.2 | BW27: 0.02 | BX27: 0 | BY27: 0 | BZ27: 0 | CA27: 0 | CB27: 165.24 | CE27: 130.9 | CG27: 19.96 | CH27: 12.76 | CI27: 16.36 | CJ27: 1017.84 | CK27: 519.17 | CL27: 768.5 | CM27: 36.16 | CN27: 19.04 | CO27: 27.6 | CP27: 0 | CQ27: 0.36
A28: ="4/9" -> 4/9 | B28: Плов из мяса цыплят-бройлеров | C28: 180 | D28: 16.18 | E28: 13.33 | F28: 17.63 | G28: 6.4 | H28: 33.82 | I28: 358.026462 | J28: 4.72 | K28: 5.27 | L28: 0 | M28: 0 | N28: 1.61 | O28: 30.47 | P28: 1.73 | Q28: 0 | R28: 0 | S28: 0.05 | T28: 1.48 | U28: 122.23 | V28: 128.48 | W28: 18.29 | X28: 30.38 | Y28: 145.22 | Z28: 1.49 | AA28: 28.48 | AB28: 1196.14 | AC28: 256.58 | AD28: 4.19 | AE28: 0.06 | AF28: 0.09 | AG28: 5.64 | AH28: 11.7 | AI28: 0.83 | AJ28: 0 | AK28: 803.86 | AL28: 634.59 | AM28: 1270.87 | AN28: 1258.78 | AO28: 405.82 | AP28: 719.12 | AQ28: 252.84 | AR28: 686.61 | AS28: 995.86 | AT28: 1092.34 | AU28: 1409.27 | AV28: 421.02 | AW28: 1128.95 | AX28: 2361.87 | AY28: 110.57 | AZ28: 768.88 | BA28: 755.96 | BB28: 579.97 | BC28: 216.58 | BD28: 0 | BE28: 0 | BF28: 0 | BG28: 0 | BH28: 0 | BI28: 0 | BJ28: 0 | BK28: 0.43 | BL28: 0 | BM28: 0.26 | BN28: 0.02 | BO28: 0.04 | BP28: 0 | BQ28: 0 | BR28: 0 | BS28: 1.54 | BT28: 0 | BU28: 0 | BV28: 3.65 | BW28: 0 | BX28: 0 | BY28: 0 | BZ28: 0 | CA28: 0 | CB28: 158.86 | CE28: 227.83 | CG28: 21.96 | CH28: 11.1 | CI28: 16.53 | CJ28: 4297.8 | CK28: 2473.03 | CL28: 3385.41 | CM28: 22.31 | CN28: 14.18 | CO28: 18.24 | CP28: 0 | CQ28: 0.36
B29: Итого за 'Обед' | C29: =SUM(C23:C28) -> 630 | D29: 23.55 | E29: 19.07 | F29: 23.33 | G29: 12.1 | H29: 93.49 | I29: 665.86 | J29: 5.46 | K29: 8.39 | L29: 0 | M29: 0 | N29: 28.52 | O29: 57.64 | P29: 7.32 | Q29: 0 | R29: 0 | S29: 0.78 | T29: 4.4 | U29: 500.56 | V29: 764.59 | W29: 78.64 | X29: 76.18 | Y29: 265.9 | Z29: 4.75 | AA29: 28.48 | AB29: 2001.15 | AC29: 405.31 | AD29: 6.88 | AE29: 0.26 | AF29: 0.18 | AG29: 6.92 | AH29: 14.35 | AI29: 25.65 | AJ29: 0 | AK29: 1116.6 | AL29: 947.95 | AM29: 1746.89 | AN29: 1613.28 | AO29: 488.39 | AP29: 957.6 | AQ29: 333.81 | AR29: 1020.53 | AS29: 1290.08 | AT29: 1542.01 | AU29: 2006.46 | AV29: 558.78 | AW29: 1415.45 | AX29: 3754.69 | AY29: 110.57 | AZ29: 1141.66 | BA29: 1032.99 | BB29: 787.36 | BC29: 323.91 | BD29: 0 | BE29: 0 | BF29: 0 | BG29: 0 | BH29: 0 | BI29: 0 | BJ29: 0 | BK29: 0.83 | BL29: 0 | BM29: 0.47 | BN29: 0.04 | BO29: 0.08 | BP29: 0 | BQ29: 0 | BR29: 0.01 | BS29: 2.8 | BT29: 0 | BU29: 0 | BV29: 6.74 | BW29: 0.04 | BX29: 0 | BY29: 0 | BZ29: 0 | CA29: 0 | CB29: 602.55 | CD29: =$I$29/#REF!*100 ->  | CE29: 362 | CG29: 57.7 | CH29: 33.38 | CI29: 45.54 | CJ29: 6570.7 | CK29: 3463.78 | CL29: 5017.24 | CM29: 103.71 | CN29: 63.76 | CO29: 83.74 | CP29: 19.5 | CQ29: 0.97
B30: Ужин
A31: ="-" -> - | B31: Хлеб пшеничный | C31: 20 | D31: 1.32 | E31: 0 | F31: 0.13 | G31: 0.13 | H31: 9.38 | I31: 44.7802 | J31: 0 | K31: 0 | L31: 0 | M31: 0 | N31: 0.22 | O31: 9.12 | P31: 0.04 | Q31: 0 | R31: 0 | S31: 0 | T31: 0.36 | U31: 0 | V31: 0 | W31: 0 | X31: 0 | Y31: 0 | Z31: 0 | AA31: 0 | AB31: 0 | AC31: 0 | AD31: 0 | AE31: 0 | AF31: 0 | AG31: 0 | AH31: 0 | AI31: 0 | AJ31: 0 | AK31: 63.86 | AL31: 66.47 | AM31: 101.79 | AN31: 33.76 | AO31: 20.01 | AP31: 40.02 | AQ31: 15.14 | AR31: 72.38 | AS31: 44.89 | AT31: 62.64 | AU31: 51.68 | AV31: 27.14 | AW31: 48.02 | AX31: 401.59 | AY31: 0 | AZ31: 130.85 | BA31: 56.9 | BB31: 37.76 | BC31: 29.93 | BD31: 0 | BE31: 0 | BF31: 0 | BG31: 0 | BH31: 0 | BI31: 0 | BJ31: 0 | BK31: 0.02 | BL31: 0 | BM31: 0 | BN31: 0 | BO31: 0 | BP31: 0 | BQ31: 0 | BR31: 0 | BS31: 0.01 | BT31: 0 | BU31: 0 | BV31: 0.06 | BW31: 0 | BX31: 0 | BY31: 0 | BZ31: 0 | CA31: 0 | CB31: 7.82 | CE31: 0 | CG31: 0 | CH31: 0 | CI31: 0 | CJ31: 665 | CK31: 256.2 | CL31: 460.6 | CM31: 5.32 | CN31: 5.32 | CO31: 5.32 | CP31: 0 | CQ31: 0
A32: ="-" -> - | B32: Хлеб ржаной | C32: 20 | D32: 1.32 | E32: 0 | F32: 0.24 | G32: 0.24 | H32: 8.34 | I32: 38.676 | J32: 0.04 | K32: 0 | L32: 0 | M32: 0 | N32: 0.24 | O32: 6.44 | P32: 1.66 | Q32: 0 | R32: 0 | S32: 0.2 | T32: 0.5 | U32: 122 | V32: 49 | W32: 7 | X32: 9.4 | Y32: 31.6 | Z32: 0.78 | AA32: 0 | AB32: 1 | AC32: 0.2 | AD32: 0.28 | AE32: 0.04 | AF32: 0.02 | AG32: 0.14 | AH32: 0.4 | AI32: 0 | AJ32: 0 | AK32: 64.4 | AL32: 49.6 | AM32: 85.4 | AN32: 44.6 | AO32: 18.6 | AP32: 39.6 | AQ32: 16 | AR32: 74.2 | AS32: 59.4 | AT32: 58.2 | AU32: 92.8 | AV32: 24.8 | AW32: 62 | AX32: 311.8 | AY32: 0 | AZ32: 105.2 | BA32: 58.2 | BB32: 36 | BC32: 26 | BD32: 0 | BE32: 0 | BF32: 0 | BG32: 0 | BH32: 0 | BI32: 0 | BJ32: 0 | BK32: 0.03 | BL32: 0 | BM32: 0 | BN32: 0 | BO32: 0 | BP32: 0 | BQ32: 0 | BR32: 0 | BS32: 0.02 | BT32: 0 | BU32: 0 | BV32: 0.1 | BW32: 0.02 | BX32: 0 | BY32: 0 | BZ32: 0 | CA32: 0 | CB32: 9.4 | CE32: 0.17 | CG32: 1.5 | CH32: 1.5 | CI32: 1.5 | CJ32: 285 | CK32: 109.8 | CL32: 197.4 | CM32: 2.85 | CN32: 2.37 | CO32: 2.61 | CP32: 0 | CQ32: 0
A33: ="27/10" -> 27/10 | B33: Чай | C33: 180 | D33: 0.18 | E33: 0 | F33: 0.04 | G33: 0.04 | H33: 8.93 | I33: 34.88157 | J33: 0 | K33: 0 | L33: 0 | M33: 0 | N33: 8.84 | O33: 0 | P33: 0.09 | Q33: 0 | R33: 0 | S33: 0 | T33: 0.06 | U33: 0.09 | V33: 0.27 | W33: 0.26 | X33: 0 | Y33: 0 | Z33: 0.03 | AA33: 0 | AB33: 0 | AC33: 0 | AD33: 0 | AE33: 0 | AF33: 0 | AG33: 0 | AH33: 0 | AI33: 0 | AJ33: 0 | AK33: 0 | AL33: 0 | AM33: 0 | AN33: 0 | AO33: 0 | AP33: 0 | AQ33: 0 | AR33: 0 | AS33: 0 | AT33: 0 | AU33: 0 | AV33: 0 | AW33: 0 | AX33: 0 | AY33: 0 | AZ33: 0 | BA33: 0 | BB33: 0 | BC33: 0 | BD33: 0 | BE33: 0 | BF33: 0 | BG33: 0 | BH33: 0 | BI33: 0 | BJ33: 0 | BK33: 0 | BL33: 0 | BM33: 0 | BN33: 0 | BO33: 0 | BP33: 0 | BQ33: 0 | BR33: 0 | BS33: 0 | BT33: 0 | BU33: 0 | BV33: 0 | BW33: 0 | BX33: 0 | BY33: 0 | BZ33: 0 | CA33: 0 | CB33: 180.09 | CE33: 0 | CG33: 3.14 | CH33: 3.14 | CI33: 3.14 | CJ33: 363.75 | CK33: 138 | CL33: 250.88 | CM33: 33.32 | CN33: 19.82 | CO33: 26.57 | CP33: 9 | CQ33: 0
A34: ="3/9" -> 3/9 | B34: Рагу из мяса цыплят-бройлеров | C34: 180 | D34: 17.78 | E34: 16.28 | F34: 19.63 | G34: 9.51 | H34: 19.19 | I34: 322.4899431 | J34: 5.74 | K34: 6.55 | L34: 0 | M34: 0 | N34: 2.73 | O34: 14.55 | P34: 1.91 | Q34: 0 | R34: 0 | S34: 0.28 | T34: 2.67 | U34: 234.15 | V34: 589.19 | W34: 28.57 | X34: 36.82 | Y34: 178.8 | Z34: 1.97 | AA34: 25.04 | AB34: 1310.95 | AC34: 391.45 | AD34: 5.17 | AE34: 0.11 | AF34: 0.16 | AG34: 6.26 | AH34: 14.6 | AI34: 5.12 | AJ34: 0 | AK34: 779.37 | AL34: 636.31 | AM34: 1261.44 | AN34: 1396.84 | AO34: 410.63 | AP34: 768.83 | AQ34: 268.69 | AR34: 681.42 | AS34: 1039.68 | AT34: 1194.68 | AU34: 1464.72 | AV34: 428.96 | AW34: 1206.64 | AX34: 2490.93 | AY34: 126.93 | AZ34: 795.61 | BA34: 765.42 | BB34: 575.99 | BC34: 207.5 | BD34: 0 | BE34: 0 | BF34: 0 | BG34: 0 | BH34: 0 | BI34: 0 | BJ34: 0 | BK34: 0.56 | BL34: 0 | BM34: 0.34 | BN34: 0.02 | BO34: 0.06 | BP34: 0 | BQ34: 0 | BR34: 0 | BS34: 2.03 | BT34: 0 | BU34: 0 | BV34: 5.45 | BW34: 0 | BX34: 0 | BY34: 0 | BZ34: 0 | CA34: 0 | CB34: 218.35 | CE34: 243.53 | CG34: 32.93 | CH34: 19.16 | CI34: 26.04 | CJ34: 4005.13 | CK34: 2555.97 | CL34: 3280.55 | CM34: 52.66 | CN34: 26.08 | CO34: 39.4 | CP34: 0 | CQ34: 0.45
A35: ="-" -> - | B35: Фрукты | C35: 100 | D35: 0.4 | E35: 0 | F35: 0.4 | G35: 0.4 | H35: 11.6 | I35: 48.68 | J35: 0.1 | K35: 0 | L35: 0 | M35: 0 | N35: 9 | O35: 0.8 | P35: 1.8 | Q35: 0 | R35: 0 | S35: 0.8 | T35: 0.5 | U35: 26 | V35: 278 | W35: 16 | X35: 9 | Y35: 11 | Z35: 2.2 | AA35: 0 | AB35: 30 | AC35: 5 | AD35: 0.2 | AE35: 0.03 | AF35: 0.02 | AG35: 0.3 | AH35: 0.4 | AI35: 10 | AJ35: 0 | AK35: 12 | AL35: 13 | AM35: 19 | AN35: 18 | AO35: 3 | AP35: 11 | AQ35: 3 | AR35: 9 | AS35: 17 | AT35: 10 | AU35: 78 | AV35: 7 | AW35: 14 | AX35: 42 | AY35: 0 | AZ35: 13 | BA35: 16 | BB35: 6 | BC35: 5 | BD35: 0 | BE35: 0 | BF35: 0 | BG35: 0 | BH35: 0 | BI35: 0 | BJ35: 0 | BK35: 0 | BL35: 0 | BM35: 0 | BN35: 0 | BO35: 0 | BP35: 0 | BQ35: 0 | BR35: 0 | BS35: 0 | BT35: 0 | BU35: 0 | BV35: 0 | BW35: 0 | BX35: 0 | BY35: 0 | BZ35: 0 | CA35: 0 | CB35: 86.3 | CE35: 5 | CG35: 2 | CH35: 2 | CI35: 2 | CJ35: 150 | CK35: 150 | CL35: 150 | CM35: 46.8 | CN35: 46.8 | CO35: 46.8 | CP35: 0 | CQ35: 0
B36: Итого за 'Ужин' | C36: =SUM(C31:C35) -> 500 | D36: 21 | E36: 16.28 | F36: 20.45 | G36: 10.32 | H36: 57.45 | I36: 489.51 | J36: 5.88 | K36: 6.55 | L36: 0 | M36: 0 | N36: 21.03 | O36: 30.91 | P36: 5.5 | Q36: 0 | R36: 0 | S36: 1.28 | T36: 4.09 | U36: 382.24 | V36: 916.45 | W36: 51.83 | X36: 55.22 | Y36: 221.4 | Z36: 4.98 | AA36: 25.04 | AB36: 1341.95 | AC36: 396.65 | AD36: 5.65 | AE36: 0.18 | AF36: 0.2 | AG36: 6.7 | AH36: 15.4 | AI36: 15.12 | AJ36: 0 | AK36: 919.63 | AL36: 765.38 | AM36: 1467.63 | AN36: 1493.19 | AO36: 452.24 | AP36: 859.45 | AQ36: 302.82 | AR36: 837 | AS36: 1160.97 | AT36: 1325.52 | AU36: 1687.19 | AV36: 487.91 | AW36: 1330.66 | AX36: 3246.33 | AY36: 126.93 | AZ36: 1044.66 | BA36: 896.51 | BB36: 655.75 | BC36: 268.42 | BD36: 0 | BE36: 0 | BF36: 0 | BG36: 0 | BH36: 0 | BI36: 0 | BJ36: 0 | BK36: 0.6 | BL36: 0 | BM36: 0.34 | BN36: 0.03 | BO36: 0.06 | BP36: 0 | BQ36: 0 | BR36: 0.01 | BS36: 2.06 | BT36: 0 | BU36: 0 | BV36: 5.6 | BW36: 0.02 | BX36: 0 | BY36: 0 | BZ36: 0 | CA36: 0 | CB36: 501.96 | CD36: =$I$36/#REF!*100 ->  | CE36: 248.7 | CG36: 39.57 | CH36: 25.8 | CI36: 32.69 | CJ36: 5468.88 | CK36: 3209.97 | CL36: 4339.43 | CM36: 140.95 | CN36: 100.39 | CO36: 120.7 | CP36: 9 | CQ36: 0.45
B37: Итого за день | C37: =C18+C21+C29+C36 -> 1655 | D37: =D18+D21+D29+D36 -> 55.22 | E37: 37.51 | F37: 55 | G37: 24.13 | H37: 232.87 | I37: 1619.31 | J37: 17.38 | K37: 15.13 | L37: 0 | M37: 0 | N37: 76.81 | O37: 138.53 | P37: 17.51 | Q37: 0 | R37: 0 | S37: 2.85 | T37: 11.19 | U37: 1343.37 | V37: 2035.6 | W37: 257.09 | X37: 177.12 | Y37: 712.84 | Z37: 13.03 | AA37: 92.8 | AB37: 3374.1 | AC37: 858.7 | AD37: 14.64 | AE37: 0.62 | AF37: 0.54 | AG37: 15.34 | AH37: 33.82 | AI37: 43.14 | AJ37: 0.2 | AK37: 2608.38 | AL37: 2223.72 | AM37: 3962.68 | AN37: 3608.88 | AO37: 1132.6 | AP37: 2169.59 | AQ37: 765.64 | AR37: 2397.62 | AS37: 2708.52 | AT37: 3188.73 | AU37: 4091.71 | AV37: 1284.66 | AW37: 3009.87 | AX37: 8785.39 | AY37: 237.5 | AZ37: 2946.45 | BA37: 2210.4 | BB37: 1641.95 | BC37: 734.05 | BD37: 0.22 | BE37: 0.1 | BF37: 0.05 | BG37: 0.12 | BH37: 0.14 | BI37: 0.66 | BJ37: 0 | BK37: 3.37 | BL37: 0 | BM37: 1.43 | BN37: 0.07 | BO37: 0.14 | BP37: =BP18+BP21+BP29+BP36 -> 0 | BQ37: 0.13 | BR37: 0.21 | BS37: 6.8 | BT37: 0 | BU37: 0 | BV37: 12.77 | BW37: 0.07 | BX37: 0 | BY37: 0 | BZ37: 0 | CA37: 0 | CB37: 1548.51 | CC37: 0 | CE37: 655.15 | CF37: 0 | CG37: 131.48 | CH37: 78.45 | CI37: 104.97 | CJ37: 15705.2 | CK37: 8397.76 | CL37: 12051.49 | CM37: 324.51 | CN37: 214.08 | CO37: 269.33 | CP37: 36.6 | CQ37: 1.87
B39: 2 ДЕНЬ
B40: Завтрак
A41: ="-" -> - | B41: Батон | C41: 40 | D41: 3.08 | E41: 0 | F41: 1.2 | G41: 1.2 | H41: 21.32 | I41: 107.808 | J41: 0.2 | K41: 0 | L41: 0 | M41: 0 | N41: 1.32 | O41: 18.72 | P41: 1.28 | Q41: 0 | R41: 0 | S41: 0.12 | T41: 0.64 | U41: 171.6 | V41: 52.4 | W41: 8.8 | X41: 13.2 | Y41: 34 | Z41: 0.8 | AA41: 0 | AB41: 0 | AC41: 0 | AD41: 0.68 | AE41: 0.06 | AF41: 0.02 | AG41: 0.64 | AH41: 1.2 | AI41: 0 | AJ41: 0 | AK41: 148.8 | AL41: 154.4 | AM41: 236.4 | AN41: 79.6 | AO41: 46.8 | AP41: 93.6 | AQ41: 35.2 | AR41: 168 | AS41: 104.4 | AT41: 145.2 | AU41: 120.4 | AV41: 64.4 | AW41: 112 | AX41: 930 | AY41: 0 | AZ41: 302.8 | BA41: 132.4 | BB41: 88.8 | BC41: 69.2 | BD41: 0 | BE41: 0 | BF41: 0 | BG41: 0 | BH41: 0 | BI41: 0.01 | BJ41: 0 | BK41: 0.13 | BL41: 0 | BM41: 0.06 | BN41: 0 | BO41: 0 | BP41: 0 | BQ41: 0 | BR41: 0 | BS41: 0.47 | BT41: 0 | BU41: 0 | BV41: 0.35 | BW41: 0.01 | BX41: 0 | BY41: 0 | BZ41: 0 | CA41: 0 | CB41: 13.64 | CE41: 0 | CG41: 0 | CH41: 0 | CI41: 0 | CJ41: 665 | CK41: 256.2 | CL41: 460.6 | CM41: 5.32 | CN41: 5.32 | CO41: 5.32 | CP41: 0 | CQ41: 0
A42: ="" ->  | B42: Масло сливочное | C42: 5 | D42: 0.04 | E42: 0.04 | F42: 3.63 | G42: 0 | H42: 0.07 | I42: 33.032 | J42: 2.36 | K42: 0.11 | L42: 0 | M42: 0 | N42: 0.07 | O42: 0 | P42: 0 | Q42: 0 | R42: 0 | S42: 0 | T42: 0.07 | U42: 0.75 | V42: 1.5 | W42: 1.2 | X42: 0 | Y42: 1.5 | Z42: 0.01 | AA42: 20 | AB42: 15 | AC42: 22.5 | AD42: 0.05 | AE42: 0 | AF42: 0.01 | AG42: 0.01 | AH42: 0.01 | AI42: 0 | AJ42: 0 | AK42: 2.1 | AL42: 2.05 | AM42: 3.8 | AN42: 2.25 | AO42: 0.85 | AP42: 2.35 | AQ42: 2.15 | AR42: 2.1 | AS42: 1.8 | AT42: 1.3 | AU42: 2.85 | AV42: 1.75 | AW42: 1.2 | AX42: 7.1 | AY42: 0 | AZ42: 2.4 | BA42: 2.7 | BB42: 2.1 | BC42: 0.5 | BD42: 0.13 | BE42: 0.06 | BF42: 0.03 | BG42: 0.08 | BH42: 0.09 | BI42: 0.4 | BJ42: 0 | BK42: 1.1 | BL42: 0 | BM42: 0.34 | BN42: 0 | BO42: 0 | BP42: 0 | BQ42: 0.08 | BR42: 0.12 | BS42: 0.9 | BT42: 0 | BU42: 0 | BV42: 0.05 | BW42: 0 | BX42: 0 | BY42: 0 | BZ42: 0 | CA42: 0 | CB42: 1.25 | CE42: 22.5 | CG42: 0.2 | CH42: 0.05 | CI42: 0.13 | CJ42: 10 | CK42: 4.1 | CL42: 7.05 | CM42: 0.86 | CN42: 0.44 | CO42: 0.65 | CP42: 0 | CQ42: 0
A43: ="" ->  | B43: Вафли | C43: 20 | D43: 0.64 | E43: 0 | F43: 4.21 | G43: 0 | H43: 0 | I43: 40.414 | J43: 0 | K43: 0 | L43: 0 | M43: 0 | N43: 0 | O43: 0 | P43: 0 | Q43: 0 | R43: 0 | S43: 0 | T43: 0 | U43: 0 | V43: 0 | W43: 0 | X43: 0 | Y43: 0 | Z43: 0 | AA43: 0 | AB43: 0 | AC43: 0 | AD43: 0 | AE43: 0 | AF43: 0 | AG43: 0 | AH43: 0 | AI43: 0 | AJ43: 0 | AK43: 0 | AL43: 0 | AM43: 0 | AN43: 0 | AO43: 0 | AP43: 0 | AQ43: 0 | AR43: 0 | AS43: 0 | AT43: 0 | AU43: 0 | AV43: 0 | AW43: 0 | AX43: 0 | AY43: 0 | AZ43: 0 | BA43: 0 | BB43: 0 | BC43: 0 | BD43: 0 | BE43: 0 | BF43: 0 | BG43: 0 | BH43: 0 | BI43: 0 | BJ43: 0 | BK43: 0 | BL43: 0 | BM43: 0 | BN43: 0 | BO43: 0 | BP43: 0 | BQ43: 0 | BR43: 0 | BS43: 0 | BT43: 0 | BU43: 0 | BV43: 0 | BW43: 0 | BX43: 0 | BY43: 0 | BZ43: 0 | CA43: 0 | CB43: 16.22 | CE43: 0 | CG43: 0 | CH43: 0 | CI43: 0 | CJ43: 0 | CK43: 0 | CL43: 0 | CM43: 0 | CN43: 0 | CO43: 0 | CP43: 0 | CQ43: 0
A44: ="29/10" -> 29/10 | B44: Чай с лимоном | C44: 180 | D44: 0.21 | E44: 0 | F44: 0.05 | G44: 0.05 | H44: 8.93 | I44: 35.63244878 | J44: 0 | K44: 0 | L44: 0 | M44: 0 | N44: 8.75 | O44: 0 | P44: 0.18 | Q44: 0 | R44: 0 | S44: 0.25 | T44: 0.08 | U44: 0.57 | V44: 7.35 | W44: 1.96 | X44: 0.5 | Y44: 0.9 | Z44: 0.05 | AA44: 0 | AB44: 0.4 | AC44: 0.09 | AD44: 0.01 | AE44: 0 | AF44: 0 | AG44: 0 | AH44: 0.01 | AI44: 0.7 | AJ44: 0 | AK44: 0.6 | AL44: 0.69 | AM44: 0.56 | AN44: 1.03 | AO44: 0.26 | AP44: 1.08 | AQ44: 0 | AR44: 1.38 | AS44: 0 | AT44: 0 | AU44: 0 | AV44: 0.77 | AW44: 0 | AX44: 0 | AY44: 0 | AZ44: 0 | BA44: 0 | BB44: 0 | BC44: 0 | BD44: 0 | BE44: 0 | BF44: 0 | BG44: 0 | BH44: 0 | BI44: 0 | BJ44: 0 | BK44: 0 | BL44: 0 | BM44: 0 | BN44: 0 | BO44: 0 | BP44: 0 | BQ44: 0 | BR44: 0 | BS44: 0 | BT44: 0 | BU44: 0 | BV44: 0 | BW44: 0 | BX44: 0 | BY44: 0 | BZ44: 0 | CA44: 0 | CB44: 179.55 | CE44: 0.07 | CG44: 3.21 | CH44: 3.1 | CI44: 3.16 | CJ44: 362.2 | CK44: 137.63 | CL44: 249.91 | CM44: 33.27 | CN44: 19.89 | CO44: 26.58 | CP44: 8.78 | CQ44: 0
A45: ="11/4" -> 11/4 | B45: Каша пшенная молочная с маслом сливочным | C45: 180 | D45: 5.89 | E45: 2.12 | F45: 5.5 | G45: 1.19 | H45: 29.37 | I45: 189.0927954 | J45: 3.45 | K45: 0.1 | L45: 0 | M45: 0 | N45: 7.02 | O45: 21.16 | P45: 1.18 | Q45: 0 | R45: 0 | S45: 0.07 | T45: 1.42 | U45: 214.51 | V45: 160.67 | W45: 87.09 | X45: 34.85 | Y45: 130.82 | Z45: 0.94 | AA45: 19.44 | AB45: 22.32 | AC45: 37.17 | AD45: 0.15 | AE45: 0.13 | AF45: 0.1 | AG45: 0.52 | AH45: 2.24 | AI45: 0.37 | AJ45: 0 | AK45: 160.82 | AL45: 147.25 | AM45: 522.32 | AN45: 99.36 | AO45: 100.89 | AP45: 137.35 | AQ45: 62.73 | AR45: 198.05 | AS45: 365.3 | AT45: 144.92 | AU45: 222.37 | AV45: 89.46 | AW45: 102.54 | AX45: 757.25 | AY45: 0 | AZ45: 276.13 | BA45: 239.16 | BB45: 140.52 | BC45: 61.34 | BD45: 0.11 | BE45: 0.05 | BF45: 0.03 | BG45: 0.06 | BH45: 0.07 | BI45: 0.32 | BJ45: 0 | BK45: 0.95 | BL45: 0 | BM45: 0.29 | BN45: 0.01 | BO45: 0 | BP45: 0 | BQ45: 0.06 | BR45: 0.1 | BS45: 0.88 | BT45: 0 | BU45: 0 | BV45: 0.7 | BW45: 0.01 | BX45: 0 | BY45: 0 | BZ45: 0 | CA45: 0 | CB45: 149.45 | CE45: 23.16 | CG45: 23.28 | CH45: 11.46 | CI45: 17.37 | CJ45: 1594.25 | CK45: 730.44 | CL45: 1162.35 | CM45: 27.55 | CN45: 14.21 | CO45: 20.88 | CP45: 3.6 | CQ45: 0.45
B46: Итого за 'Завтрак' | C46: =SUM(C41:C45) -> 425 | D46: 9.86 | E46: 2.16 | F46: 14.58 | G46: 2.44 | H46: 59.68 | I46: 405.98 | J46: 6.01 | K46: 0.21 | L46: 0 | M46: 0 | N46: 17.16 | O46: 39.88 | P46: 2.63 | Q46: 0 | R46: 0 | S46: 0.44 | T46: 2.2 | U46: 387.42 | V46: 221.91 | W46: 99.05 | X46: 48.55 | Y46: 167.22 | Z46: 1.8 | AA46: 39.44 | AB46: 37.72 | AC46: 59.76 | AD46: 0.89 | AE46: 0.2 | AF46: 0.13 | AG46: 1.17 | AH46: 3.46 | AI46: 1.08 | AJ46: 0 | AK46: 312.33 | AL46: 304.38 | AM46: 763.08 | AN46: 182.25 | AO46: 148.79 | AP46: 234.37 | AQ46: 100.08 | AR46: 369.53 | AS46: 471.5 | AT46: 291.42 | AU46: 345.62 | AV46: 156.39 | AW46: 215.74 | AX46: 1694.35 | AY46: 0 | AZ46: 581.33 | BA46: 374.26 | BB46: 231.42 | BC46: 131.04 | BD46: 0.24 | BE46: 0.11 | BF46: 0.06 | BG46: 0.14 | BH46: 0.16 | BI46: 0.72 | BJ46: 0 | BK46: 2.19 | BL46: 0 | BM46: 0.69 | BN46: 0.01 | BO46: 0 | BP46: 0 | BQ46: 0.14 | BR46: 0.22 | BS46: 2.25 | BT46: 0 | BU46: 0 | BV46: 1.1 | BW46: 0.02 | BX46: 0 | BY46: 0 | BZ46: 0 | CA46: 0 | CB46: 360.11 | CD46: =$I$46/#REF!*100 ->  | CE46: 45.73 | CG46: 26.69 | CH46: 14.62 | CI46: 20.65 | CJ46: 2631.44 | CK46: 1128.38 | CL46: 1879.91 | CM46: 66.99 | CN46: 39.86 | CO46: 53.42 | CP46: 12.38 | CQ46: 0.45
B47: 10:00
A48: ="-" -> - | B48: Ряженка | C48: 100 | D48: 0.6 | E48: 0 | F48: 0.3 | G48: 0.3 | H48: 5.6 | I48: 24.88 | J48: 0.1 | K48: 0 | L48: 0 | M48: 0 | N48: 4.6 | O48: 0 | P48: 1 | Q48: 0 | R48: 0 | S48: 0.1 | T48: 0.4 | U48: 2 | V48: 238 | W48: 15 | X48: 9 | Y48: 12 | Z48: 0.4 | AA48: 0 | AB48: 30 | AC48: 5 | AD48: 0.1 | AE48: 0.03 | AF48: 0.03 | AG48: 0.6 | AH48: 0.7 | AI48: 15 | AJ48: 0 | AK48: 0 | AL48: 0 | AM48: 450 | AN48: 387 | AO48: 115 | AP48: 216 | AQ48: 72 | AR48: 225 | AS48: 160 | AT48: 174 | AU48: 344 | AV48: 156 | AW48: 93 | AX48: 897 | AY48: 0 | AZ48: 518 | BA48: 278 | BB48: 242 | BC48: 50 | BD48: 0.1 | BE48: 0.07 | BF48: 0.04 | BG48: 0.08 | BH48: 0.09 | BI48: 0.45 | BJ48: 0.03 | BK48: 0.56 | BL48: 0.02 | BM48: 0.31 | BN48: 0.04 | BO48: 0 | BP48: 0 | BQ48: 0.04 | BR48: 0.08 | BS48: 0.69 | BT48: 0.01 | BU48: 0 | BV48: 0.02 | BW48: 0.03 | BX48: 0.08 | BY48: 0 | BZ48: 0 | CA48: 0 | CB48: 93 | CE48: 5 | CG48: 0 | CH48: 0 | CI48: 0 | CJ48: 0 | CK48: 0 | CL48: 0 | CM48: 0 | CN48: 0 | CO48: 0 | CP48: 0 | CQ48: 0
B49: Итого за '10:00' | C49: =SUM(C48) -> 100 | D49: 0.6 | E49: 0 | F49: 0.3 | G49: 0.3 | H49: 5.6 | I49: 24.88 | J49: 0.1 | K49: 0 | L49: 0 | M49: 0 | N49: 4.6 | O49: 0 | P49: 1 | Q49: 0 | R49: 0 | S49: 0.1 | T49: 0.4 | U49: 2 | V49: 238 | W49: 15 | X49: 9 | Y49: 12 | Z49: 0.4 | AA49: 0 | AB49: 30 | AC49: 5 | AD49: 0.1 | AE49: 0.03 | AF49: 0.03 | AG49: 0.6 | AH49: 0.7 | AI49: 15 | AJ49: 0 | AK49: 0 | AL49: 0 | AM49: 450 | AN49: 387 | AO49: 115 | AP49: 216 | AQ49: 72 | AR49: 225 | AS49: 160 | AT49: 174 | AU49: 344 | AV49: 156 | AW49: 93 | AX49: 897 | AY49: 0 | AZ49: 518 | BA49: 278 | BB49: 242 | BC49: 50 | BD49: 0.1 | BE49: 0.07 | BF49: 0.04 | BG49: 0.08 | BH49: 0.09 | BI49: 0.45 | BJ49: 0.03 | BK49: 0.56 | BL49: 0.02 | BM49: 0.31 | BN49: 0.04 | BO49: 0 | BP49: 0 | BQ49: 0.04 | BR49: 0.08 | BS49: 0.69 | BT49: 0.01 | BU49: 0 | BV49: 0.02 | BW49: 0.03 | BX49: 0.08 | BY49: 0 | BZ49: 0 | CA49: 0 | CB49: 93 | CD49: =$I$49/#REF!*100 ->  | CE49: 5 | CG49: 0 | CH49: 0 | CI49: 0 | CJ49: 0 | CK49: 0 | CL49: 0 | CM49: 0 | CN49: 0 | CO49: 0 | CP49: 0 | CQ49: 0
B50: Обед
A51: ="-" -> - | B51: Хлеб пшеничный | C51: 20 | D51: 1.32 | E51: 0 | F51: 0.13 | G51: 0.13 | H51: 9.38 | I51: 44.7802 | J51: 0 | K51: 0 | L51: 0 | M51: 0 | N51: 0.22 | O51: 9.12 | P51: 0.04 | Q51: 0 | R51: 0 | S51: 0 | T51: 0.36 | U51: 0 | V51: 0 | W51: 0 | X51: 0 | Y51: 0 | Z51: 0 | AA51: 0 | AB51: 0 | AC51: 0 | AD51: 0 | AE51: 0 | AF51: 0 | AG51: 0 | AH51: 0 | AI51: 0 | AJ51: 0 | AK51: 63.86 | AL51: 66.47 | AM51: 101.79 | AN51: 33.76 | AO51: 20.01 | AP51: 40.02 | AQ51: 15.14 | AR51: 72.38 | AS51: 44.89 | AT51: 62.64 | AU51: 51.68 | AV51: 27.14 | AW51: 48.02 | AX51: 401.59 | AY51: 0 | AZ51: 130.85 | BA51: 56.9 | BB51: 37.76 | BC51: 29.93 | BD51: 0 | BE51: 0 | BF51: 0 | BG51: 0 | BH51: 0 | BI51: 0 | BJ51: 0 | BK51: 0.02 | BL51: 0 | BM51: 0 | BN51: 0 | BO51: 0 | BP51: 0 | BQ51: 0 | BR51: 0 | BS51: 0.01 | BT51: 0 | BU51: 0 | BV51: 0.06 | BW51: 0 | BX51: 0 | BY51: 0 | BZ51: 0 | CA51: 0 | CB51: 7.82 | CE51: 0 | CG51: 0 | CH51: 0 | CI51: 0 | CJ51: 380 | CK51: 146.4 | CL51: 263.2 | CM51: 3.04 | CN51: 3.04 | CO51: 3.04 | CP51: 0 | CQ51: 0
A52: ="-" -> - | B52: Хлеб ржаной | C52: 20 | D52: 1.32 | E52: 0 | F52: 0.24 | G52: 0.24 | H52: 8.34 | I52: 38.676 | J52: 0.04 | K52: 0 | L52: 0 | M52: 0 | N52: 0.24 | O52: 6.44 | P52: 1.66 | Q52: 0 | R52: 0 | S52: 0.2 | T52: 0.5 | U52: 122 | V52: 49 | W52: 7 | X52: 9.4 | Y52: 31.6 | Z52: 0.78 | AA52: 0 | AB52: 1 | AC52: 0.2 | AD52: 0.28 | AE52: 0.04 | AF52: 0.02 | AG52: 0.14 | AH52: 0.4 | AI52: 0 | AJ52: 0 | AK52: 64.4 | AL52: 49.6 | AM52: 85.4 | AN52: 44.6 | AO52: 18.6 | AP52: 39.6 | AQ52: 16 | AR52: 74.2 | AS52: 59.4 | AT52: 58.2 | AU52: 92.8 | AV52: 24.8 | AW52: 62 | AX52: 311.8 | AY52: 0 | AZ52: 105.2 | BA52: 58.2 | BB52: 36 | BC52: 26 | BD52: 0 | BE52: 0 | BF52: 0 | BG52: 0 | BH52: 0 | BI52: 0 | BJ52: 0 | BK52: 0.03 | BL52: 0 | BM52: 0 | BN52: 0 | BO52: 0 | BP52: 0 | BQ52: 0 | BR52: 0 | BS52: 0.02 | BT52: 0 | BU52: 0 | BV52: 0.1 | BW52: 0.02 | BX52: 0 | BY52: 0 | BZ52: 0 | CA52: 0 | CB52: 9.4 | CE52: 0.17 | CG52: 1 | CH52: 1 | CI52: 1 | CJ52: 190 | CK52: 73.2 | CL52: 131.6 | CM52: 1.9 | CN52: 1.58 | CO52: 1.74 | CP52: 0 | CQ52: 0
A53: ="6/10" -> 6/10 | B53: Компот из сухофруктов | C53: 180 | D53: 0.92 | E53: 0 | F53: 0.05 | G53: 0.05 | H53: 20.86 | I53: 78.839028 | J53: 0.02 | K53: 0 | L53: 0 | M53: 0 | N53: 17.27 | O53: 0.51 | P53: 3.08 | Q53: 0 | R53: 0 | S53: 0.27 | T53: 0.73 | U53: 3.12 | V53: 306.24 | W53: 28.2 | X53: 17.96 | Y53: 24.44 | Z53: 0.58 | AA53: 0 | AB53: 567 | AC53: 104.94 | AD53: 0.99 | AE53: 0.02 | AF53: 0.03 | AG53: 0.46 | AH53: 0.7 | AI53: 0.29 | AJ53: 0 | AK53: 0.01 | AL53: 0.01 | AM53: 0.01 | AN53: 0.02 | AO53: 0 | AP53: 0.01 | AQ53: 0 | AR53: 0.01 | AS53: 0.01 | AT53: 0.01 | AU53: 0.05 | AV53: 0 | AW53: 0.01 | AX53: 0.02 | AY53: 0 | AZ53: 0.01 | BA53: 0.01 | BB53: 0.01 | BC53: 0 | BD53: 0 | BE53: 0 | BF53: 0 | BG53: 0 | BH53: 0 | BI53: 0 | BJ53: 0 | BK53: 0 | BL53: 0 | BM53: 0 | BN53: 0 | BO53: 0 | BP53: 0 | BQ53: 0 | BR53: 0 | BS53: 0.01 | BT53: 0 | BU53: 0 | BV53: 0.01 | BW53: 0 | BX53: 0 | BY53: 0 | BZ53: 0 | CA53: 0 | CB53: 192.61 | CE53: 94.5 | CG53: 3.29 | CH53: 3.29 | CI53: 3.29 | CJ53: 378.75 | CK53: 144.15 | CL53: 261.45 | CM53: 34.95 | CN53: 20.78 | CO53: 27.86 | CP53: 9 | CQ53: 0
A54: ="32/1" -> 32/1 | B54: Салат из отварной свеклы с растительным маслом | C54: 50 | D54: 0.69 | E54: 0 | F54: 2.98 | G54: 2.98 | H54: 4.51 | I54: 44.93207292 | J54: 0.38 | K54: 1.95 | L54: 0 | M54: 0 | N54: 3.37 | O54: 0.04 | P54: 1.09 | Q54: 0 | R54: 0 | S54: 0.05 | T54: 0.73 | U54: 111.56 | V54: 111.68 | W54: 17.04 | X54: 9.65 | Y54: 19 | Z54: 0.62 | AA54: 0 | AB54: 4.12 | AC54: 0.99 | AD54: 1.37 | AE54: 0.01 | AF54: 0.02 | AG54: 0.07 | AH54: 0.2 | AI54: 0.97 | AJ54: 0 | AK54: 24.4 | AL54: 27.62 | AM54: 30.85 | AN54: 42.35 | AO54: 9.21 | AP54: 24.4 | AQ54: 5.98 | AR54: 20.72 | AS54: 18.42 | AT54: 33.61 | AU54: 151 | AV54: 6.45 | AW54: 17.49 | AX54: 126.14 | AY54: 0 | AZ54: 21.64 | BA54: 29 | BB54: 23.02 | BC54: 6.91 | BD54: 0 | BE54: 0 | BF54: 0 | BG54: 0 | BH54: 0 | BI54: 0 | BJ54: 0 | BK54: 0.18 | BL54: 0 | BM54: 0.12 | BN54: 0.01 | BO54: 0.02 | BP54: 0 | BQ54: 0 | BR54: 0 | BS54: 0.7 | BT54: 0 | BU54: 0 | BV54: 1.73 | BW54: 0 | BX54: 0 | BY54: 0 | BZ54: 0 | CA54: 0 | CB54: 42.53 | CE54: 0.69 | CG54: 10.87 | CH54: 6.79 | CI54: 8.83 | CJ54: 341.73 | CK54: 81.75 | CL54: 211.74 | CM54: 1.64 | CN54: 1.04 | CO54: 1.34 | CP54: 0 | CQ54: 0.25
A55: ="18/2" -> 18/2 | B55: Суп картофельный с макаронными изделиями на говяжьем бульоне | C55: 180 | D55: 1.93 | E55: 5.74 | F55: 1.72 | G55: 1.72 | H55: 14.6 | I55: 80.27548092 | J55: 0.24 | K55: 0.94 | L55: 0 | M55: 0 | N55: 1.75 | O55: 11.6 | P55: 1.25 | Q55: 0 | R55: 0 | S55: 0.14 | T55: 1.09 | U55: 142.66 | V55: 317.96 | W55: 11.24 | X55: 15.92 | Y55: 40.02 | Z55: 0.66 | AA55: 0 | AB55: 942.19 | AC55: 174.31 | AD55: 0.84 | AE55: 0.07 | AF55: 0.04 | AG55: 0.7 | AH55: 1.24 | AI55: 4.41 | AJ55: 0 | AK55: 48.91 | AL55: 52.8 | AM55: 84.78 | AN55: 50.35 | AO55: 16.42 | AP55: 44.18 | AQ55: 17.54 | AR55: 57.87 | AS55: 55.81 | AT55: 110.44 | AU55: 69.8 | AV55: 22.08 | AW55: 47.19 | AX55: 343.9 | AY55: 0 | AZ55: 85.19 | BA55: 51.12 | BB55: 33.84 | BC55: 21.41 | BD55: 0 | BE55: 0 | BF55: 0 | BG55: 0 | BH55: 0 | BI55: 0 | BJ55: 0 | BK55: 0.14 | BL55: 0 | BM55: 0.07 | BN55: 0 | BO55: 0.01 | BP55: 0 | BQ55: 0 | BR55: 0 | BS55: 0.42 | BT55: 0 | BU55: 0 | BV55: 0.9 | BW55: 0 | BX55: 0 | BY55: 0 | BZ55: 0 | CA55: 0 | CB55: 187.49 | CE55: 157.03 | CG55: 20.37 | CH55: 13.13 | CI55: 16.75 | CJ55: 622.77 | CK55: 372.86 | CL55: 497.82 | CM55: 38.79 | CN55: 19.02 | CO55: 28.9 | CP55: 0 | CQ55: 0.36
A56: ="3/3" -> 3/3 | B56: Картофельное пюре | C56: 150 | D56: 3.11 | E56: 0.55 | F56: 3.54 | G56: 0.51 | H56: 22.09 | I56: 131.520525 | J56: 2.22 | K56: 0.08 | L56: 0 | M56: 0 | N56: 2.16 | O56: 18.23 | P56: 1.7 | Q56: 0 | R56: 0 | S56: 0.29 | T56: 1.89 | U56: 77.84 | V56: 636.26 | W56: 33.96 | X56: 30.35 | Y56: 86.82 | Z56: 1.12 | AA56: 18.75 | AB56: 34.11 | AC56: 25.05 | AD56: 0.17 | AE56: 0.12 | AF56: 0.1 | AG56: 1.33 | AH56: 2.59 | AI56: 5.45 | AJ56: 0 | AK56: 33.56 | AL56: 52.76 | AM56: 66.83 | AN56: 78.55 | AO56: 13.43 | AP56: 52.97 | AQ56: 27.18 | AR56: 54.08 | AS56: 75.67 | AT56: 206.13 | AU56: 91.81 | AV56: 19.2 | AW56: 53.44 | AX56: 287.21 | AY56: 0 | AZ56: 40.19 | BA56: 36.55 | BB56: 39.97 | BC56: 17.03 | BD56: 0.1 | BE56: 0.04 | BF56: 0.02 | BG56: 0.05 | BH56: 0.06 | BI56: 0.29 | BJ56: 0 | BK56: 0.88 | BL56: 0 | BM56: 0.26 | BN56: 0 | BO56: 0 | BP56: 0 | BQ56: 0.05 | BR56: 0.09 | BS56: 0.85 | BT56: 0 | BU56: 0 | BV56: 0.14 | BW56: 0 | BX56: 0 | BY56: 0 | BZ56: 0 | CA56: 0 | CB56: 123.74 | CE56: 24.43 | CG56: 17.59 | CH56: 11.66 | CI56: 14.63 | CJ56: 602.06 | CK56: 529.2 | CL56: 565.63 | CM56: 24.41 | CN56: 3.59 | CO56: 14 | CP56: 0 | CQ56: 0.23
A57: ="12/7" -> 12/7 | B57: Биточки (котлеты) из рыбы минтай | C57: 70 | D57: 8.54 | E57: 6.98 | F57: 4.47 | G57: 4.08 | H57: 9.84 | I57: 113.577464 | J57: 0.64 | K57: 2.73 | L57: 0 | M57: 0 | N57: 0.32 | O57: 8.93 | P57: 0.59 | Q57: 0 | R57: 0 | S57: 0.07 | T57: 1.41 | U57: 175.57 | V57: 159.42 | W57: 22.49 | X57: 30.28 | Y57: 125.91 | Z57: 0.81 | AA57: 4.62 | AB57: 0.28 | AC57: 4.68 | AD57: 2.18 | AE57: 0.06 | AF57: 0.06 | AG57: 0.88 | AH57: 2.57 | AI57: 0.23 | AJ57: 0 | AK57: 43.93 | AL57: 45.73 | AM57: 70.02 | AN57: 23.22 | AO57: 13.77 | AP57: 27.53 | AQ57: 10.41 | AR57: 49.8 | AS57: 30.88 | AT57: 43.09 | AU57: 35.55 | AV57: 18.67 | AW57: 33.04 | AX57: 276.27 | AY57: 0 | AZ57: 90.01 | BA57: 39.14 | BB57: 25.97 | BC57: 20.59 | BD57: 0 | BE57: 0 | BF57: 0 | BG57: 0 | BH57: 0 | BI57: 0 | BJ57: 0 | BK57: 0.25 | BL57: 0 | BM57: 0.16 | BN57: 0.01 | BO57: 0.03 | BP57: 0 | BQ57: 0 | BR57: 0 | BS57: 0.93 | BT57: 0 | BU57: 0 | BV57: 2.32 | BW57: 0 | BX57: 0 | BY57: 0 | BZ57: 0 | CA57: 0 | CB57: 60.19 | CE57: 4.67 | CG57: 61.5 | CH57: 12.6 | CI57: 37.05 | CJ57: 617.5 | CK57: 215.38 | CL57: 416.44 | CM57: 14.73 | CN57: 14.73 | CO57: 14.73 | CP57: 0 | CQ57: 0.42
B58: Итого за 'Обед' | C58: =SUM(C51:C57) -> 670 | D58: 17.83 | E58: 13.27 | F58: 13.13 | G58: 9.72 | H58: 89.61 | I58: 532.6 | J58: 3.54 | K58: 5.7 | L58: 0 | M58: 0 | N58: 25.33 | O58: 54.88 | P58: 9.41 | Q58: 0 | R58: 0 | S58: 1.02 | T58: 6.71 | U58: 632.75 | V58: 1580.55 | W58: 119.92 | X58: 113.55 | Y58: 327.79 | Z58: 4.58 | AA58: 23.37 | AB58: 1548.7 | AC58: 310.17 | AD58: 5.83 | AE58: 0.31 | AF58: 0.26 | AG58: 3.58 | AH58: 7.7 | AI58: 11.34 | AJ58: 0 | AK58: 279.06 | AL58: 294.99 | AM58: 439.69 | AN58: 272.85 | AO58: 91.43 | AP58: 228.71 | AQ58: 92.26 | AR58: 329.05 | AS58: 285.08 | AT58: 514.12 | AU58: 492.69 | AV58: 118.35 | AW58: 261.19 | AX58: 1746.93 | AY58: 0 | AZ58: 473.09 | BA58: 270.93 | BB58: 196.57 | BC58: 121.86 | BD58: 0.1 | BE58: 0.04 | BF58: 0.02 | BG58: 0.05 | BH58: 0.06 | BI58: 0.29 | BJ58: 0 | BK58: 1.49 | BL58: 0 | BM58: 0.61 | BN58: 0.03 | BO58: 0.06 | BP58: 0 | BQ58: 0.05 | BR58: 0.1 | BS58: 2.93 | BT58: 0 | BU58: 0 | BV58: 5.26 | BW58: 0.02 | BX58: 0 | BY58: 0 | BZ58: 0 | CA58: 0 | CB58: 623.77 | CD58: =$I$58/#REF!*100 ->  | CE58: 281.49 | CG58: 114.61 | CH58: 48.47 | CI58: 81.54 | CJ58: 3132.81 | CK58: 1562.94 | CL58: 2347.87 | CM58: 119.46 | CN58: 63.77 | CO58: 91.61 | CP58: 9 | CQ58: 1.26
B59: Ужин
A60: ="-" -> - | B60: Хлеб пшеничный | C60: 20 | D60: 1.32 | E60: 0 | F60: 0.13 | G60: 0.13 | H60: 9.38 | I60: 44.7802 | J60: 0 | K60: 0 | L60: 0 | M60: 0 | N60: 0.22 | O60: 9.12 | P60: 0.04 | Q60: 0 | R60: 0 | S60: 0 | T60: 0.36 | U60: 0 | V60: 0 | W60: 0 | X60: 0 | Y60: 0 | Z60: 0 | AA60: 0 | AB60: 0 | AC60: 0 | AD60: 0 | AE60: 0 | AF60: 0 | AG60: 0 | AH60: 0 | AI60: 0 | AJ60: 0 | AK60: 63.86 | AL60: 66.47 | AM60: 101.79 | AN60: 33.76 | AO60: 20.01 | AP60: 40.02 | AQ60: 15.14 | AR60: 72.38 | AS60: 44.89 | AT60: 62.64 | AU60: 51.68 | AV60: 27.14 | AW60: 48.02 | AX60: 401.59 | AY60: 0 | AZ60: 130.85 | BA60: 56.9 | BB60: 37.76 | BC60: 29.93 | BD60: 0 | BE60: 0 | BF60: 0 | BG60: 0 | BH60: 0 | BI60: 0 | BJ60: 0 | BK60: 0.02 | BL60: 0 | BM60: 0 | BN60: 0 | BO60: 0 | BP60: 0 | BQ60: 0 | BR60: 0 | BS60: 0.01 | BT60: 0 | BU60: 0 | BV60: 0.06 | BW60: 0 | BX60: 0 | BY60: 0 | BZ60: 0 | CA60: 0 | CB60: 7.82 | CE60: 0 | CG60: 0 | CH60: 0 | CI60: 0 | CJ60: 665 | CK60: 256.2 | CL60: 460.6 | CM60: 5.32 | CN60: 5.32 | CO60: 5.32 | CP60: 0 | CQ60: 0
A61: ="-" -> - | B61: Хлеб ржаной | C61: 20 | D61: 1.32 | E61: 0 | F61: 0.24 | G61: 0.24 | H61: 8.34 | I61: 38.676 | J61: 0.04 | K61: 0 | L61: 0 | M61: 0 | N61: 0.24 | O61: 6.44 | P61: 1.66 | Q61: 0 | R61: 0 | S61: 0.2 | T61: 0.5 | U61: 122 | V61: 49 | W61: 7 | X61: 9.4 | Y61: 31.6 | Z61: 0.78 | AA61: 0 | AB61: 1 | AC61: 0.2 | AD61: 0.28 | AE61: 0.04 | AF61: 0.02 | AG61: 0.14 | AH61: 0.4 | AI61: 0 | AJ61: 0 | AK61: 64.4 | AL61: 49.6 | AM61: 85.4 | AN61: 44.6 | AO61: 18.6 | AP61: 39.6 | AQ61: 16 | AR61: 74.2 | AS61: 59.4 | AT61: 58.2 | AU61: 92.8 | AV61: 24.8 | AW61: 62 | AX61: 311.8 | AY61: 0 | AZ61: 105.2 | BA61: 58.2 | BB61: 36 | BC61: 26 | BD61: 0 | BE61: 0 | BF61: 0 | BG61: 0 | BH61: 0 | BI61: 0 | BJ61: 0 | BK61: 0.03 | BL61: 0 | BM61: 0 | BN61: 0 | BO61: 0 | BP61: 0 | BQ61: 0 | BR61: 0 | BS61: 0.02 | BT61: 0 | BU61: 0 | BV61: 0.1 | BW61: 0.02 | BX61: 0 | BY61: 0 | BZ61: 0 | CA61: 0 | CB61: 9.4 | CE61: 0.17 | CG61: 1.5 | CH61: 1.5 | CI61: 1.5 | CJ61: 285 | CK61: 109.8 | CL61: 197.4 | CM61: 2.85 | CN61: 2.37 | CO61: 2.61 | CP61: 0 | CQ61: 0
A62: ="27/10" -> 27/10 | B62: Чай (вариант 2) | C62: 180 | D62: 0.18 | E62: 0 | F62: 0.04 | G62: 0.04 | H62: 4.53 | I62: 18.157086 | J62: 0 | K62: 0 | L62: 0 | M62: 0 | N62: 4.44 | O62: 0 | P62: 0.09 | Q62: 0 | R62: 0 | S62: 0 | T62: 0.05 | U62: 0.04 | V62: 0.13 | W62: 0.13 | X62: 0 | Y62: 0 | Z62: 0.01 | AA62: 0 | AB62: 0 | AC62: 0 | AD62: 0 | AE62: 0 | AF62: 0 | AG62: 0 | AH62: 0 | AI62: 0 | AJ62: 0 | AK62: 0 | AL62: 0 | AM62: 0 | AN62: 0 | AO62: 0 | AP62: 0 | AQ62: 0 | AR62: 0 | AS62: 0 | AT62: 0 | AU62: 0 | AV62: 0 | AW62: 0 | AX62: 0 | AY62: 0 | AZ62: 0 | BA62: 0 | BB62: 0 | BC62: 0 | BD62: 0 | BE62: 0 | BF62: 0 | BG62: 0 | BH62: 0 | BI62: 0 | BJ62: 0 | BK62: 0 | BL62: 0 | BM62: 0 | BN62: 0 | BO62: 0 | BP62: 0 | BQ62: 0 | BR62: 0 | BS62: 0 | BT62: 0 | BU62: 0 | BV62: 0 | BW62: 0 | BX62: 0 | BY62: 0 | BZ62: 0 | CA62: 0 | CB62: 180.08 | CE62: 0 | CG62: 3.69 | CH62: 3.69 | CI62: 3.69 | CJ62: 398.25 | CK62: 156.6 | CL62: 277.43 | CM62: 39.61 | CN62: 23.41 | CO62: 31.51 | CP62: 4.5 | CQ62: 0
A63: ="16/4" -> 16/4 | B63: Каша пшеничная молочная с маслом сливочным | C63: 180 | D63: 5.88 | E63: 2.12 | F63: 4.93 | G63: 1.19 | H63: 29.36 | I63: 183.8574648 | J63: 3.03 | K63: 0.08 | L63: 0 | M63: 0 | N63: 7.01 | O63: 21.16 | P63: 1.18 | Q63: 0 | R63: 0 | S63: 0.07 | T63: 1.4 | U63: 214.37 | V63: 160.43 | W63: 86.9 | X63: 34.85 | Y63: 130.58 | Z63: 0.94 | AA63: 17.28 | AB63: 20.16 | AC63: 33.12 | AD63: 0.14 | AE63: 0.13 | AF63: 0.1 | AG63: 0.52 | AH63: 2.24 | AI63: 0.37 | AJ63: 0 | AK63: 160.47 | AL63: 146.9 | AM63: 521.68 | AN63: 98.98 | AO63: 100.74 | AP63: 136.95 | AQ63: 62.37 | AR63: 197.69 | AS63: 365 | AT63: 144.7 | AU63: 221.89 | AV63: 89.17 | AW63: 102.33 | AX63: 756.05 | AY63: 0 | AZ63: 275.73 | BA63: 238.71 | BB63: 140.17 | BC63: 61.25 | BD63: 0.09 | BE63: 0.04 | BF63: 0.02 | BG63: 0.05 | BH63: 0.05 | BI63: 0.25 | BJ63: 0 | BK63: 0.78 | BL63: 0 | BM63: 0.23 | BN63: 0.01 | BO63: 0 | BP63: 0 | BQ63: 0.05 | BR63: 0.08 | BS63: 0.74 | BT63: 0 | BU63: 0 | BV63: 0.69 | BW63: 0.01 | BX63: 0 | BY63: 0 | BZ63: 0 | CA63: 0 | CB63: 149.22 | CE63: 20.64 | CG63: 23.25 | CH63: 11.46 | CI63: 17.35 | CJ63: 1592.75 | CK63: 729.83 | CL63: 1161.29 | CM63: 27.42 | CN63: 14.15 | CO63: 20.78 | CP63: 3.6 | CQ63: 0.45
A64: ="27/12" -> 27/12 | B64: Оладьи | C64: 65 | D64: 4.16 | E64: 0.45 | F64: 4.09 | G64: 4.37 | H64: 25.28 | I64: 154.1992237 | J64: 0.63 | K64: 2.54 | L64: 0 | M64: 0 | N64: 1.44 | O64: 22.68 | P64: 1.17 | Q64: 0 | R64: 0 | S64: 0 | T64: 0.22 | U64: 4.31 | V64: 44.84 | W64: 6.92 | X64: 5.58 | Y64: 32.45 | Z64: 0.43 | AA64: 2.94 | AB64: 0.88 | AC64: 5.08 | AD64: 2.29 | AE64: 0.05 | AF64: 0.02 | AG64: 0.38 | AH64: 1.25 | AI64: 0 | AJ64: 0 | AK64: 188.23 | AL64: 167.93 | AM64: 313.32 | AN64: 118.6 | AO64: 65.26 | AP64: 126.42 | AQ64: 40.3 | AR64: 191.78 | AS64: 137.65 | AT64: 162.42 | AU64: 157.58 | AV64: 82.07 | AW64: 137.82 | AX64: 1126.33 | AY64: 3.76 | AZ64: 350.08 | BA64: 197.32 | BB64: 101.46 | BC64: 77.01 | BD64: 0 | BE64: 0 | BF64: 0 | BG64: 0 | BH64: 0 | BI64: 0 | BJ64: 0 | BK64: 0.26 | BL64: 0 | BM64: 0.14 | BN64: 0.01 | BO64: 0.02 | BP64: 0 | BQ64: 0 | BR64: 0 | BS64: 0.85 | BT64: 0 | BU64: 0 | BV64: 2.48 | BW64: 0.01 | BX64: 0 | BY64: 0 | BZ64: 0 | CA64: 0 | CB64: 43.97 | CE64: 3.08 | CG64: 1.01 | CH64: 0.94 | CI64: 0.97 | CJ64: 747.16 | CK64: 270.06 | CL64: 508.61 | CM64: 4.15 | CN64: 2.33 | CO64: 3.61 | CP64: 1.2 | CQ64: 0
B65: Итого за 'Ужин' | C65: =SUM(C60:C64) -> 465 | D65: 12.86 | E65: 2.57 | F65: 9.43 | G65: 5.98 | H65: 76.89 | I65: 439.67 | J65: 3.7 | K65: 2.61 | L65: 0 | M65: 0 | N65: 13.35 | O65: 59.4 | P65: 4.14 | Q65: 0 | R65: 0 | S65: 0.27 | T65: 2.53 | U65: 340.73 | V65: 254.41 | W65: 100.95 | X65: 49.83 | Y65: 194.63 | Z65: 2.16 | AA65: 20.22 | AB65: 22.04 | AC65: 38.4 | AD65: 2.72 | AE65: 0.21 | AF65: 0.14 | AG65: 1.04 | AH65: 3.89 | AI65: 0.38 | AJ65: 0 | AK65: 476.95 | AL65: 430.9 | AM65: 1022.18 | AN65: 295.93 | AO65: 204.61 | AP65: 342.99 | AQ65: 133.81 | AR65: 536.06 | AS65: 606.94 | AT65: 427.96 | AU65: 523.95 | AV65: 223.18 | AW65: 350.17 | AX65: 2595.77 | AY65: 3.76 | AZ65: 861.86 | BA65: 551.13 | BB65: 315.39 | BC65: 194.19 | BD65: 0.09 | BE65: 0.04 | BF65: 0.02 | BG65: 0.05 | BH65: 0.05 | BI65: 0.25 | BJ65: 0 | BK65: 1.07 | BL65: 0 | BM65: 0.38 | BN65: 0.02 | BO65: 0.02 | BP65: 0 | BQ65: 0.05 | BR65: 0.08 | BS65: 1.62 | BT65: 0 | BU65: 0 | BV65: 3.32 | BW65: 0.04 | BX65: 0 | BY65: 0 | BZ65: 0 | CA65: 0 | CB65: 390.49 | CD65: =$I$65/#REF!*100 ->  | CE65: 23.89 | CG65: 29.44 | CH65: 17.58 | CI65: 23.51 | CJ65: 3688.16 | CK65: 1522.49 | CL65: 2605.32 | CM65: 79.34 | CN65: 47.57 | CO65: 63.83 | CP65: 9.3 | CQ65: 0.45
B66: Итого за день | C66: =C46+C49+C58+C65 -> 1660 | D66: =D46+D49+D58+D65 -> 41.15 | E66: 18 | F66: 37.44 | G66: 18.44 | H66: 231.78 | I66: 1403.13 | J66: 13.35 | K66: 8.52 | L66: 0 | M66: 0 | N66: 60.44 | O66: 154.16 | P66: 17.18 | Q66: 0 | R66: 0 | S66: 1.83 | T66: 11.84 | U66: 1362.9 | V66: 2294.87 | W66: 334.92 | X66: 220.93 | Y66: 701.64 | Z66: 8.94 | AA66: 83.03 | AB66: 1638.46 | AC66: 413.33 | AD66: 9.54 | AE66: 0.75 | AF66: 0.56 | AG66: 6.39 | AH66: 15.75 | AI66: 27.8 | AJ66: 0 | AK66: 1068.34 | AL66: 1030.27 | AM66: 2674.95 | AN66: 1138.03 | AO66: 559.83 | AP66: 1022.07 | AQ66: 398.15 | AR66: 1459.64 | AS66: 1523.52 | AT66: 1407.5 | AU66: 1706.26 | AV66: 653.92 | AW66: 920.1 | AX66: 6934.05 | AY66: 3.76 | AZ66: 2434.28 | BA66: 1474.32 | BB66: 985.38 | BC66: 497.09 | BD66: 0.53 | BE66: 0.26 | BF66: 0.14 | BG66: 0.32 | BH66: 0.36 | BI66: 1.71 | BJ66: 0.03 | BK66: 5.31 | BL66: 0.02 | BM66: 1.99 | BN66: 0.1 | BO66: 0.08 | BP66: =BP46+BP49+BP58+BP65 -> 0 | BQ66: 0.28 | BR66: 0.48 | BS66: 7.49 | BT66: 0.01 | BU66: 0 | BV66: 9.7 | BW66: 0.11 | BX66: 0.08 | BY66: 0 | BZ66: 0 | CA66: 0 | CB66: 1467.37 | CC66: 0 | CE66: 356.11 | CF66: 0 | CG66: 170.74 | CH66: 80.67 | CI66: 125.7 | CJ66: 9452.41 | CK66: 4213.81 | CL66: 6833.1 | CM66: 265.79 | CN66: 151.2 | CO66: 208.86 | CP66: 30.68 | CQ66: 2.16
B68: 3 ДЕНЬ
B69: Завтрак
A70: ="-" -> - | B70: Батон | C70: 40 | D70: 3.08 | E70: 0 | F70: 1.2 | G70: 1.2 | H70: 21.32 | I70: 107.808 | J70: 0.2 | K70: 0 | L70: 0 | M70: 0 | N70: 1.32 | O70: 18.72 | P70: 1.28 | Q70: 0 | R70: 0 | S70: 0.12 | T70: 0.64 | U70: 171.6 | V70: 52.4 | W70: 8.8 | X70: 13.2 | Y70: 34 | Z70: 0.8 | AA70: 0 | AB70: 0 | AC70: 0 | AD70: 0.68 | AE70: 0.06 | AF70: 0.02 | AG70: 0.64 | AH70: 1.2 | AI70: 0 | AJ70: 0 | AK70: 148.8 | AL70: 154.4 | AM70: 236.4 | AN70: 79.6 | AO70: 46.8 | AP70: 93.6 | AQ70: 35.2 | AR70: 168 | AS70: 104.4 | AT70: 145.2 | AU70: 120.4 | AV70: 64.4 | AW70: 112 | AX70: 930 | AY70: 0 | AZ70: 302.8 | BA70: 132.4 | BB70: 88.8 | BC70: 69.2 | BD70: 0 | BE70: 0 | BF70: 0 | BG70: 0 | BH70: 0 | BI70: 0.01 | BJ70: 0 | BK70: 0.13 | BL70: 0 | BM70: 0.06 | BN70: 0 | BO70: 0 | BP70: 0 | BQ70: 0 | BR70: 0 | BS70: 0.47 | BT70: 0 | BU70: 0 | BV70: 0.35 | BW70: 0.01 | BX70: 0 | BY70: 0 | BZ70: 0 | CA70: 0 | CB70: 13.64 | CE70: 0 | CG70: 0 | CH70: 0 | CI70: 0 | CJ70: 665 | CK70: 256.2 | CL70: 460.6 | CM70: 5.32 | CN70: 5.32 | CO70: 5.32 | CP70: 0 | CQ70: 0
A71: ="4/13" -> 4/13 | B71: Сыр (порциями) | C71: 10 | D71: 2.63 | E71: 2.63 | F71: 2.66 | G71: 0 | H71: 0 | I71: 35.06 | J71: 1.53 | K71: 0 | L71: 0 | M71: 0 | N71: 0 | O71: 0 | P71: 0 | Q71: 0 | R71: 0 | S71: 0.2 | T71: 0.43 | U71: 110 | V71: 10 | W71: 100 | X71: 5.5 | Y71: 60 | Z71: 0.07 | AA71: 21 | AB71: 17 | AC71: 23.8 | AD71: 0.04 | AE71: 0 | AF71: 0.04 | AG71: 0.02 | AH71: 0.68 | AI71: 0.07 | AJ71: 0 | AK71: 157 | AL71: 117 | AM71: 230 | AN71: 158 | AO71: 56 | AP71: 95 | AQ71: 70 | AR71: 134 | AS71: 76 | AT71: 87 | AU71: 156 | AV71: 70 | AW71: 51 | AX71: 517 | AY71: 0 | AZ71: 273 | BA71: 129 | BB71: 139 | BC71: 21.5 | BD71: 0 | BE71: 0.01 | BF71: 0.04 | BG71: 0.11 | BH71: 0.13 | BI71: 0.33 | BJ71: 0.04 | BK71: 0.7 | BL71: 0.01 | BM71: 0.16 | BN71: 0.01 | BO71: 0 | BP71: 0 | BQ71: 0.05 | BR71: 0.07 | BS71: 0.52 | BT71: 0 | BU71: 0 | BV71: 0.07 | BW71: 0 | BX71: 0 | BY71: 0 | BZ71: 0 | CA71: 0 | CB71: 4.08 | CE71: 23.83 | CG71: 0.5 | CH71: 0.5 | CI71: 0.5 | CJ71: 500 | CK71: 370 | CL71: 435 | CM71: 1.53 | CN71: 0.97 | CO71: 1.25 | CP71: 0 | CQ71: 0
A72: ="27/10" -> 27/10 | B72: Чай | C72: 180 | D72: 0.18 | E72: 0 | F72: 0.04 | G72: 0.04 | H72: 8.93 | I72: 34.88157 | J72: 0 | K72: 0 | L72: 0 | M72: 0 | N72: 8.84 | O72: 0 | P72: 0.09 | Q72: 0 | R72: 0 | S72: 0 | T72: 0.06 | U72: 0.09 | V72: 0.27 | W72: 0.26 | X72: 0 | Y72: 0 | Z72: 0.03 | AA72: 0 | AB72: 0 | AC72: 0 | AD72: 0 | AE72: 0 | AF72: 0 | AG72: 0 | AH72: 0 | AI72: 0 | AJ72: 0 | AK72: 0 | AL72: 0 | AM72: 0 | AN72: 0 | AO72: 0 | AP72: 0 | AQ72: 0 | AR72: 0 | AS72: 0 | AT72: 0 | AU72: 0 | AV72: 0 | AW72: 0 | AX72: 0 | AY72: 0 | AZ72: 0 | BA72: 0 | BB72: 0 | BC72: 0 | BD72: 0 | BE72: 0 | BF72: 0 | BG72: 0 | BH72: 0 | BI72: 0 | BJ72: 0 | BK72: 0 | BL72: 0 | BM72: 0 | BN72: 0 | BO72: 0 | BP72: 0 | BQ72: 0 | BR72: 0 | BS72: 0 | BT72: 0 | BU72: 0 | BV72: 0 | BW72: 0 | BX72: 0 | BY72: 0 | BZ72: 0 | CA72: 0 | CB72: 180.09 | CE72: 0 | CG72: 3.14 | CH72: 3.14 | CI72: 3.14 | CJ72: 363.75 | CK72: 138 | CL72: 250.88 | CM72: 33.32 | CN72: 19.82 | CO72: 26.57 | CP72: 9 | CQ72: 0
A73: ="5/4" -> 5/4 | B73: Каша манная молочная с маслом сливочным | C73: 180 | D73: 4.78 | E73: 2.12 | F73: 4.13 | G73: 0.29 | H73: 26.59 | I73: 161.2651428 | J73: 2.98 | K73: 0.08 | L73: 0 | M73: 0 | N73: 7.69 | O73: 17.95 | P73: 0.94 | Q73: 0 | R73: 0 | S73: 0.07 | T73: 1.15 | U73: 211.64 | V73: 126.56 | W73: 83.44 | X73: 13.37 | Y73: 78.91 | Z73: 0.34 | AA73: 17.28 | AB73: 14.4 | AC73: 32.04 | AD73: 0.47 | AE73: 0.05 | AF73: 0.1 | AG73: 0.34 | AH73: 1.45 | AI73: 0.37 | AJ73: 0 | AK73: 134.07 | AL73: 123.21 | AM73: 221.86 | AN73: 70.56 | AO73: 42.54 | AP73: 86.87 | AQ73: 31.23 | AR73: 147.61 | AS73: 93.26 | AT73: 128.12 | AU73: 104.8 | AV73: 58.04 | AW73: 99.62 | AX73: 871.11 | AY73: 0 | AZ73: 283.17 | BA73: 145.31 | BB73: 74.52 | BC73: 59.9 | BD73: 0.09 | BE73: 0.04 | BF73: 0.02 | BG73: 0.05 | BH73: 0.05 | BI73: 0.25 | BJ73: 0 | BK73: 0.7 | BL73: 0 | BM73: 0.22 | BN73: 0 | BO73: 0 | BP73: 0 | BQ73: 0.05 | BR73: 0.07 | BS73: 0.57 | BT73: 0 | BU73: 0 | BV73: 0.03 | BW73: 0 | BX73: 0 | BY73: 0 | BZ73: 0 | CA73: 0 | CB73: 162.62 | CE73: 19.68 | CG73: 25.03 | CH73: 10.84 | CI73: 17.94 | CJ73: 1406.52 | CK73: 633.17 | CL73: 1019.85 | CM73: 32.82 | CN73: 17.15 | CO73: 24.99 | CP73: 4.5 | CQ73: 0.45
B74: Итого за 'Завтрак' | C74: =SUM(C70:C73) -> 410 | D74: 10.66 | E74: 4.75 | F74: 8.04 | G74: 1.53 | H74: 56.84 | I74: 339.01 | J74: 4.71 | K74: 0.08 | L74: 0 | M74: 0 | N74: 17.85 | O74: 36.67 | P74: 2.32 | Q74: 0 | R74: 0 | S74: 0.39 | T74: 2.28 | U74: 493.33 | V74: 189.22 | W74: 192.5 | X74: 32.07 | Y74: 172.91 | Z74: 1.24 | AA74: 38.28 | AB74: 31.4 | AC74: 55.84 | AD74: 1.19 | AE74: 0.12 | AF74: 0.16 | AG74: 1 | AH74: 3.33 | AI74: 0.44 | AJ74: 0 | AK74: 439.87 | AL74: 394.61 | AM74: 688.26 | AN74: 308.16 | AO74: 145.34 | AP74: 275.47 | AQ74: 136.43 | AR74: 449.61 | AS74: 273.66 | AT74: 360.32 | AU74: 381.2 | AV74: 192.44 | AW74: 262.62 | AX74: 2318.11 | AY74: 0 | AZ74: 858.97 | BA74: 406.71 | BB74: 302.32 | BC74: 150.6 | BD74: 0.09 | BE74: 0.05 | BF74: 0.06 | BG74: 0.16 | BH74: 0.19 | BI74: 0.59 | BJ74: 0.04 | BK74: 1.53 | BL74: 0.01 | BM74: 0.43 | BN74: 0.01 | BO74: 0 | BP74: 0 | BQ74: 0.1 | BR74: 0.15 | BS74: 1.56 | BT74: 0 | BU74: 0 | BV74: 0.45 | BW74: 0.01 | BX74: 0 | BY74: 0 | BZ74: 0 | CA74: 0 | CB74: 360.42 | CD74: =$I$74/#REF!*100 ->  | CE74: 43.51 | CG74: 28.67 | CH74: 14.48 | CI74: 21.58 | CJ74: 2935.27 | CK74: 1397.37 | CL74: 2166.32 | CM74: 72.99 | CN74: 43.26 | CO74: 58.12 | CP74: 13.5 | CQ74: 0.45
B75: 10:00
A76: ="1" -> 1 | B76: Кисель из концентрата | C76: 100 | D76: 0.05 | E76: 0 | F76: 0 | G76: 0 | H76: 13.15 | I76: 52.96821778 | J76: 0 | K76: 0 | L76: 0 | M76: 0 | N76: 3.8 | O76: 9.35 | P76: 0 | Q76: 0 | R76: 0 | S76: 0 | T76: 0 | U76: 0.04 | V76: 0.12 | W76: 0.11 | X76: 0 | Y76: 0 | Z76: 0.01 | AA76: 0 | AB76: 0 | AC76: 0 | AD76: 0 | AE76: 0 | AF76: 0 | AG76: 0 | AH76: 0 | AI76: 0 | AJ76: 0 | AK76: 0 | AL76: 0 | AM76: 0 | AN76: 0 | AO76: 0 | AP76: 0 | AQ76: 0 | AR76: 0 | AS76: 0 | AT76: 0 | AU76: 0 | AV76: 0 | AW76: 0 | AX76: 0 | AY76: 0 | AZ76: 0 | BA76: 0 | BB76: 0 | BC76: 0 | BD76: 0 | BE76: 0 | BF76: 0 | BG76: 0 | BH76: 0 | BI76: 0 | BJ76: 0 | BK76: 0 | BL76: 0 | BM76: 0 | BN76: 0 | BO76: 0 | BP76: 0 | BQ76: 0 | BR76: 0 | BS76: 0 | BT76: 0 | BU76: 0 | BV76: 0 | BW76: 0 | BX76: 0 | BY76: 0 | BZ76: 0 | CA76: 0 | CB76: 95.12 | CE76: 0 | CG76: 0 | CH76: 0 | CI76: 0 | CJ76: 0 | CK76: 0 | CL76: 0 | CM76: 0 | CN76: 0 | CO76: 0 | CP76: 3.89 | CQ76: 0
B77: Итого за '10:00' | C77: =SUM(C76) -> 100 | D77: 0.05 | E77: 0 | F77: 0 | G77: 0 | H77: 13.15 | I77: 52.97 | J77: 0 | K77: 0 | L77: 0 | M77: 0 | N77: 3.8 | O77: 9.35 | P77: 0 | Q77: 0 | R77: 0 | S77: 0 | T77: 0 | U77: 0.04 | V77: 0.12 | W77: 0.11 | X77: 0 | Y77: 0 | Z77: 0.01 | AA77: 0 | AB77: 0 | AC77: 0 | AD77: 0 | AE77: 0 | AF77: 0 | AG77: 0 | AH77: 0 | AI77: 0 | AJ77: 0 | AK77: 0 | AL77: 0 | AM77: 0 | AN77: 0 | AO77: 0 | AP77: 0 | AQ77: 0 | AR77: 0 | AS77: 0 | AT77: 0 | AU77: 0 | AV77: 0 | AW77: 0 | AX77: 0 | AY77: 0 | AZ77: 0 | BA77: 0 | BB77: 0 | BC77: 0 | BD77: 0 | BE77: 0 | BF77: 0 | BG77: 0 | BH77: 0 | BI77: 0 | BJ77: 0 | BK77: 0 | BL77: 0 | BM77: 0 | BN77: 0 | BO77: 0 | BP77: 0 | BQ77: 0 | BR77: 0 | BS77: 0 | BT77: 0 | BU77: 0 | BV77: 0 | BW77: 0 | BX77: 0 | BY77: 0 | BZ77: 0 | CA77: 0 | CB77: 95.12 | CD77: =$I$77/#REF!*100 ->  | CE77: 0 | CG77: 0 | CH77: 0 | CI77: 0 | CJ77: 0 | CK77: 0 | CL77: 0 | CM77: 0 | CN77: 0 | CO77: 0 | CP77: 3.89 | CQ77: 0
B78: Обед
A79: ="-" -> - | B79: Хлеб пшеничный | C79: 20 | D79: 1.32 | E79: 0 | F79: 0.13 | G79: 0.13 | H79: 9.38 | I79: 44.7802 | J79: 0 | K79: 0 | L79: 0 | M79: 0 | N79: 0.22 | O79: 9.12 | P79: 0.04 | Q79: 0 | R79: 0 | S79: 0 | T79: 0.36 | U79: 0 | V79: 0 | W79: 0 | X79: 0 | Y79: 0 | Z79: 0 | AA79: 0 | AB79: 0 | AC79: 0 | AD79: 0 | AE79: 0 | AF79: 0 | AG79: 0 | AH79: 0 | AI79: 0 | AJ79: 0 | AK79: 63.86 | AL79: 66.47 | AM79: 101.79 | AN79: 33.76 | AO79: 20.01 | AP79: 40.02 | AQ79: 15.14 | AR79: 72.38 | AS79: 44.89 | AT79: 62.64 | AU79: 51.68 | AV79: 27.14 | AW79: 48.02 | AX79: 401.59 | AY79: 0 | AZ79: 130.85 | BA79: 56.9 | BB79: 37.76 | BC79: 29.93 | BD79: 0 | BE79: 0 | BF79: 0 | BG79: 0 | BH79: 0 | BI79: 0 | BJ79: 0 | BK79: 0.02 | BL79: 0 | BM79: 0 | BN79: 0 | BO79: 0 | BP79: 0 | BQ79: 0 | BR79: 0 | BS79: 0.01 | BT79: 0 | BU79: 0 | BV79: 0.06 | BW79: 0 | BX79: 0 | BY79: 0 | BZ79: 0 | CA79: 0 | CB79: 7.82 | CE79: 0 | CG79: 0 | CH79: 0 | CI79: 0 | CJ79: 380 | CK79: 146.4 | CL79: 263.2 | CM79: 3.04 | CN79: 3.04 | CO79: 3.04 | CP79: 0 | CQ79: 0
A80: ="-" -> - | B80: Хлеб ржаной | C80: 20 | D80: 1.32 | E80: 0 | F80: 0.24 | G80: 0.24 | H80: 8.34 | I80: 38.676 | J80: 0.04 | K80: 0 | L80: 0 | M80: 0 | N80: 0.24 | O80: 6.44 | P80: 1.66 | Q80: 0 | R80: 0 | S80: 0.2 | T80: 0.5 | U80: 122 | V80: 49 | W80: 7 | X80: 9.4 | Y80: 31.6 | Z80: 0.78 | AA80: 0 | AB80: 1 | AC80: 0.2 | AD80: 0.28 | AE80: 0.04 | AF80: 0.02 | AG80: 0.14 | AH80: 0.4 | AI80: 0 | AJ80: 0 | AK80: 64.4 | AL80: 49.6 | AM80: 85.4 | AN80: 44.6 | AO80: 18.6 | AP80: 39.6 | AQ80: 16 | AR80: 74.2 | AS80: 59.4 | AT80: 58.2 | AU80: 92.8 | AV80: 24.8 | AW80: 62 | AX80: 311.8 | AY80: 0 | AZ80: 105.2 | BA80: 58.2 | BB80: 36 | BC80: 26 | BD80: 0 | BE80: 0 | BF80: 0 | BG80: 0 | BH80: 0 | BI80: 0 | BJ80: 0 | BK80: 0.03 | BL80: 0 | BM80: 0 | BN80: 0 | BO80: 0 | BP80: 0 | BQ80: 0 | BR80: 0 | BS80: 0.02 | BT80: 0 | BU80: 0 | BV80: 0.1 | BW80: 0.02 | BX80: 0 | BY80: 0 | BZ80: 0 | CA80: 0 | CB80: 9.4 | CE80: 0.17 | CG80: 1 | CH80: 1 | CI80: 1 | CJ80: 190 | CK80: 73.2 | CL80: 131.6 | CM80: 1.9 | CN80: 1.58 | CO80: 1.74 | CP80: 0 | CQ80: 0
A81: ="6/10" -> 6/10 | B81: Компот из сухофруктов | C81: 180 | D81: 0.92 | E81: 0 | F81: 0.05 | G81: 0.05 | H81: 20.86 | I81: 78.839028 | J81: 0.02 | K81: 0 | L81: 0 | M81: 0 | N81: 17.27 | O81: 0.51 | P81: 3.08 | Q81: 0 | R81: 0 | S81: 0.27 | T81: 0.73 | U81: 3.12 | V81: 306.24 | W81: 28.2 | X81: 17.96 | Y81: 24.44 | Z81: 0.58 | AA81: 0 | AB81: 567 | AC81: 104.94 | AD81: 0.99 | AE81: 0.02 | AF81: 0.03 | AG81: 0.46 | AH81: 0.7 | AI81: 0.29 | AJ81: 0 | AK81: 0.01 | AL81: 0.01 | AM81: 0.01 | AN81: 0.02 | AO81: 0 | AP81: 0.01 | AQ81: 0 | AR81: 0.01 | AS81: 0.01 | AT81: 0.01 | AU81: 0.05 | AV81: 0 | AW81: 0.01 | AX81: 0.02 | AY81: 0 | AZ81: 0.01 | BA81: 0.01 | BB81: 0.01 | BC81: 0 | BD81: 0 | BE81: 0 | BF81: 0 | BG81: 0 | BH81: 0 | BI81: 0 | BJ81: 0 | BK81: 0 | BL81: 0 | BM81: 0 | BN81: 0 | BO81: 0 | BP81: 0 | BQ81: 0 | BR81: 0 | BS81: 0.01 | BT81: 0 | BU81: 0 | BV81: 0.01 | BW81: 0 | BX81: 0 | BY81: 0 | BZ81: 0 | CA81: 0 | CB81: 192.61 | CE81: 94.5 | CG81: 3.95 | CH81: 3.95 | CI81: 3.95 | CJ81: 454.5 | CK81: 172.98 | CL81: 313.74 | CM81: 41.94 | CN81: 24.93 | CO81: 33.44 | CP81: 9 | CQ81: 0
A82: ="49/1" -> 49/1 | B82: Салат из отварного картофеля, моркови, свеклы с репчатым луком, соленым огурцом и растительным маслом | C82: 50 | D82: 0.72 | E82: 0 | F82: 3.04 | G82: 3.04 | H82: 5.27 | I82: 50.01001103 | J82: 0.4 | K82: 1.95 | L82: 0 | M82: 0 | N82: 1.77 | O82: 2.69 | P82: 0.81 | Q82: 0 | R82: 0 | S82: 0.12 | T82: 0.94 | U82: 176.38 | V82: 141.01 | W82: 10.68 | X82: 9.54 | Y82: 21.88 | Z82: 0.42 | AA82: 0 | AB82: 461.12 | AC82: 92.17 | AD82: 1.39 | AE82: 0.02 | AF82: 0.02 | AG82: 0.26 | AH82: 0.5 | AI82: 1.98 | AJ82: 0 | AK82: 13.68 | AL82: 16.44 | AM82: 20.02 | AN82: 23.87 | AO82: 4.68 | AP82: 15.61 | AQ82: 5.73 | AR82: 14.68 | AS82: 16.91 | AT82: 39.03 | AU82: 51.8 | AV82: 4.63 | AW82: 12.72 | AX82: 78.68 | AY82: 0 | AZ82: 11.61 | BA82: 12.79 | BB82: 11.41 | BC82: 4.45 | BD82: 0 | BE82: 0 | BF82: 0 | BG82: 0 | BH82: 0 | BI82: 0 | BJ82: 0 | BK82: 0.2 | BL82: 0 | BM82: 0.12 | BN82: 0.01 | BO82: 0.02 | BP82: 0 | BQ82: 0 | BR82: 0 | BS82: 0.73 | BT82: 0 | BU82: 0 | BV82: 1.75 | BW82: 0 | BX82: 0 | BY82: 0 | BZ82: 0 | CA82: 0 | CB82: 40.69 | CE82: 76.85 | CG82: 10 | CH82: 5.93 | CI82: 7.96 | CJ82: 256.13 | CK82: 105.88 | CL82: 181.01 | CM82: 4.17 | CN82: 1.21 | CO82: 2.69 | CP82: 0 | CQ82: 0.25
A83: ="11/2" -> 11/2 | B83: Рассольник с крупой на говяжьем бульоне | C83: 180 | D83: 1.55 | E83: 5.86 | F83: 3.41 | G83: 3.88 | H83: 12.36 | I83: 85.0525596 | J83: 0.51 | K83: 2.34 | L83: 0 | M83: 0 | N83: 1.53 | O83: 9.55 | P83: 1.28 | Q83: 0 | R83: 0 | S83: 0.21 | T83: 1.51 | U83: 264.06 | V83: 307.01 | W83: 12 | X83: 16.26 | Y83: 45.18 | Z83: 0.61 | AA83: 0 | AB83: 702.43 | AC83: 146.16 | AD83: 1.72 | AE83: 0.06 | AF83: 0.04 | AG83: 0.69 | AH83: 1.22 | AI83: 4.82 | AJ83: 0 | AK83: 30.86 | AL83: 35.97 | AM83: 47.99 | AN83: 45.82 | AO83: 10.36 | AP83: 31.71 | AQ83: 14.59 | AR83: 40.2 | AS83: 43.52 | AT83: 93.47 | AU83: 64.64 | AV83: 13.14 | AW83: 32.59 | AX83: 235.97 | AY83: 0 | AZ83: 49.75 | BA83: 29.81 | BB83: 23.89 | BC83: 13.16 | BD83: 0 | BE83: 0 | BF83: 0 | BG83: 0 | BH83: 0 | BI83: 0 | BJ83: 0 | BK83: 0.24 | BL83: 0 | BM83: 0.14 | BN83: 0.01 | BO83: 0.02 | BP83: 0 | BQ83: 0 | BR83: 0 | BS83: 0.83 | BT83: 0 | BU83: 0 | BV83: 2.18 | BW83: 0 | BX83: 0 | BY83: 0 | BZ83: 0 | CA83: 0 | CB83: 197.32 | CE83: 117.07 | CG83: 21.17 | CH83: 13.5 | CI83: 17.33 | CJ83: 786.36 | CK83: 417.25 | CL83: 601.8 | CM83: 40.53 | CN83: 19.87 | CO83: 30.2 | CP83: 0 | CQ83: 0.36
A84: ="39/3" -> 39/3 | B84: Каша гречневая рассыпчатая | C84: 150 | D84: 6.58 | E84: 0 | F84: 1.72 | G84: 1.72 | H84: 34.47 | I84: 170.9136495 | J84: 0.32 | K84: 0 | L84: 0 | M84: 0 | N84: 0.73 | O84: 28.03 | P84: 5.72 | Q84: 0 | R84: 0 | S84: 0 | T84: 1.28 | U84: 145.29 | V84: 200.36 | W84: 11.67 | X84: 101.25 | Y84: 147.84 | Z84: 3.47 | AA84: 0 | AB84: 4.79 | AC84: 1.07 | AD84: 0.43 | AE84: 0.19 | AF84: 0.1 | AG84: 1.9 | AH84: 3.83 | AI84: 0 | AJ84: 0 | AK84: 307.89 | AL84: 240.05 | AM84: 388.78 | AN84: 276.58 | AO84: 166.99 | AP84: 208.74 | AQ84: 93.93 | AR84: 308.94 | AS84: 302.67 | AT84: 584.47 | AU84: 575.08 | AV84: 156.56 | AW84: 375.73 | AX84: 1179.38 | AY84: 0 | AZ84: 260.93 | BA84: 316.24 | BB84: 224.4 | BC84: 172.21 | BD84: 0 | BE84: 0 | BF84: 0 | BG84: 0 | BH84: 0 | BI84: 0.01 | BJ84: 0 | BK84: 0.28 | BL84: 0 | BM84: 0.02 | BN84: 0.01 | BO84: 0 | BP84: 0 | BQ84: 0 | BR84: 0.01 | BS84: 0.56 | BT84: 0.01 | BU84: 0 | BV84: 0.55 | BW84: 0.05 | BX84: 0 | BY84: 0 | BZ84: 0 | CA84: 0 | CB84: 87.71 | CE84: 0.8 | CG84: 18.36 | CH84: 10.86 | CI84: 14.61 | CJ84: 2084.07 | CK84: 1025.55 | CL84: 1554.81 | CM84: 30.49 | CN84: 20.28 | CO84: 25.39 | CP84: 0 | CQ84: 0.38
A85: ="2/9" -> 2/9 | B85: Мясо птицы отварное в соусе | C85: 70 | D85: 8.15 | E85: 7.93 | F85: 7.83 | G85: 0.02 | H85: 1.7 | I85: 109.76812 | J85: 3.12 | K85: 0.05 | L85: 0 | M85: 0 | N85: 0.16 | O85: 1.43 | P85: 0.12 | Q85: 0 | R85: 0 | S85: 0 | T85: 0.79 | U85: 101.84 | V85: 54.66 | W85: 8.27 | X85: 6.98 | Y85: 58.24 | Z85: 0.66 | AA85: 21.11 | AB85: 11.13 | AC85: 44.23 | AD85: 0.3 | AE85: 0.02 | AF85: 0.05 | AG85: 3 | AH85: 6.11 | AI85: 0.3 | AJ85: 0 | AK85: 390.93 | AL85: 310.15 | AM85: 630.47 | AN85: 692.84 | AO85: 207.96 | AP85: 378.44 | AQ85: 130.07 | AR85: 333.66 | AS85: 508.56 | AT85: 540.56 | AU85: 716.5 | AV85: 215.71 | AW85: 604.35 | AX85: 1182.86 | AY85: 65.64 | AZ85: 400.47 | BA85: 383.88 | BB85: 284.16 | BC85: 101.34 | BD85: 0.04 | BE85: 0.02 | BF85: 0.01 | BG85: 0.02 | BH85: 0.03 | BI85: 0.13 | BJ85: 0 | BK85: 0.35 | BL85: 0 | BM85: 0.11 | BN85: 0 | BO85: 0 | BP85: 0 | BQ85: 0.02 | BR85: 0.04 | BS85: 0.29 | BT85: 0 | BU85: 0 | BV85: 0.02 | BW85: 0 | BX85: 0 | BY85: 0 | BZ85: 0 | CA85: 0 | CB85: 70.76 | CE85: 22.96 | CG85: 18.41 | CH85: 9.17 | CI85: 13.79 | CJ85: 1701.19 | CK85: 1051.77 | CL85: 1376.48 | CM85: 19.31 | CN85: 12.75 | CO85: 16.05 | CP85: 0 | CQ85: 0.35
B86: Итого за 'Обед' | C86: =SUM(C79:C85) -> 670 | D86: 20.55 | E86: 13.79 | F86: 16.43 | G86: 9.09 | H86: 92.38 | I86: 578.04 | J86: 4.41 | K86: 4.34 | L86: 0 | M86: 0 | N86: 21.92 | O86: 57.76 | P86: 12.7 | Q86: 0 | R86: 0 | S86: 0.81 | T86: 6.11 | U86: 812.69 | V86: 1058.27 | W86: 77.82 | X86: 161.38 | Y86: 329.19 | Z86: 6.52 | AA86: 21.11 | AB86: 1747.48 | AC86: 388.76 | AD86: 5.11 | AE86: 0.35 | AF86: 0.25 | AG86: 6.45 | AH86: 12.77 | AI86: 7.39 | AJ86: 0 | AK86: 871.63 | AL86: 718.69 | AM86: 1274.45 | AN86: 1117.49 | AO86: 428.59 | AP86: 714.12 | AQ86: 275.46 | AR86: 844.07 | AS86: 975.97 | AT86: 1378.38 | AU86: 1552.55 | AV86: 441.98 | AW86: 1135.42 | AX86: 3390.31 | AY86: 65.64 | AZ86: 958.82 | BA86: 857.83 | BB86: 617.62 | BC86: 347.1 | BD86: 0.04 | BE86: 0.02 | BF86: 0.01 | BG86: 0.02 | BH86: 0.03 | BI86: 0.13 | BJ86: 0 | BK86: 1.11 | BL86: 0 | BM86: 0.39 | BN86: 0.03 | BO86: 0.04 | BP86: 0 | BQ86: 0.02 | BR86: 0.05 | BS86: 2.45 | BT86: 0.01 | BU86: 0 | BV86: 4.66 | BW86: 0.07 | BX86: 0 | BY86: 0 | BZ86: 0 | CA86: 0 | CB86: 606.31 | CD86: =$I$86/#REF!*100 ->  | CE86: 312.35 | CG86: 72.89 | CH86: 44.41 | CI86: 58.65 | CJ86: 5852.25 | CK86: 2993.03 | CL86: 4422.64 | CM86: 141.39 | CN86: 83.66 | CO86: 112.54 | CP86: 9 | CQ86: 1.34
B87: Ужин
A88: ="-" -> - | B88: Хлеб пшеничный | C88: 20 | D88: 1.32 | E88: 0 | F88: 0.13 | G88: 0.13 | H88: 9.38 | I88: 44.7802 | J88: 0 | K88: 0 | L88: 0 | M88: 0 | N88: 0.22 | O88: 9.12 | P88: 0.04 | Q88: 0 | R88: 0 | S88: 0 | T88: 0.36 | U88: 0 | V88: 0 | W88: 0 | X88: 0 | Y88: 0 | Z88: 0 | AA88: 0 | AB88: 0 | AC88: 0 | AD88: 0 | AE88: 0 | AF88: 0 | AG88: 0 | AH88: 0 | AI88: 0 | AJ88: 0 | AK88: 63.86 | AL88: 66.47 | AM88: 101.79 | AN88: 33.76 | AO88: 20.01 | AP88: 40.02 | AQ88: 15.14 | AR88: 72.38 | AS88: 44.89 | AT88: 62.64 | AU88: 51.68 | AV88: 27.14 | AW88: 48.02 | AX88: 401.59 | AY88: 0 | AZ88: 130.85 | BA88: 56.9 | BB88: 37.76 | BC88: 29.93 | BD88: 0 | BE88: 0 | BF88: 0 | BG88: 0 | BH88: 0 | BI88: 0 | BJ88: 0 | BK88: 0.02 | BL88: 0 | BM88: 0 | BN88: 0 | BO88: 0 | BP88: 0 | BQ88: 0 | BR88: 0 | BS88: 0.01 | BT88: 0 | BU88: 0 | BV88: 0.06 | BW88: 0 | BX88: 0 | BY88: 0 | BZ88: 0 | CA88: 0 | CB88: 7.82 | CE88: 0 | CG88: 0 | CH88: 0 | CI88: 0 | CJ88: 665 | CK88: 256.2 | CL88: 460.6 | CM88: 5.32 | CN88: 5.32 | CO88: 5.32 | CP88: 0 | CQ88: 0
A89: ="-" -> - | B89: Хлеб ржаной | C89: 20 | D89: 1.32 | E89: 0 | F89: 0.24 | G89: 0.24 | H89: 8.34 | I89: 38.676 | J89: 0.04 | K89: 0 | L89: 0 | M89: 0 | N89: 0.24 | O89: 6.44 | P89: 1.66 | Q89: 0 | R89: 0 | S89: 0.2 | T89: 0.5 | U89: 122 | V89: 49 | W89: 7 | X89: 9.4 | Y89: 31.6 | Z89: 0.78 | AA89: 0 | AB89: 1 | AC89: 0.2 | AD89: 0.28 | AE89: 0.04 | AF89: 0.02 | AG89: 0.14 | AH89: 0.4 | AI89: 0 | AJ89: 0 | AK89: 64.4 | AL89: 49.6 | AM89: 85.4 | AN89: 44.6 | AO89: 18.6 | AP89: 39.6 | AQ89: 16 | AR89: 74.2 | AS89: 59.4 | AT89: 58.2 | AU89: 92.8 | AV89: 24.8 | AW89: 62 | AX89: 311.8 | AY89: 0 | AZ89: 105.2 | BA89: 58.2 | BB89: 36 | BC89: 26 | BD89: 0 | BE89: 0 | BF89: 0 | BG89: 0 | BH89: 0 | BI89: 0 | BJ89: 0 | BK89: 0.03 | BL89: 0 | BM89: 0 | BN89: 0 | BO89: 0 | BP89: 0 | BQ89: 0 | BR89: 0 | BS89: 0.02 | BT89: 0 | BU89: 0 | BV89: 0.1 | BW89: 0.02 | BX89: 0 | BY89: 0 | BZ89: 0 | CA89: 0 | CB89: 9.4 | CE89: 0.17 | CG89: 1.5 | CH89: 1.5 | CI89: 1.5 | CJ89: 285 | CK89: 109.8 | CL89: 197.4 | CM89: 2.85 | CN89: 2.37 | CO89: 2.61 | CP89: 0 | CQ89: 0
A90: ="27/10" -> 27/10 | B90: Чай (вариант 2) | C90: 180 | D90: 0.18 | E90: 0 | F90: 0.04 | G90: 0.04 | H90: 4.53 | I90: 18.157086 | J90: 0 | K90: 0 | L90: 0 | M90: 0 | N90: 4.44 | O90: 0 | P90: 0.09 | Q90: 0 | R90: 0 | S90: 0 | T90: 0.05 | U90: 0.04 | V90: 0.13 | W90: 0.13 | X90: 0 | Y90: 0 | Z90: 0.01 | AA90: 0 | AB90: 0 | AC90: 0 | AD90: 0 | AE90: 0 | AF90: 0 | AG90: 0 | AH90: 0 | AI90: 0 | AJ90: 0 | AK90: 0 | AL90: 0 | AM90: 0 | AN90: 0 | AO90: 0 | AP90: 0 | AQ90: 0 | AR90: 0 | AS90: 0 | AT90: 0 | AU90: 0 | AV90: 0 | AW90: 0 | AX90: 0 | AY90: 0 | AZ90: 0 | BA90: 0 | BB90: 0 | BC90: 0 | BD90: 0 | BE90: 0 | BF90: 0 | BG90: 0 | BH90: 0 | BI90: 0 | BJ90: 0 | BK90: 0 | BL90: 0 | BM90: 0 | BN90: 0 | BO90: 0 | BP90: 0 | BQ90: 0 | BR90: 0 | BS90: 0 | BT90: 0 | BU90: 0 | BV90: 0 | BW90: 0 | BX90: 0 | BY90: 0 | BZ90: 0 | CA90: 0 | CB90: 180.08 | CE90: 0 | CG90: 3.07 | CH90: 3.07 | CI90: 3.07 | CJ90: 331.88 | CK90: 130.5 | CL90: 231.19 | CM90: 33.01 | CN90: 19.51 | CO90: 26.26 | CP90: 4.5 | CQ90: 0
A91: ="9/194" -> 9/194 | B91: Фруктовый плов с изюмом | C91: 180 | D91: 4.35 | E91: 0.09 | F91: 15.01 | G91: 6.7 | H91: 51.8 | I91: 353.687949 | J91: 6.44 | K91: 4.35 | L91: 0 | M91: 0 | N91: 16.05 | O91: 32.5 | P91: 3.25 | Q91: 0 | R91: 0 | S91: 0.15 | T91: 1.59 | U91: 15.57 | V91: 155.39 | W91: 21.74 | X91: 37.86 | Y91: 97.76 | Z91: 0.87 | AA91: 46.8 | AB91: 3919.59 | AC91: 772.65 | AD91: 3.26 | AE91: 0.06 | AF91: 0.06 | AG91: 0.99 | AH91: 2.06 | AI91: 1.51 | AJ91: 0 | AK91: 212.62 | AL91: 168.41 | AM91: 308.6 | AN91: 137.82 | AO91: 78.51 | AP91: 126.76 | AQ91: 53.62 | AR91: 185.46 | AS91: 199.94 | AT91: 251.38 | AU91: 301.84 | AV91: 86.96 | AW91: 159.76 | AX91: 649.59 | AY91: 0 | AZ91: 167.45 | BA91: 169.19 | BB91: 144.18 | BC91: 68.22 | BD91: 0.31 | BE91: 0.14 | BF91: 0.08 | BG91: 0.17 | BH91: 0.2 | BI91: 0.92 | BJ91: 0 | BK91: 3 | BL91: 0 | BM91: 1.05 | BN91: 0.02 | BO91: 0.04 | BP91: 0 | BQ91: 0.18 | BR91: 0.27 | BS91: 3.68 | BT91: 0 | BU91: 0 | BV91: 3.85 | BW91: 0.01 | BX91: 0 | BY91: 0 | BZ91: 0 | CA91: 0 | CB91: 160.61 | CE91: 700.07 | CG91: 3.47 | CH91: 3.47 | CI91: 3.47 | CJ91: 2163.78 | CK91: 954 | CL91: 1558.89 | CM91: 8.6 | CN91: 3.34 | CO91: 5.97 | CP91: 0 | CQ91: 0
B92: Итого за 'Ужин' | C92: =SUM(C88:C91) -> 400 | D92: 7.17 | E92: 0.09 | F92: 15.43 | G92: 7.12 | H92: 74.05 | I92: 455.3 | J92: 6.48 | K92: 4.35 | L92: 0 | M92: 0 | N92: 20.94 | O92: 48.06 | P92: 5.04 | Q92: 0 | R92: 0 | S92: 0.35 | T92: 2.5 | U92: 137.61 | V92: 204.52 | W92: 28.87 | X92: 47.26 | Y92: 129.36 | Z92: 1.67 | AA92: 46.8 | AB92: 3920.59 | AC92: 772.85 | AD92: 3.54 | AE92: 0.1 | AF92: 0.07 | AG92: 1.13 | AH92: 2.46 | AI92: 1.51 | AJ92: 0 | AK92: 340.88 | AL92: 284.48 | AM92: 495.79 | AN92: 216.18 | AO92: 117.12 | AP92: 206.38 | AQ92: 84.76 | AR92: 332.04 | AS92: 304.23 | AT92: 372.22 | AU92: 446.32 | AV92: 138.9 | AW92: 269.78 | AX92: 1362.99 | AY92: 0 | AZ92: 403.49 | BA92: 284.29 | BB92: 217.94 | BC92: 124.15 | BD92: 0.31 | BE92: 0.14 | BF92: 0.08 | BG92: 0.17 | BH92: 0.2 | BI92: 0.92 | BJ92: 0 | BK92: 3.05 | BL92: 0 | BM92: 1.06 | BN92: 0.02 | BO92: 0.04 | BP92: 0 | BQ92: 0.18 | BR92: 0.27 | BS92: 3.71 | BT92: 0 | BU92: 0 | BV92: 4 | BW92: 0.03 | BX92: 0 | BY92: 0 | BZ92: 0 | CA92: 0 | CB92: 357.91 | CD92: =$I$92/#REF!*100 ->  | CE92: 700.23 | CG92: 8.04 | CH92: 8.04 | CI92: 8.04 | CJ92: 3445.66 | CK92: 1450.5 | CL92: 2448.08 | CM92: 49.78 | CN92: 30.54 | CO92: 40.16 | CP92: 4.5 | CQ92: 0
B93: Итого за день | C93: =C74+C77+C86+C92 -> 1580 | D93: =D74+D77+D86+D92 -> 38.43 | E93: 18.63 | F93: 39.9 | G93: 17.74 | H93: 236.42 | I93: 1425.32 | J93: 15.6 | K93: 8.77 | L93: 0 | M93: 0 | N93: 64.51 | O93: 151.84 | P93: 20.06 | Q93: 0 | R93: 0 | S93: 1.55 | T93: 10.89 | U93: 1443.67 | V93: 1452.13 | W93: 299.3 | X93: 240.71 | Y93: 631.46 | Z93: 9.44 | AA93: 106.19 | AB93: 5699.47 | AC93: 1217.45 | AD93: 9.84 | AE93: 0.57 | AF93: 0.48 | AG93: 8.58 | AH93: 18.56 | AI93: 9.34 | AJ93: 0 | AK93: 1652.38 | AL93: 1397.78 | AM93: 2458.5 | AN93: 1641.83 | AO93: 691.05 | AP93: 1195.97 | AQ93: 496.65 | AR93: 1625.72 | AS93: 1553.86 | AT93: 2110.92 | AU93: 2380.07 | AV93: 773.32 | AW93: 1667.82 | AX93: 7071.41 | AY93: 65.64 | AZ93: 2221.28 | BA93: 1548.83 | BB93: 1137.88 | BC93: 621.85 | BD93: 0.44 | BE93: 0.21 | BF93: 0.15 | BG93: 0.35 | BH93: 0.42 | BI93: 1.64 | BJ93: 0.04 | BK93: 5.69 | BL93: 0.01 | BM93: 1.88 | BN93: 0.06 | BO93: 0.08 | BP93: =BP74+BP77+BP86+BP92 -> 0 | BQ93: 0.3 | BR93: 0.47 | BS93: 7.72 | BT93: 0.01 | BU93: 0 | BV93: 9.11 | BW93: 0.11 | BX93: 0 | BY93: 0 | BZ93: 0 | CA93: 0 | CB93: 1419.76 | CC93: 0 | CE93: 1056.09 | CF93: 0 | CG93: 109.6 | CH93: 66.93 | CI93: 88.27 | CJ93: 12233.18 | CK93: 5840.9 | CL93: 9037.04 | CM93: 264.16 | CN93: 157.46 | CO93: 210.82 | CP93: 30.89 | CQ93: 1.79
B95: 4 ДЕНЬ
B96: Завтрак
A97: ="-" -> - | B97: Батон | C97: 40 | D97: 3.08 | E97: 0 | F97: 1.2 | G97: 1.2 | H97: 21.32 | I97: 107.808 | J97: 0.2 | K97: 0 | L97: 0 | M97: 0 | N97: 1.32 | O97: 18.72 | P97: 1.28 | Q97: 0 | R97: 0 | S97: 0.12 | T97: 0.64 | U97: 171.6 | V97: 52.4 | W97: 8.8 | X97: 13.2 | Y97: 34 | Z97: 0.8 | AA97: 0 | AB97: 0 | AC97: 0 | AD97: 0.68 | AE97: 0.06 | AF97: 0.02 | AG97: 0.64 | AH97: 1.2 | AI97: 0 | AJ97: 0 | AK97: 148.8 | AL97: 154.4 | AM97: 236.4 | AN97: 79.6 | AO97: 46.8 | AP97: 93.6 | AQ97: 35.2 | AR97: 168 | AS97: 104.4 | AT97: 145.2 | AU97: 120.4 | AV97: 64.4 | AW97: 112 | AX97: 930 | AY97: 0 | AZ97: 302.8 | BA97: 132.4 | BB97: 88.8 | BC97: 69.2 | BD97: 0 | BE97: 0 | BF97: 0 | BG97: 0 | BH97: 0 | BI97: 0.01 | BJ97: 0 | BK97: 0.13 | BL97: 0 | BM97: 0.06 | BN97: 0 | BO97: 0 | BP97: 0 | BQ97: 0 | BR97: 0 | BS97: 0.47 | BT97: 0 | BU97: 0 | BV97: 0.35 | BW97: 0.01 | BX97: 0 | BY97: 0 | BZ97: 0 | CA97: 0 | CB97: 13.64 | CE97: 0 | CG97: 0 | CH97: 0 | CI97: 0 | CJ97: 665 | CK97: 256.2 | CL97: 460.6 | CM97: 5.32 | CN97: 5.32 | CO97: 5.32 | CP97: 0 | CQ97: 0
A98: ="" ->  | B98: Масло сливочное | C98: 5 | D98: 0.04 | E98: 0.04 | F98: 3.63 | G98: 0 | H98: 0.07 | I98: 33.032 | J98: 2.36 | K98: 0.11 | L98: 0 | M98: 0 | N98: 0.07 | O98: 0 | P98: 0 | Q98: 0 | R98: 0 | S98: 0 | T98: 0.07 | U98: 0.75 | V98: 1.5 | W98: 1.2 | X98: 0 | Y98: 1.5 | Z98: 0.01 | AA98: 20 | AB98: 15 | AC98: 22.5 | AD98: 0.05 | AE98: 0 | AF98: 0.01 | AG98: 0.01 | AH98: 0.01 | AI98: 0 | AJ98: 0 | AK98: 2.1 | AL98: 2.05 | AM98: 3.8 | AN98: 2.25 | AO98: 0.85 | AP98: 2.35 | AQ98: 2.15 | AR98: 2.1 | AS98: 1.8 | AT98: 1.3 | AU98: 2.85 | AV98: 1.75 | AW98: 1.2 | AX98: 7.1 | AY98: 0 | AZ98: 2.4 | BA98: 2.7 | BB98: 2.1 | BC98: 0.5 | BD98: 0.13 | BE98: 0.06 | BF98: 0.03 | BG98: 0.08 | BH98: 0.09 | BI98: 0.4 | BJ98: 0 | BK98: 1.1 | BL98: 0 | BM98: 0.34 | BN98: 0 | BO98: 0 | BP98: 0 | BQ98: 0.08 | BR98: 0.12 | BS98: 0.9 | BT98: 0 | BU98: 0 | BV98: 0.05 | BW98: 0 | BX98: 0 | BY98: 0 | BZ98: 0 | CA98: 0 | CB98: 1.25 | CE98: 22.5 | CG98: 0.2 | CH98: 0.05 | CI98: 0.13 | CJ98: 10 | CK98: 4.1 | CL98: 7.05 | CM98: 0.86 | CN98: 0.44 | CO98: 0.65 | CP98: 0 | CQ98: 0
A99: ="-" -> - | B99: Печенье | C99: 20 | D99: 1.5 | E99: 0 | F99: 1.96 | G99: 0 | H99: 15.34 | I99: 84.452 | J99: 0.42 | K99: 0 | L99: 0 | M99: 0 | N99: 4.72 | O99: 10.16 | P99: 0.46 | Q99: 0 | R99: 0 | S99: 0.1 | T99: 0.2 | U99: 66 | V99: 22 | W99: 5.8 | X99: 4 | Y99: 18 | Z99: 0.42 | AA99: 2 | AB99: 1.6 | AC99: 2.2 | AD99: 0.7 | AE99: 0.02 | AF99: 0.01 | AG99: 0.14 | AH99: 0.38 | AI99: 0 | AJ99: 0 | AK99: 249.4 | AL99: 185.2 | AM99: 318.8 | AN99: 286.6 | AO99: 87.6 | AP99: 162.4 | AQ99: 47.6 | AR99: 185.6 | AS99: 0 | AT99: 0 | AU99: 0 | AV99: 87.8 | AW99: 0 | AX99: 0 | AY99: 0 | AZ99: 0 | BA99: 0 | BB99: 0 | BC99: 0 | BD99: 0 | BE99: 0 | BF99: 0 | BG99: 0 | BH99: 0 | BI99: 0 | BJ99: 0 | BK99: 0 | BL99: 0 | BM99: 0 | BN99: 0 | BO99: 0 | BP99: 0 | BQ99: 0 | BR99: 0 | BS99: 0 | BT99: 0 | BU99: 0 | BV99: 0 | BW99: 0 | BX99: 0 | BY99: 0 | BZ99: 0 | CA99: 0 | CB99: 0.9 | CE99: 2.27 | CG99: 1.26 | CH99: 1.26 | CI99: 1.26 | CJ99: 648 | CK99: 414 | CL99: 531 | CM99: 6.16 | CN99: 6.16 | CO99: 6.16 | CP99: 0 | CQ99: 0
A100: ="27/10" -> 27/10 | B100: Чай (вариант 2) | C100: 180 | D100: 0.18 | E100: 0 | F100: 0.04 | G100: 0.04 | H100: 4.53 | I100: 18.157086 | J100: 0 | K100: 0 | L100: 0 | M100: 0 | N100: 4.44 | O100: 0 | P100: 0.09 | Q100: 0 | R100: 0 | S100: 0 | T100: 0.05 | U100: 0.04 | V100: 0.13 | W100: 0.13 | X100: 0 | Y100: 0 | Z100: 0.01 | AA100: 0 | AB100: 0 | AC100: 0 | AD100: 0 | AE100: 0 | AF100: 0 | AG100: 0 | AH100: 0 | AI100: 0 | AJ100: 0 | AK100: 0 | AL100: 0 | AM100: 0 | AN100: 0 | AO100: 0 | AP100: 0 | AQ100: 0 | AR100: 0 | AS100: 0 | AT100: 0 | AU100: 0 | AV100: 0 | AW100: 0 | AX100: 0 | AY100: 0 | AZ100: 0 | BA100: 0 | BB100: 0 | BC100: 0 | BD100: 0 | BE100: 0 | BF100: 0 | BG100: 0 | BH100: 0 | BI100: 0 | BJ100: 0 | BK100: 0 | BL100: 0 | BM100: 0 | BN100: 0 | BO100: 0 | BP100: 0 | BQ100: 0 | BR100: 0 | BS100: 0 | BT100: 0 | BU100: 0 | BV100: 0 | BW100: 0 | BX100: 0 | BY100: 0 | BZ100: 0 | CA100: 0 | CB100: 180.08 | CE100: 0 | CG100: 3.07 | CH100: 3.07 | CI100: 3.07 | CJ100: 331.88 | CK100: 130.5 | CL100: 231.19 | CM100: 33.01 | CN100: 19.51 | CO100: 26.26 | CP100: 4.5 | CQ100: 0
A101: ="16/4" -> 16/4 | B101: Каша пшеничная молочная с маслом сливочным | C101: 180 | D101: 5.88 | E101: 2.12 | F101: 4.93 | G101: 1.19 | H101: 29.36 | I101: 183.8574648 | J101: 3.03 | K101: 0.08 | L101: 0 | M101: 0 | N101: 7.01 | O101: 21.16 | P101: 1.18 | Q101: 0 | R101: 0 | S101: 0.07 | T101: 1.4 | U101: 214.37 | V101: 160.43 | W101: 86.9 | X101: 34.85 | Y101: 130.58 | Z101: 0.94 | AA101: 17.28 | AB101: 20.16 | AC101: 33.12 | AD101: 0.14 | AE101: 0.13 | AF101: 0.1 | AG101: 0.52 | AH101: 2.24 | AI101: 0.37 | AJ101: 0 | AK101: 160.47 | AL101: 146.9 | AM101: 521.68 | AN101: 98.98 | AO101: 100.74 | AP101: 136.95 | AQ101: 62.37 | AR101: 197.69 | AS101: 365 | AT101: 144.7 | AU101: 221.89 | AV101: 89.17 | AW101: 102.33 | AX101: 756.05 | AY101: 0 | AZ101: 275.73 | BA101: 238.71 | BB101: 140.17 | BC101: 61.25 | BD101: 0.09 | BE101: 0.04 | BF101: 0.02 | BG101: 0.05 | BH101: 0.05 | BI101: 0.25 | BJ101: 0 | BK101: 0.78 | BL101: 0 | BM101: 0.23 | BN101: 0.01 | BO101: 0 | BP101: 0 | BQ101: 0.05 | BR101: 0.08 | BS101: 0.74 | BT101: 0 | BU101: 0 | BV101: 0.69 | BW101: 0.01 | BX101: 0 | BY101: 0 | BZ101: 0 | CA101: 0 | CB101: 149.22 | CE101: 20.64 | CG101: 27.9 | CH101: 13.75 | CI101: 20.82 | CJ101: 1911.3 | CK101: 875.79 | CL101: 1393.55 | CM101: 32.9 | CN101: 16.97 | CO101: 24.94 | CP101: 3.6 | CQ101: 0.45
B102: Итого за 'Завтрак' | C102: =SUM(C97:C101) -> 425 | D102: 10.68 | E102: 2.16 | F102: 11.76 | G102: 2.43 | H102: 70.61 | I102: 427.31 | J102: 6 | K102: 0.19 | L102: 0 | M102: 0 | N102: 17.56 | O102: 50.04 | P102: 3.01 | Q102: 0 | R102: 0 | S102: 0.29 | T102: 2.37 | U102: 452.77 | V102: 236.47 | W102: 102.83 | X102: 52.05 | Y102: 184.08 | Z102: 2.18 | AA102: 39.28 | AB102: 36.76 | AC102: 57.82 | AD102: 1.57 | AE102: 0.21 | AF102: 0.14 | AG102: 1.31 | AH102: 3.83 | AI102: 0.37 | AJ102: 0 | AK102: 560.77 | AL102: 488.55 | AM102: 1080.68 | AN102: 467.43 | AO102: 235.99 | AP102: 395.3 | AQ102: 147.32 | AR102: 553.39 | AS102: 471.2 | AT102: 291.2 | AU102: 345.14 | AV102: 243.12 | AW102: 215.53 | AX102: 1693.15 | AY102: 0 | AZ102: 580.93 | BA102: 373.81 | BB102: 231.07 | BC102: 130.95 | BD102: 0.22 | BE102: 0.1 | BF102: 0.05 | BG102: 0.12 | BH102: 0.14 | BI102: 0.66 | BJ102: 0 | BK102: 2.01 | BL102: 0 | BM102: 0.63 | BN102: 0.01 | BO102: 0 | BP102: 0 | BQ102: 0.13 | BR102: 0.2 | BS102: 2.1 | BT102: 0 | BU102: 0 | BV102: 1.09 | BW102: 0.02 | BX102: 0 | BY102: 0 | BZ102: 0 | CA102: 0 | CB102: 345.1 | CD102: =$I$102/#REF!*100 ->  | CE102: 45.41 | CG102: 32.43 | CH102: 18.13 | CI102: 25.28 | CJ102: 3566.17 | CK102: 1680.59 | CL102: 2623.38 | CM102: 78.24 | CN102: 48.4 | CO102: 63.32 | CP102: 8.1 | CQ102: 0.45
B103: 10:00
A104: ="-" -> - | B104: Сок | C104: 100 | D104: 0.5 | E104: 0 | F104: 0.1 | G104: 0 | H104: 10.3 | I104: 43.24 | J104: 0 | K104: 0 | L104: 0 | M104: 0 | N104: 9.9 | O104: 0.2 | P104: 0.2 | Q104: 0 | R104: 0 | S104: 0.5 | T104: 0.3 | U104: 6 | V104: 120 | W104: 7 | X104: 4 | Y104: 7 | Z104: 1.4 | AA104: 0 | AB104: 0 | AC104: 0 | AD104: 0.1 | AE104: 0.01 | AF104: 0.01 | AG104: 0.1 | AH104: 0.2 | AI104: 2 | AJ104: 0.2 | AK104: 8 | AL104: 10 | AM104: 14 | AN104: 14 | AO104: 2 | AP104: 8 | AQ104: 2 | AR104: 7 | AS104: 13 | AT104: 8 | AU104: 58 | AV104: 5 | AW104: 11 | AX104: 32 | AY104: 0 | AZ104: 10 | BA104: 12 | BB104: 5 | BC104: 4 | BD104: 0 | BE104: 0 | BF104: 0 | BG104: 0 | BH104: 0 | BI104: 0 | BJ104: 0 | BK104: 0 | BL104: 0 | BM104: 0 | BN104: 0 | BO104: 0 | BP104: 0 | BQ104: 0 | BR104: 0 | BS104: 0 | BT104: 0 | BU104: 0 | BV104: 0 | BW104: 0 | BX104: 0 | BY104: 0 | BZ104: 0 | CA104: 0 | CB104: 88.1 | CE104: 0 | CG104: 2 | CH104: 2 | CI104: 2 | CJ104: 200 | CK104: 91 | CL104: 145.5 | CM104: 0.3 | CN104: 0.3 | CO104: 0.3 | CP104: 0 | CQ104: 0
B105: Итого за '10:00' | C105: =SUM(C104) -> 100 | D105: 0.5 | E105: 0 | F105: 0.1 | G105: 0 | H105: 10.3 | I105: 43.24 | J105: 0 | K105: 0 | L105: 0 | M105: 0 | N105: 9.9 | O105: 0.2 | P105: 0.2 | Q105: 0 | R105: 0 | S105: 0.5 | T105: 0.3 | U105: 6 | V105: 120 | W105: 7 | X105: 4 | Y105: 7 | Z105: 1.4 | AA105: 0 | AB105: 0 | AC105: 0 | AD105: 0.1 | AE105: 0.01 | AF105: 0.01 | AG105: 0.1 | AH105: 0.2 | AI105: 2 | AJ105: 0.2 | AK105: 8 | AL105: 10 | AM105: 14 | AN105: 14 | AO105: 2 | AP105: 8 | AQ105: 2 | AR105: 7 | AS105: 13 | AT105: 8 | AU105: 58 | AV105: 5 | AW105: 11 | AX105: 32 | AY105: 0 | AZ105: 10 | BA105: 12 | BB105: 5 | BC105: 4 | BD105: 0 | BE105: 0 | BF105: 0 | BG105: 0 | BH105: 0 | BI105: 0 | BJ105: 0 | BK105: 0 | BL105: 0 | BM105: 0 | BN105: 0 | BO105: 0 | BP105: 0 | BQ105: 0 | BR105: 0 | BS105: 0 | BT105: 0 | BU105: 0 | BV105: 0 | BW105: 0 | BX105: 0 | BY105: 0 | BZ105: 0 | CA105: 0 | CB105: 88.1 | CD105: =$I$105/#REF!*100 ->  | CE105: 0 | CG105: 2 | CH105: 2 | CI105: 2 | CJ105: 200 | CK105: 91 | CL105: 145.5 | CM105: 0.3 | CN105: 0.3 | CO105: 0.3 | CP105: 0 | CQ105: 0
B106: Обед
A107: ="-" -> - | B107: Хлеб пшеничный | C107: 20 | D107: 1.32 | E107: 0 | F107: 0.13 | G107: 0.13 | H107: 9.38 | I107: 44.7802 | J107: 0 | K107: 0 | L107: 0 | M107: 0 | N107: 0.22 | O107: 9.12 | P107: 0.04 | Q107: 0 | R107: 0 | S107: 0 | T107: 0.36 | U107: 0 | V107: 0 | W107: 0 | X107: 0 | Y107: 0 | Z107: 0 | AA107: 0 | AB107: 0 | AC107: 0 | AD107: 0 | AE107: 0 | AF107: 0 | AG107: 0 | AH107: 0 | AI107: 0 | AJ107: 0 | AK107: 63.86 | AL107: 66.47 | AM107: 101.79 | AN107: 33.76 | AO107: 20.01 | AP107: 40.02 | AQ107: 15.14 | AR107: 72.38 | AS107: 44.89 | AT107: 62.64 | AU107: 51.68 | AV107: 27.14 | AW107: 48.02 | AX107: 401.59 | AY107: 0 | AZ107: 130.85 | BA107: 56.9 | BB107: 37.76 | BC107: 29.93 | BD107: 0 | BE107: 0 | BF107: 0 | BG107: 0 | BH107: 0 | BI107: 0 | BJ107: 0 | BK107: 0.02 | BL107: 0 | BM107: 0 | BN107: 0 | BO107: 0 | BP107: 0 | BQ107: 0 | BR107: 0 | BS107: 0.01 | BT107: 0 | BU107: 0 | BV107: 0.06 | BW107: 0 | BX107: 0 | BY107: 0 | BZ107: 0 | CA107: 0 | CB107: 7.82 | CE107: 0 | CG107: 0 | CH107: 0 | CI107: 0 | CJ107: 380 | CK107: 146.4 | CL107: 263.2 | CM107: 3.04 | CN107: 3.04 | CO107: 3.04 | CP107: 0 | CQ107: 0
A108: ="-" -> - | B108: Хлеб ржаной | C108: 20 | D108: 1.32 | E108: 0 | F108: 0.24 | G108: 0.24 | H108: 8.34 | I108: 38.676 | J108: 0.04 | K108: 0 | L108: 0 | M108: 0 | N108: 0.24 | O108: 6.44 | P108: 1.66 | Q108: 0 | R108: 0 | S108: 0.2 | T108: 0.5 | U108: 122 | V108: 49 | W108: 7 | X108: 9.4 | Y108: 31.6 | Z108: 0.78 | AA108: 0 | AB108: 1 | AC108: 0.2 | AD108: 0.28 | AE108: 0.04 | AF108: 0.02 | AG108: 0.14 | AH108: 0.4 | AI108: 0 | AJ108: 0 | AK108: 64.4 | AL108: 49.6 | AM108: 85.4 | AN108: 44.6 | AO108: 18.6 | AP108: 39.6 | AQ108: 16 | AR108: 74.2 | AS108: 59.4 | AT108: 58.2 | AU108: 92.8 | AV108: 24.8 | AW108: 62 | AX108: 311.8 | AY108: 0 | AZ108: 105.2 | BA108: 58.2 | BB108: 36 | BC108: 26 | BD108: 0 | BE108: 0 | BF108: 0 | BG108: 0 | BH108: 0 | BI108: 0 | BJ108: 0 | BK108: 0.03 | BL108: 0 | BM108: 0 | BN108: 0 | BO108: 0 | BP108: 0 | BQ108: 0 | BR108: 0 | BS108: 0.02 | BT108: 0 | BU108: 0 | BV108: 0.1 | BW108: 0.02 | BX108: 0 | BY108: 0 | BZ108: 0 | CA108: 0 | CB108: 9.4 | CE108: 0.17 | CG108: 1 | CH108: 1 | CI108: 1 | CJ108: 190 | CK108: 73.2 | CL108: 131.6 | CM108: 1.9 | CN108: 1.58 | CO108: 1.74 | CP108: 0 | CQ108: 0
A109: ="6/10" -> 6/10 | B109: Компот из сухофруктов | C109: 180 | D109: 0.92 | E109: 0 | F109: 0.05 | G109: 0.05 | H109: 20.86 | I109: 78.839028 | J109: 0.02 | K109: 0 | L109: 0 | M109: 0 | N109: 17.27 | O109: 0.51 | P109: 3.08 | Q109: 0 | R109: 0 | S109: 0.27 | T109: 0.73 | U109: 3.12 | V109: 306.24 | W109: 28.2 | X109: 17.96 | Y109: 24.44 | Z109: 0.58 | AA109: 0 | AB109: 567 | AC109: 104.94 | AD109: 0.99 | AE109: 0.02 | AF109: 0.03 | AG109: 0.46 | AH109: 0.7 | AI109: 0.29 | AJ109: 0 | AK109: 0.01 | AL109: 0.01 | AM109: 0.01 | AN109: 0.02 | AO109: 0 | AP109: 0.01 | AQ109: 0 | AR109: 0.01 | AS109: 0.01 | AT109: 0.01 | AU109: 0.05 | AV109: 0 | AW109: 0.01 | AX109: 0.02 | AY109: 0 | AZ109: 0.01 | BA109: 0.01 | BB109: 0.01 | BC109: 0 | BD109: 0 | BE109: 0 | BF109: 0 | BG109: 0 | BH109: 0 | BI109: 0 | BJ109: 0 | BK109: 0 | BL109: 0 | BM109: 0 | BN109: 0 | BO109: 0 | BP109: 0 | BQ109: 0 | BR109: 0 | BS109: 0.01 | BT109: 0 | BU109: 0 | BV109: 0.01 | BW109: 0 | BX109: 0 | BY109: 0 | BZ109: 0 | CA109: 0 | CB109: 192.61 | CE109: 94.5 | CG109: 3.95 | CH109: 3.95 | CI109: 3.95 | CJ109: 454.5 | CK109: 172.98 | CL109: 313.74 | CM109: 41.94 | CN109: 24.93 | CO109: 33.44 | CP109: 9 | CQ109: 0
A110: ="3/1" -> 3/1 | B110: Салат из белокочанной капусты с растительным маслом | C110: 50 | D110: 0.8 | E110: 0 | F110: 2.98 | G110: 2.98 | H110: 4.45 | I110: 45.782219 | J110: 0.38 | K110: 1.95 | L110: 0 | M110: 0 | N110: 3.52 | O110: 0.04 | P110: 0.89 | Q110: 0 | R110: 0 | S110: 0.13 | T110: 0.56 | U110: 100.65 | V110: 133.84 | W110: 22.35 | X110: 7.19 | Y110: 14.07 | Z110: 0.28 | AA110: 0 | AB110: 8.92 | AC110: 1.37 | AD110: 1.37 | AE110: 0.01 | AF110: 0.02 | AG110: 0.31 | AH110: 0.41 | AI110: 20.07 | AJ110: 0 | AK110: 25.86 | AL110: 22.3 | AM110: 28.54 | AN110: 27.2 | AO110: 9.81 | AP110: 20.07 | AQ110: 4.46 | AR110: 24.97 | AS110: 31.66 | AT110: 37.9 | AU110: 76.69 | AV110: 12.49 | AW110: 20.96 | AX110: 122.62 | AY110: 0 | AZ110: 26.31 | BA110: 26.31 | BB110: 22.3 | BC110: 8.92 | BD110: 0 | BE110: 0 | BF110: 0 | BG110: 0 | BH110: 0 | BI110: 0 | BJ110: 0 | BK110: 0.18 | BL110: 0 | BM110: 0.12 | BN110: 0.01 | BO110: 0.02 | BP110: 0 | BQ110: 0 | BR110: 0 | BS110: 0.7 | BT110: 0 | BU110: 0 | BV110: 1.73 | BW110: 0 | BX110: 0 | BY110: 0 | BZ110: 0 | CA110: 0 | CB110: 41.14 | CE110: 1.49 | CG110: 11.03 | CH110: 4.77 | CI110: 7.9 | CJ110: 325.07 | CK110: 77.83 | CL110: 201.45 | CM110: 5.97 | CN110: 5.77 | CO110: 5.87 | CP110: 1.5 | CQ110: 0.25
A111: ="4/2" -> 4/2 | B111: Борщ с картофелем на говяжьем бульоне | C111: 180 | D111: 1.2 | E111: 5.86 | F111: 2.01 | G111: 2.28 | H111: 9.53 | I111: 57.6051912 | J111: 0.28 | K111: 1.4 | L111: 0 | M111: 0 | N111: 6.01 | O111: 2.04 | P111: 1.48 | Q111: 0 | R111: 0 | S111: 0.19 | T111: 1.38 | U111: 260.46 | V111: 223.47 | W111: 22.86 | X111: 14.72 | Y111: 30.73 | Z111: 0.7 | AA111: 0 | AB111: 729.22 | AC111: 151.92 | AD111: 1.07 | AE111: 0.03 | AF111: 0.03 | AG111: 0.38 | AH111: 0.68 | AI111: 5.72 | AJ111: 0 | AK111: 28.5 | AL111: 30.8 | AM111: 36.55 | AN111: 43.86 | AO111: 10.36 | AP111: 28.02 | AQ111: 8.12 | AR111: 27.41 | AS111: 31.54 | AT111: 55.71 | AU111: 130.69 | AV111: 10.44 | AW111: 24.17 | AX111: 157.1 | AY111: 0 | AZ111: 26.8 | BA111: 30.93 | BB111: 25.59 | BC111: 9.34 | BD111: 0 | BE111: 0 | BF111: 0 | BG111: 0 | BH111: 0 | BI111: 0 | BJ111: 0 | BK111: 0.13 | BL111: 0 | BM111: 0.08 | BN111: 0.01 | BO111: 0.01 | BP111: 0 | BQ111: 0 | BR111: 0 | BS111: 0.47 | BT111: 0 | BU111: 0 | BV111: 1.29 | BW111: 0 | BX111: 0 | BY111: 0 | BZ111: 0 | CA111: 0 | CB111: 207.15 | CE111: 121.54 | CG111: 24.6 | CH111: 13.44 | CI111: 19.02 | CJ111: 452.94 | CK111: 140.94 | CL111: 296.94 | CM111: 5.66 | CN111: 3.18 | CO111: 4.42 | CP111: 1.8 | CQ111: 0.63
A112: ="46/3" -> 46/3 | B112: Макаронные изделия отварные | C112: 150 | D112: 5.3 | E112: 0.03 | F112: 2.98 | G112: 0.66 | H112: 34.11 | I112: 183.9401745 | J112: 1.87 | K112: 0.08 | L112: 0 | M112: 0 | N112: 0.97 | O112: 31.42 | P112: 1.72 | Q112: 0 | R112: 0 | S112: 0 | T112: 0.68 | U112: 147.26 | V112: 56.22 | W112: 10.53 | X112: 7.17 | Y112: 39.83 | Z112: 0.73 | AA112: 9 | AB112: 9 | AC112: 16.88 | AD112: 0.8 | AE112: 0.06 | AF112: 0.02 | AG112: 0.49 | AH112: 1.49 | AI112: 0 | AJ112: 0 | AK112: 229.67 | AL112: 209.98 | AM112: 393.39 | AN112: 122.87 | AO112: 74.91 | AP112: 152.19 | AQ112: 49.94 | AR112: 244.06 | AS112: 161.39 | AT112: 194.59 | AU112: 166.92 | AV112: 98.07 | AW112: 170.55 | AX112: 1497.86 | AY112: 0 | AZ112: 471.98 | BA112: 244.48 | BB112: 122.77 | BC112: 97.19 | BD112: 0.09 | BE112: 0.04 | BF112: 0.02 | BG112: 0.05 | BH112: 0.06 | BI112: 0.26 | BJ112: 0 | BK112: 0.81 | BL112: 0 | BM112: 0.23 | BN112: 0 | BO112: 0 | BP112: 0 | BQ112: 0.05 | BR112: 0.08 | BS112: 0.6 | BT112: 0 | BU112: 0 | BV112: 0.24 | BW112: 0.01 | BX112: 0 | BY112: 0 | BZ112: 0 | CA112: 0 | CB112: 7.57 | CE112: 10.5 | CG112: 12.73 | CH112: 6.64 | CI112: 9.69 | CJ112: 295.86 | CK112: 292.32 | CL112: 294.09 | CM112: 7.49 | CN112: 3.81 | CO112: 5.65 | CP112: 0 | CQ112: 0.38
A113: ="4/256" -> 4/256 | B113: Мясо тушеное | C113: 70 | D113: 10.53 | E113: 10.81 | F113: 10.05 | G113: 2.12 | H113: 2.08 | I113: 140.6646192 | J113: 4.39 | K113: 1.37 | L113: 0 | M113: 0 | N113: 0.96 | O113: 0.9 | P113: 0.22 | Q113: 0 | R113: 0 | S113: 0.1 | T113: 0.89 | U113: 120.32 | V113: 204.39 | W113: 7.55 | X113: 14.14 | Y113: 101.07 | Z113: 1.49 | AA113: 0 | AB113: 319.2 | AC113: 66.5 | AD113: 1.23 | AE113: 0.03 | AF113: 0.08 | AG113: 2.28 | AH113: 4.94 | AI113: 0.8 | AJ113: 0 | AK113: 572.59 | AL113: 433.66 | AM113: 818.96 | AN113: 1418.25 | AO113: 245.28 | AP113: 443.49 | AQ113: 116.22 | AR113: 441.58 | AS113: 598.72 | AT113: 575.97 | AU113: 975.24 | AV113: 390.76 | AW113: 517.1 | AX113: 1725.01 | AY113: 158.38 | AZ113: 387.66 | BA113: 433.44 | BB113: 363.12 | BC113: 144.4 | BD113: 0 | BE113: 0 | BF113: 0 | BG113: 0 | BH113: 0 | BI113: 0 | BJ113: 0 | BK113: 0.12 | BL113: 0 | BM113: 0.08 | BN113: 0.01 | BO113: 0.01 | BP113: 0 | BQ113: 0 | BR113: 0 | BS113: 0.44 | BT113: 0 | BU113: 0 | BV113: 1.25 | BW113: 0 | BX113: 0 | BY113: 0 | BZ113: 0 | CA113: 0 | CB113: 45 | CE113: 53.2 | CG113: 9.16 | CH113: 6.16 | CI113: 7.66 | CJ113: 1399.1 | CK113: 874.55 | CL113: 1136.82 | CM113: 9.56 | CN113: 5.58 | CO113: 7.58 | CP113: 0 | CQ113: 0.21
B114: Итого за 'Обед' | C114: =SUM(C107:C113) -> 670 | D114: 21.39 | E114: 16.7 | F114: 18.44 | G114: 8.47 | H114: 88.76 | I114: 590.29 | J114: 6.98 | K114: 4.8 | L114: 0 | M114: 0 | N114: 29.19 | O114: 50.49 | P114: 9.08 | Q114: 0 | R114: 0 | S114: 0.89 | T114: 5.1 | U114: 753.81 | V114: 973.15 | W114: 98.49 | X114: 70.57 | Y114: 241.73 | Z114: 4.56 | AA114: 9 | AB114: 1634.33 | AC114: 341.8 | AD114: 5.74 | AE114: 0.19 | AF114: 0.19 | AG114: 4.06 | AH114: 8.62 | AI114: 26.87 | AJ114: 0 | AK114: 984.88 | AL114: 812.81 | AM114: 1464.64 | AN114: 1690.55 | AO114: 378.97 | AP114: 723.39 | AQ114: 209.88 | AR114: 884.61 | AS114: 927.61 | AT114: 985.03 | AU114: 1494.09 | AV114: 563.71 | AW114: 842.81 | AX114: 4216 | AY114: 158.38 | AZ114: 1148.82 | BA114: 850.27 | BB114: 607.54 | BC114: 315.78 | BD114: 0.09 | BE114: 0.04 | BF114: 0.02 | BG114: 0.05 | BH114: 0.06 | BI114: 0.26 | BJ114: 0 | BK114: 1.28 | BL114: 0 | BM114: 0.51 | BN114: 0.02 | BO114: 0.05 | BP114: 0 | BQ114: 0.05 | BR114: 0.09 | BS114: 2.26 | BT114: 0 | BU114: 0 | BV114: 4.67 | BW114: 0.03 | BX114: 0 | BY114: 0 | BZ114: 0 | CA114: 0 | CB114: 510.68 | CD114: =$I$114/#REF!*100 ->  | CE114: 281.39 | CG114: 62.48 | CH114: 35.97 | CI114: 49.22 | CJ114: 3497.47 | CK114: 1778.22 | CL114: 2637.85 | CM114: 75.57 | CN114: 47.89 | CO114: 61.74 | CP114: 12.3 | CQ114: 1.46
B115: Ужин
A116: ="-" -> - | B116: Хлеб пшеничный | C116: 20 | D116: 1.32 | E116: 0 | F116: 0.13 | G116: 0.13 | H116: 9.38 | I116: 44.7802 | J116: 0 | K116: 0 | L116: 0 | M116: 0 | N116: 0.22 | O116: 9.12 | P116: 0.04 | Q116: 0 | R116: 0 | S116: 0 | T116: 0.36 | U116: 0 | V116: 0 | W116: 0 | X116: 0 | Y116: 0 | Z116: 0 | AA116: 0 | AB116: 0 | AC116: 0 | AD116: 0 | AE116: 0 | AF116: 0 | AG116: 0 | AH116: 0 | AI116: 0 | AJ116: 0 | AK116: 63.86 | AL116: 66.47 | AM116: 101.79 | AN116: 33.76 | AO116: 20.01 | AP116: 40.02 | AQ116: 15.14 | AR116: 72.38 | AS116: 44.89 | AT116: 62.64 | AU116: 51.68 | AV116: 27.14 | AW116: 48.02 | AX116: 401.59 | AY116: 0 | AZ116: 130.85 | BA116: 56.9 | BB116: 37.76 | BC116: 29.93 | BD116: 0 | BE116: 0 | BF116: 0 | BG116: 0 | BH116: 0 | BI116: 0 | BJ116: 0 | BK116: 0.02 | BL116: 0 | BM116: 0 | BN116: 0 | BO116: 0 | BP116: 0 | BQ116: 0 | BR116: 0 | BS116: 0.01 | BT116: 0 | BU116: 0 | BV116: 0.06 | BW116: 0 | BX116: 0 | BY116: 0 | BZ116: 0 | CA116: 0 | CB116: 7.82 | CE116: 0 | CG116: 0 | CH116: 0 | CI116: 0 | CJ116: 665 | CK116: 256.2 | CL116: 460.6 | CM116: 5.32 | CN116: 5.32 | CO116: 5.32 | CP116: 0 | CQ116: 0
A117: ="-" -> - | B117: Хлеб ржаной | C117: 20 | D117: 1.32 | E117: 0 | F117: 0.24 | G117: 0.24 | H117: 8.34 | I117: 38.676 | J117: 0.04 | K117: 0 | L117: 0 | M117: 0 | N117: 0.24 | O117: 6.44 | P117: 1.66 | Q117: 0 | R117: 0 | S117: 0.2 | T117: 0.5 | U117: 122 | V117: 49 | W117: 7 | X117: 9.4 | Y117: 31.6 | Z117: 0.78 | AA117: 0 | AB117: 1 | AC117: 0.2 | AD117: 0.28 | AE117: 0.04 | AF117: 0.02 | AG117: 0.14 | AH117: 0.4 | AI117: 0 | AJ117: 0 | AK117: 64.4 | AL117: 49.6 | AM117: 85.4 | AN117: 44.6 | AO117: 18.6 | AP117: 39.6 | AQ117: 16 | AR117: 74.2 | AS117: 59.4 | AT117: 58.2 | AU117: 92.8 | AV117: 24.8 | AW117: 62 | AX117: 311.8 | AY117: 0 | AZ117: 105.2 | BA117: 58.2 | BB117: 36 | BC117: 26 | BD117: 0 | BE117: 0 | BF117: 0 | BG117: 0 | BH117: 0 | BI117: 0 | BJ117: 0 | BK117: 0.03 | BL117: 0 | BM117: 0 | BN117: 0 | BO117: 0 | BP117: 0 | BQ117: 0 | BR117: 0 | BS117: 0.02 | BT117: 0 | BU117: 0 | BV117: 0.1 | BW117: 0.02 | BX117: 0 | BY117: 0 | BZ117: 0 | CA117: 0 | CB117: 9.4 | CE117: 0.17 | CG117: 1.5 | CH117: 1.5 | CI117: 1.5 | CJ117: 285 | CK117: 109.8 | CL117: 197.4 | CM117: 2.85 | CN117: 2.37 | CO117: 2.61 | CP117: 0 | CQ117: 0
A118: ="27/10" -> 27/10 | B118: Чай | C118: 180 | D118: 0.18 | E118: 0 | F118: 0.04 | G118: 0.04 | H118: 8.93 | I118: 34.88157 | J118: 0 | K118: 0 | L118: 0 | M118: 0 | N118: 8.84 | O118: 0 | P118: 0.09 | Q118: 0 | R118: 0 | S118: 0 | T118: 0.06 | U118: 0.09 | V118: 0.27 | W118: 0.26 | X118: 0 | Y118: 0 | Z118: 0.03 | AA118: 0 | AB118: 0 | AC118: 0 | AD118: 0 | AE118: 0 | AF118: 0 | AG118: 0 | AH118: 0 | AI118: 0 | AJ118: 0 | AK118: 0 | AL118: 0 | AM118: 0 | AN118: 0 | AO118: 0 | AP118: 0 | AQ118: 0 | AR118: 0 | AS118: 0 | AT118: 0 | AU118: 0 | AV118: 0 | AW118: 0 | AX118: 0 | AY118: 0 | AZ118: 0 | BA118: 0 | BB118: 0 | BC118: 0 | BD118: 0 | BE118: 0 | BF118: 0 | BG118: 0 | BH118: 0 | BI118: 0 | BJ118: 0 | BK118: 0 | BL118: 0 | BM118: 0 | BN118: 0 | BO118: 0 | BP118: 0 | BQ118: 0 | BR118: 0 | BS118: 0 | BT118: 0 | BU118: 0 | BV118: 0 | BW118: 0 | BX118: 0 | BY118: 0 | BZ118: 0 | CA118: 0 | CB118: 180.09 | CE118: 0 | CG118: 3.14 | CH118: 3.14 | CI118: 3.14 | CJ118: 363.75 | CK118: 138 | CL118: 250.88 | CM118: 33.32 | CN118: 19.82 | CO118: 26.57 | CP118: 9 | CQ118: 0
A119: ="2/6" -> 2/6 | B119: Омлет запеченный или паровой | C119: 100 | D119: 9.73 | E119: 10.35 | F119: 10.43 | G119: 0 | H119: 1.72 | I119: 139.389729 | J119: 4.37 | K119: 0.08 | L119: 0 | M119: 0 | N119: 1.72 | O119: 0 | P119: 0 | Q119: 0 | R119: 0 | S119: 0.03 | T119: 1.49 | U119: 308.33 | V119: 128.7 | W119: 67.7 | X119: 11.28 | Y119: 148.05 | Z119: 1.67 | AA119: 124.2 | AB119: 46.6 | AC119: 216.8 | AD119: 0.49 | AE119: 0.05 | AF119: 0.3 | AG119: 0.14 | AH119: 2.93 | AI119: 0.14 | AJ119: 0 | AK119: 545.64 | AL119: 422.23 | AM119: 764.61 | AN119: 638.1 | AO119: 299.48 | AP119: 431.6 | AQ119: 145.23 | AR119: 461.04 | AS119: 501.73 | AT119: 555.69 | AU119: 868.32 | AV119: 240.85 | AW119: 294.07 | AX119: 1254.64 | AY119: 9.87 | AZ119: 280.76 | BA119: 656.02 | BB119: 336.96 | BC119: 206.89 | BD119: 0.08 | BE119: 0.04 | BF119: 0.02 | BG119: 0.05 | BH119: 0.05 | BI119: 0.24 | BJ119: 0 | BK119: 0.68 | BL119: 0 | BM119: 0.21 | BN119: 0 | BO119: 0 | BP119: 0 | BQ119: 0.05 | BR119: 0.07 | BS119: 0.55 | BT119: 0 | BU119: 0 | BV119: 0.03 | BW119: 0 | BX119: 0 | BY119: 0 | BZ119: 0 | CA119: 0 | CB119: 80.93 | CE119: 131.97 | CG119: 39.43 | CH119: 24.8 | CI119: 32.11 | CJ119: 159.79 | CK119: 59.42 | CL119: 109.6 | CM119: 11.08 | CN119: 6.08 | CO119: 8.58 | CP119: 0 | CQ119: 0.5
A120: ="-" -> - | B120: Фрукты | C120: 100 | D120: 1.5 | E120: 0 | F120: 0.5 | G120: 0.5 | H120: 22.7 | I120: 95.5 | J120: 0.2 | K120: 0 | L120: 0 | M120: 0 | N120: 19 | O120: 2 | P120: 1.7 | Q120: 0 | R120: 0 | S120: 0.4 | T120: 0.9 | U120: 31 | V120: 348 | W120: 8 | X120: 42 | Y120: 28 | Z120: 0.6 | AA120: 0 | AB120: 120 | AC120: 20 | AD120: 0.4 | AE120: 0.04 | AF120: 0.05 | AG120: 0.6 | AH120: 0.9 | AI120: 10 | AJ120: 0 | AK120: 0 | AL120: 0 | AM120: 0 | AN120: 0 | AO120: 0 | AP120: 0 | AQ120: 0 | AR120: 0 | AS120: 0 | AT120: 0 | AU120: 0 | AV120: 0 | AW120: 0 | AX120: 0 | AY120: 0 | AZ120: 0 | BA120: 0 | BB120: 0 | BC120: 0 | BD120: 0 | BE120: 0 | BF120: 0 | BG120: 0 | BH120: 0 | BI120: 0 | BJ120: 0 | BK120: 0 | BL120: 0 | BM120: 0 | BN120: 0 | BO120: 0 | BP120: 0 | BQ120: 0 | BR120: 0 | BS120: 0 | BT120: 0 | BU120: 0 | BV120: 0 | BW120: 0 | BX120: 0 | BY120: 0 | BZ120: 0 | CA120: 0 | CB120: 74 | CE120: 20 | CG120: 4 | CH120: 1 | CI120: 2.5 | CJ120: 200 | CK120: 82 | CL120: 141 | CM120: 12.6 | CN120: 12.6 | CO120: 12.6 | CP120: 0 | CQ120: 0
B121: Итого за 'Ужин' | C121: =SUM(C116:C120) -> 420 | D121: =SUM(D116:D120) -> 14.05 | E121: 10.35 | F121: 11.34 | G121: 0.91 | H121: 51.07 | I121: 353.227499 | J121: 4.61 | K121: 0.08 | L121: 0 | M121: 0 | N121: 30.02 | O121: 17.56 | P121: 3.49 | Q121: 0 | R121: 0 | S121: 0.63 | T121: 3.31 | U121: 461.42 | V121: 525.97 | W121: 82.96 | X121: 62.68 | Y121: 207.65 | Z121: 3.08 | AA121: 124.2 | AB121: 167.6 | AC121: 237 | AD121: 1.17 | AE121: 0.13 | AF121: 0.37 | AG121: 0.88 | AH121: 4.23 | AI121: 10.14 | AJ121: 0 | AK121: 673.9 | AL121: 538.3 | AM121: 951.8 | AN121: 716.46 | AO121: 338.09 | AP121: 511.22 | AQ121: 176.37 | AR121: 607.62 | AS121: 606.02 | AT121: 676.53 | AU121: 1012.8 | AV121: 292.79 | AW121: 404.09 | AX121: 1968.03 | AY121: 9.87 | AZ121: 516.81 | BA121: 771.12 | BB121: 410.72 | BC121: 262.82 | BD121: 0.08 | BE121: 0.04 | BF121: 0.02 | BG121: 0.05 | BH121: 0.05 | BI121: 0.24 | BJ121: 0 | BK121: 0.73 | BL121: 0 | BM121: 0.21 | BN121: 0 | BO121: 0 | BP121: =SUM(BP116:BP120) -> 0 | BQ121: 0.05 | BR121: 0.07 | BS121: 0.58 | BT121: 0 | BU121: 0 | BV121: 0.19 | BW121: 0.02 | BX121: 0 | BY121: 0 | BZ121: 0 | CA121: 0 | CB121: 352.24 | CC121: 0 | CD121: 0 | CE121: 152.14 | CF121: 0 | CG121: 48.07 | CH121: 30.44 | CI121: 39.25 | CJ121: 1673.54 | CK121: 645.42 | CL121: 1159.48 | CM121: 65.17 | CN121: 46.19 | CO121: 55.68 | CP121: 12.6 | CQ121: 0.45
B122: Итого за день | C122: =C102+C105+C114+C121 -> 1615 | D122: =D102+D105+D114+D121 -> 46.62 | E122: 29.21 | F122: 41.64 | G122: 11.81 | H122: 220.74 | I122: 1414.067499 | J122: 17.59 | K122: 5.07 | L122: 0 | M122: 0 | N122: 86.67 | O122: 118.29 | P122: 15.78 | Q122: 0 | R122: 0 | S122: 2.31 | T122: 11.08 | U122: 1674 | V122: 1855.59 | W122: 291.28 | X122: 189.3 | Y122: 640.46 | Z122: 11.22 | AA122: 172.48 | AB122: 1838.69 | AC122: 636.62 | AD122: 8.58 | AE122: 0.54 | AF122: 0.71 | AG122: 6.35 | AH122: 16.88 | AI122: 39.38 | AJ122: 0.2 | AK122: 2227.55 | AL122: 1849.66 | AM122: 3511.12 | AN122: 2888.44 | AO122: 955.05 | AP122: 1637.91 | AQ122: 535.57 | AR122: 2052.62 | AS122: 2017.83 | AT122: 1960.76 | AU122: 2910.03 | AV122: 1104.62 | AW122: 1473.43 | AX122: 7909.18 | AY122: 168.25 | AZ122: 2256.56 | BA122: 2007.2 | BB122: 1254.33 | BC122: 713.55 | BD122: 0.39 | BE122: 0.18 | BF122: 0.09 | BG122: 0.22 | BH122: 0.25 | BI122: 1.16 | BJ122: 0 | BK122: 4.02 | BL122: 0 | BM122: 1.35 | BN122: 0.03 | BO122: 0.05 | BP122: =BP102+BP105+BP114+BP121 -> 0 | BQ122: 0.23 | BR122: 0.36 | BS122: 4.94 | BT122: 0 | BU122: 0 | BV122: 5.95 | BW122: 0.07 | BX122: 0 | BY122: 0 | BZ122: 0 | CA122: 0 | CB122: 1296.12 | CC122: 0 | CE122: 478.94 | CF122: 0 | CG122: 144.98 | CH122: 86.54 | CI122: 115.75 | CJ122: 8937.18 | CK122: 4195.23 | CL122: 6566.21 | CM122: 219.28 | CN122: 142.78 | CO122: 181.04 | CP122: 33 | CQ122: 2.36
B124: 5 ДЕНЬ
B125: Завтрак
A126: ="-" -> - | B126: Батон | C126: 40 | D126: 3.08 | E126: 0 | F126: 1.2 | G126: 1.2 | H126: 21.32 | I126: 107.808 | J126: 0.2 | K126: 0 | L126: 0 | M126: 0 | N126: 1.32 | O126: 18.72 | P126: 1.28 | Q126: 0 | R126: 0 | S126: 0.12 | T126: 0.64 | U126: 171.6 | V126: 52.4 | W126: 8.8 | X126: 13.2 | Y126: 34 | Z126: 0.8 | AA126: 0 | AB126: 0 | AC126: 0 | AD126: 0.68 | AE126: 0.06 | AF126: 0.02 | AG126: 0.64 | AH126: 1.2 | AI126: 0 | AJ126: 0 | AK126: 148.8 | AL126: 154.4 | AM126: 236.4 | AN126: 79.6 | AO126: 46.8 | AP126: 93.6 | AQ126: 35.2 | AR126: 168 | AS126: 104.4 | AT126: 145.2 | AU126: 120.4 | AV126: 64.4 | AW126: 112 | AX126: 930 | AY126: 0 | AZ126: 302.8 | BA126: 132.4 | BB126: 88.8 | BC126: 69.2 | BD126: 0 | BE126: 0 | BF126: 0 | BG126: 0 | BH126: 0 | BI126: 0.01 | BJ126: 0 | BK126: 0.13 | BL126: 0 | BM126: 0.06 | BN126: 0 | BO126: 0 | BP126: 0 | BQ126: 0 | BR126: 0 | BS126: 0.47 | BT126: 0 | BU126: 0 | BV126: 0.35 | BW126: 0.01 | BX126: 0 | BY126: 0 | BZ126: 0 | CA126: 0 | CB126: 13.64 | CE126: 0 | CG126: 0 | CH126: 0 | CI126: 0 | CJ126: 665 | CK126: 256.2 | CL126: 460.6 | CM126: 5.32 | CN126: 5.32 | CO126: 5.32 | CP126: 0 | CQ126: 0
A127: ="-" -> - | B127: Масло сливочное | C127: 5 | D127: 0.04 | E127: 0.04 | F127: 3.63 | G127: 0 | H127: 0.07 | I127: 33.032 | J127: 2.36 | K127: 0.11 | L127: 0 | M127: 0 | N127: 0.07 | O127: 0 | P127: 0 | Q127: 0 | R127: 0 | S127: 0 | T127: 0.07 | U127: 0.75 | V127: 1.5 | W127: 1.2 | X127: 0 | Y127: 1.5 | Z127: 0.01 | AA127: 20 | AB127: 15 | AC127: 22.5 | AD127: 0.05 | AE127: 0 | AF127: 0.01 | AG127: 0.01 | AH127: 0.01 | AI127: 0 | AJ127: 0 | AK127: 2.1 | AL127: 2.05 | AM127: 3.8 | AN127: 2.25 | AO127: 0.85 | AP127: 2.35 | AQ127: 2.15 | AR127: 2.1 | AS127: 1.8 | AT127: 1.3 | AU127: 2.85 | AV127: 1.75 | AW127: 1.2 | AX127: 7.1 | AY127: 0 | AZ127: 2.4 | BA127: 2.7 | BB127: 2.1 | BC127: 0.5 | BD127: 0.13 | BE127: 0.06 | BF127: 0.03 | BG127: 0.08 | BH127: 0.09 | BI127: 0.4 | BJ127: 0 | BK127: 1.1 | BL127: 0 | BM127: 0.34 | BN127: 0 | BO127: 0 | BP127: 0 | BQ127: 0.08 | BR127: 0.12 | BS127: 0.9 | BT127: 0 | BU127: 0 | BV127: 0.05 | BW127: 0 | BX127: 0 | BY127: 0 | BZ127: 0 | CA127: 0 | CB127: 1.25 | CE127: 22.5 | CG127: 0.2 | CH127: 0.05 | CI127: 0.13 | CJ127: 10 | CK127: 4.1 | CL127: 7.05 | CM127: 0.86 | CN127: 0.44 | CO127: 0.65 | CP127: 0 | CQ127: 0
A128: ="32/10" -> 32/10 | B128: Кофейный напиток с молоком | C128: 180 | D128: 3.22 | E128: 2.56 | F128: 2.36 | G128: 0.16 | H128: 13.04 | I128: 83.957688 | J128: 1.53 | K128: 0 | L128: 0 | M128: 0 | N128: 13.04 | O128: 0 | P128: 0 | Q128: 0 | R128: 0 | S128: 0.09 | T128: 0.64 | U128: 44.64 | V128: 130.35 | W128: 105.02 | X128: 11.97 | Y128: 75.33 | Z128: 0.11 | AA128: 18 | AB128: 8.1 | AC128: 19.8 | AD128: 0 | AE128: 0.03 | AF128: 0.12 | AG128: 0.08 | AH128: 0.72 | AI128: 0.47 | AJ128: 0 | AK128: 0 | AL128: 0 | AM128: 0 | AN128: 0 | AO128: 0 | AP128: 0 | AQ128: 0 | AR128: 0 | AS128: 0 | AT128: 0 | AU128: 0 | AV128: 0 | AW128: 0 | AX128: 0 | AY128: 0 | AZ128: 0 | BA128: 0 | BB128: 0 | BC128: 0 | BD128: 0 | BE128: 0 | BF128: 0 | BG128: 0 | BH128: 0 | BI128: 0 | BJ128: 0 | BK128: 0 | BL128: 0 | BM128: 0 | BN128: 0 | BO128: 0 | BP128: 0 | BQ128: 0 | BR128: 0 | BS128: 0 | BT128: 0 | BU128: 0 | BV128: 0 | BW128: 0 | BX128: 0 | BY128: 0 | BZ128: 0 | CA128: 0 | CB128: 179.42 | CE128: 19.35 | CG128: 10.37 | CH128: 4.07 | CI128: 7.22 | CJ128: 850.32 | CK128: 325.44 | CL128: 587.88 | CM128: 34.37 | CN128: 16.35 | CO128: 25.36 | CP128: 9 | CQ128: 0
A129: ="6/4" -> 6/4 | B129: Каша овсяная молочная с маслом сливочным | C129: 180 | D129: 6.93 | E129: 2.59 | F129: 7.59 | G129: 2.19 | H129: 30.84 | I129: 215.9766792 | J129: 4.15 | K129: 0.1 | L129: 0 | M129: 0 | N129: 8.24 | O129: 20.55 | P129: 2.05 | Q129: 0 | R129: 0 | S129: 0.09 | T129: 1.76 | U129: 224.83 | V129: 249.18 | W129: 125.68 | X129: 56.18 | Y129: 186.71 | Z129: 1.38 | AA129: 36 | AB129: 20.25 | AC129: 40.05 | AD129: 0.62 | AE129: 0.17 | AF129: 0.16 | AG129: 0.39 | AH129: 2.39 | AI129: 0.47 | AJ129: 0 | AK129: 199.42 | AL129: 142.22 | AM129: 227.38 | AN129: 150.16 | AO129: 43.79 | AP129: 136.14 | AQ129: 70.69 | AR129: 191.31 | AS129: 173.05 | AT129: 260.81 | AU129: 325.68 | AV129: 87.63 | AW129: 360.56 | AX129: 693.52 | AY129: 0 | AZ129: 228.26 | BA129: 183.72 | BB129: 158.14 | BC129: 99.93 | BD129: 0.12 | BE129: 0.05 | BF129: 0.03 | BG129: 0.07 | BH129: 0.08 | BI129: 0.36 | BJ129: 0 | BK129: 1.44 | BL129: 0 | BM129: 0.32 | BN129: 0 | BO129: 0 | BP129: 0 | BQ129: 0.07 | BR129: 0.1 | BS129: 1.55 | BT129: 0 | BU129: 0 | BV129: 0.84 | BW129: 0.02 | BX129: 0 | BY129: 0 | BZ129: 0 | CA129: 0 | CB129: 146.75 | CE129: 39.38 | CG129: 26.58 | CH129: 10.71 | CI129: 18.65 | CJ129: 1650.5 | CK129: 749.64 | CL129: 1200.07 | CM129: 26.74 | CN129: 13.25 | CO129: 19.99 | CP129: 3.6 | CQ129: 0.45
B130: Итого за 'Завтрак' | C130: =SUM(C126:C129) -> 405 | D130: 13.27 | E130: 5.19 | F130: 14.78 | G130: 3.55 | H130: 65.26 | I130: 440.77 | J130: 8.24 | K130: 0.21 | L130: 0 | M130: 0 | N130: 22.66 | O130: 39.27 | P130: 3.33 | Q130: 0 | R130: 0 | S130: 0.3 | T130: 3.11 | U130: 441.82 | V130: 433.43 | W130: 240.7 | X130: 81.35 | Y130: 297.54 | Z130: 2.3 | AA130: 74 | AB130: 43.35 | AC130: 82.35 | AD130: 1.35 | AE130: 0.26 | AF130: 0.31 | AG130: 1.11 | AH130: 4.32 | AI130: 0.94 | AJ130: 0 | AK130: 350.32 | AL130: 298.67 | AM130: 467.58 | AN130: 232.01 | AO130: 91.44 | AP130: 232.09 | AQ130: 108.04 | AR130: 361.41 | AS130: 279.25 | AT130: 407.31 | AU130: 448.93 | AV130: 153.78 | AW130: 473.76 | AX130: 1630.62 | AY130: 0 | AZ130: 533.46 | BA130: 318.82 | BB130: 249.04 | BC130: 169.63 | BD130: 0.25 | BE130: 0.12 | BF130: 0.06 | BG130: 0.14 | BH130: 0.17 | BI130: 0.76 | BJ130: 0 | BK130: 2.67 | BL130: 0 | BM130: 0.72 | BN130: 0 | BO130: 0 | BP130: 0 | BQ130: 0.14 | BR130: 0.22 | BS130: 2.92 | BT130: 0 | BU130: 0 | BV130: 1.24 | BW130: 0.03 | BX130: 0 | BY130: 0 | BZ130: 0 | CA130: 0 | CB130: 341.06 | CD130: =$I$130/#REF!*100 ->  | CE130: 81.23 | CG130: 37.15 | CH130: 14.83 | CI130: 25.99 | CJ130: 3175.82 | CK130: 1335.38 | CL130: 2255.6 | CM130: 67.29 | CN130: 35.36 | CO130: 51.32 | CP130: 12.6 | CQ130: 0.45
B131: 10:00
A132: ="-" -> - | B132: Йогурт | C132: 100 | D132: 4.1 | E132: 4.1 | F132: 1.5 | G132: 0 | H132: 5.9 | I132: 55.62 | J132: 0.9 | K132: 0 | L132: 0 | M132: 0 | N132: 5.9 | O132: 0 | P132: 0 | Q132: 0 | R132: 0 | S132: 1.1 | T132: 0.9 | U132: 50 | V132: 152 | W132: 124 | X132: 15 | Y132: 95 | Z132: 0.1 | AA132: 10 | AB132: 0 | AC132: 10 | AD132: 0 | AE132: 0.03 | AF132: 0.15 | AG132: 0.2 | AH132: 1.2 | AI132: 0.6 | AJ132: 0 | AK132: 323 | AL132: 300 | AM132: 450 | AN132: 387 | AO132: 115 | AP132: 216 | AQ132: 72 | AR132: 225 | AS132: 160 | AT132: 174 | AU132: 344 | AV132: 156 | AW132: 93 | AX132: 897 | AY132: 0 | AZ132: 518 | BA132: 278 | BB132: 242 | BC132: 50 | BD132: 0.1 | BE132: 0.07 | BF132: 0.04 | BG132: 0.08 | BH132: 0.09 | BI132: 0.45 | BJ132: 0.03 | BK132: 0.56 | BL132: 0.02 | BM132: 0.31 | BN132: 0.04 | BO132: 0 | BP132: 0 | BQ132: 0.04 | BR132: 0.08 | BS132: 0.69 | BT132: 0.01 | BU132: 0 | BV132: 0.02 | BW132: 0.03 | BX132: 0.08 | BY132: 0 | BZ132: 0 | CA132: 0 | CB132: 86.5 | CE132: 10 | CG132: 9 | CH132: 9 | CI132: 9 | CJ132: 3240 | CK132: 2070 | CL132: 2655 | CM132: 2 | CN132: 2 | CO132: 2 | CP132: 0 | CQ132: 0
B133: Итого за '10:00' | C133: =SUM(C132) -> 100 | D133: 4.1 | E133: 4.1 | F133: 1.5 | G133: 0 | H133: 5.9 | I133: 55.62 | J133: 0.9 | K133: 0 | L133: 0 | M133: 0 | N133: 5.9 | O133: 0 | P133: 0 | Q133: 0 | R133: 0 | S133: 1.1 | T133: 0.9 | U133: 50 | V133: 152 | W133: 124 | X133: 15 | Y133: 95 | Z133: 0.1 | AA133: 10 | AB133: 0 | AC133: 10 | AD133: 0 | AE133: 0.03 | AF133: 0.15 | AG133: 0.2 | AH133: 1.2 | AI133: 0.6 | AJ133: 0 | AK133: 323 | AL133: 300 | AM133: 450 | AN133: 387 | AO133: 115 | AP133: 216 | AQ133: 72 | AR133: 225 | AS133: 160 | AT133: 174 | AU133: 344 | AV133: 156 | AW133: 93 | AX133: 897 | AY133: 0 | AZ133: 518 | BA133: 278 | BB133: 242 | BC133: 50 | BD133: 0.1 | BE133: 0.07 | BF133: 0.04 | BG133: 0.08 | BH133: 0.09 | BI133: 0.45 | BJ133: 0.03 | BK133: 0.56 | BL133: 0.02 | BM133: 0.31 | BN133: 0.04 | BO133: 0 | BP133: 0 | BQ133: 0.04 | BR133: 0.08 | BS133: 0.69 | BT133: 0.01 | BU133: 0 | BV133: 0.02 | BW133: 0.03 | BX133: 0.08 | BY133: 0 | BZ133: 0 | CA133: 0 | CB133: 86.5 | CD133: =$I$133/#REF!*100 ->  | CE133: 10 | CG133: 9 | CH133: 9 | CI133: 9 | CJ133: 3240 | CK133: 2070 | CL133: 2655 | CM133: 2 | CN133: 2 | CO133: 2 | CP133: 0 | CQ133: 0
B134: Обед
A135: ="-" -> - | B135: Хлеб пшеничный | C135: 20 | D135: 1.32 | E135: 0 | F135: 0.13 | G135: 0.13 | H135: 9.38 | I135: 44.7802 | J135: 0 | K135: 0 | L135: 0 | M135: 0 | N135: 0.22 | O135: 9.12 | P135: 0.04 | Q135: 0 | R135: 0 | S135: 0 | T135: 0.36 | U135: 0 | V135: 0 | W135: 0 | X135: 0 | Y135: 0 | Z135: 0 | AA135: 0 | AB135: 0 | AC135: 0 | AD135: 0 | AE135: 0 | AF135: 0 | AG135: 0 | AH135: 0 | AI135: 0 | AJ135: 0 | AK135: 63.86 | AL135: 66.47 | AM135: 101.79 | AN135: 33.76 | AO135: 20.01 | AP135: 40.02 | AQ135: 15.14 | AR135: 72.38 | AS135: 44.89 | AT135: 62.64 | AU135: 51.68 | AV135: 27.14 | AW135: 48.02 | AX135: 401.59 | AY135: 0 | AZ135: 130.85 | BA135: 56.9 | BB135: 37.76 | BC135: 29.93 | BD135: 0 | BE135: 0 | BF135: 0 | BG135: 0 | BH135: 0 | BI135: 0 | BJ135: 0 | BK135: 0.02 | BL135: 0 | BM135: 0 | BN135: 0 | BO135: 0 | BP135: 0 | BQ135: 0 | BR135: 0 | BS135: 0.01 | BT135: 0 | BU135: 0 | BV135: 0.06 | BW135: 0 | BX135: 0 | BY135: 0 | BZ135: 0 | CA135: 0 | CB135: 7.82 | CE135: 0 | CG135: 0 | CH135: 0 | CI135: 0 | CJ135: 380 | CK135: 146.4 | CL135: 263.2 | CM135: 3.04 | CN135: 3.04 | CO135: 3.04 | CP135: 0 | CQ135: 0
A136: ="-" -> - | B136: Хлеб ржаной | C136: 20 | D136: 1.32 | E136: 0 | F136: 0.24 | G136: 0.24 | H136: 8.34 | I136: 38.676 | J136: 0.04 | K136: 0 | L136: 0 | M136: 0 | N136: 0.24 | O136: 6.44 | P136: 1.66 | Q136: 0 | R136: 0 | S136: 0.2 | T136: 0.5 | U136: 122 | V136: 49 | W136: 7 | X136: 9.4 | Y136: 31.6 | Z136: 0.78 | AA136: 0 | AB136: 1 | AC136: 0.2 | AD136: 0.28 | AE136: 0.04 | AF136: 0.02 | AG136: 0.14 | AH136: 0.4 | AI136: 0 | AJ136: 0 | AK136: 64.4 | AL136: 49.6 | AM136: 85.4 | AN136: 44.6 | AO136: 18.6 | AP136: 39.6 | AQ136: 16 | AR136: 74.2 | AS136: 59.4 | AT136: 58.2 | AU136: 92.8 | AV136: 24.8 | AW136: 62 | AX136: 311.8 | AY136: 0 | AZ136: 105.2 | BA136: 58.2 | BB136: 36 | BC136: 26 | BD136: 0 | BE136: 0 | BF136: 0 | BG136: 0 | BH136: 0 | BI136: 0 | BJ136: 0 | BK136: 0.03 | BL136: 0 | BM136: 0 | BN136: 0 | BO136: 0 | BP136: 0 | BQ136: 0 | BR136: 0 | BS136: 0.02 | BT136: 0 | BU136: 0 | BV136: 0.1 | BW136: 0.02 | BX136: 0 | BY136: 0 | BZ136: 0 | CA136: 0 | CB136: 9.4 | CE136: 0.17 | CG136: 1 | CH136: 1 | CI136: 1 | CJ136: 190 | CK136: 73.2 | CL136: 131.6 | CM136: 1.9 | CN136: 1.58 | CO136: 1.74 | CP136: 0 | CQ136: 0
A137: ="3/10" -> 3/10 | B137: Компот из яблок | C137: 180 | D137: 0.14 | E137: 0 | F137: 0.14 | G137: 0.14 | H137: 21.67 | I137: 84.015216 | J137: 0.04 | K137: 0 | L137: 0 | M137: 0 | N137: 20.78 | O137: 0.27 | P137: 0.62 | Q137: 0 | R137: 0 | S137: 0.29 | T137: 0.2 | U137: 9.44 | V137: 99.61 | W137: 6.11 | X137: 3.08 | Y137: 3.68 | Z137: 0.82 | AA137: 0 | AB137: 9.72 | AC137: 1.8 | AD137: 0.07 | AE137: 0.01 | AF137: 0.01 | AG137: 0.09 | AH137: 0.14 | AI137: 1.44 | AJ137: 0 | AK137: 4.23 | AL137: 4.59 | AM137: 6.7 | AN137: 6.35 | AO137: 1.06 | AP137: 3.88 | AQ137: 1.06 | AR137: 3.18 | AS137: 6 | AT137: 3.53 | AU137: 27.52 | AV137: 2.47 | AW137: 4.94 | AX137: 14.82 | AY137: 0 | AZ137: 4.59 | BA137: 5.64 | BB137: 2.12 | BC137: 1.76 | BD137: 0 | BE137: 0 | BF137: 0 | BG137: 0 | BH137: 0 | BI137: 0 | BJ137: 0 | BK137: 0 | BL137: 0 | BM137: 0 | BN137: 0 | BO137: 0 | BP137: 0 | BQ137: 0 | BR137: 0 | BS137: 0 | BT137: 0 | BU137: 0 | BV137: 0 | BW137: 0 | BX137: 0 | BY137: 0 | BZ137: 0 | CA137: 0 | CB137: 220.09 | CE137: 1.62 | CG137: 3.75 | CH137: 3.75 | CI137: 3.75 | CJ137: 360 | CK137: 174.15 | CL137: 267.08 | CM137: 34.34 | CN137: 20.16 | CO137: 27.25 | CP137: 18 | CQ137: 0
A138: ="32/1" -> 32/1 | B138: Салат из отварной свеклы с растительным маслом | C138: 50 | D138: 0.69 | E138: 0 | F138: 2.98 | G138: 2.98 | H138: 4.51 | I138: 44.93207292 | J138: 0.38 | K138: 1.95 | L138: 0 | M138: 0 | N138: 3.37 | O138: 0.04 | P138: 1.09 | Q138: 0 | R138: 0 | S138: 0.05 | T138: 0.73 | U138: 111.56 | V138: 111.68 | W138: 17.04 | X138: 9.65 | Y138: 19 | Z138: 0.62 | AA138: 0 | AB138: 4.12 | AC138: 0.99 | AD138: 1.37 | AE138: 0.01 | AF138: 0.02 | AG138: 0.07 | AH138: 0.2 | AI138: 0.97 | AJ138: 0 | AK138: 24.4 | AL138: 27.62 | AM138: 30.85 | AN138: 42.35 | AO138: 9.21 | AP138: 24.4 | AQ138: 5.98 | AR138: 20.72 | AS138: 18.42 | AT138: 33.61 | AU138: 151 | AV138: 6.45 | AW138: 17.49 | AX138: 126.14 | AY138: 0 | AZ138: 21.64 | BA138: 29 | BB138: 23.02 | BC138: 6.91 | BD138: 0 | BE138: 0 | BF138: 0 | BG138: 0 | BH138: 0 | BI138: 0 | BJ138: 0 | BK138: 0.18 | BL138: 0 | BM138: 0.12 | BN138: 0.01 | BO138: 0.02 | BP138: 0 | BQ138: 0 | BR138: 0 | BS138: 0.7 | BT138: 0 | BU138: 0 | BV138: 1.73 | BW138: 0 | BX138: 0 | BY138: 0 | BZ138: 0 | CA138: 0 | CB138: 42.53 | CE138: 0.69 | CG138: 10.87 | CH138: 6.79 | CI138: 8.83 | CJ138: 341.73 | CK138: 81.75 | CL138: 211.74 | CM138: 1.64 | CN138: 1.04 | CO138: 1.34 | CP138: 0 | CQ138: 0.25
A139: ="7/2" -> 7/2 | B139: Щи из свежей капусты и картофеля на говяжьем бульоне | C139: 180 | D139: 1.3 | E139: 5.86 | F139: 1.71 | G139: 1.94 | H139: 7.09 | I139: 46.31827111 | J139: 0.24 | K139: 1.17 | L139: 0 | M139: 0 | N139: 3.14 | O139: 2.52 | P139: 1.43 | Q139: 0 | R139: 0 | S139: 0.21 | T139: 1.03 | U139: 148.27 | V139: 235.06 | W139: 25.74 | X139: 13.73 | Y139: 29.21 | Z139: 0.49 | AA139: 0 | AB139: 874.08 | AC139: 181.89 | AD139: 0.9 | AE139: 0.03 | AF139: 0.03 | AG139: 0.52 | AH139: 0.86 | AI139: 9.99 | AJ139: 0 | AK139: 32.4 | AL139: 30.88 | AM139: 39.26 | AN139: 39.17 | AO139: 11.76 | AP139: 28.51 | AQ139: 8.29 | AR139: 33.25 | AS139: 43.91 | AT139: 66.51 | AU139: 96.03 | AV139: 15.41 | AW139: 29.27 | AX139: 173.44 | AY139: 0 | AZ139: 32.57 | BA139: 32.32 | BB139: 27.75 | BC139: 11.68 | BD139: 0 | BE139: 0 | BF139: 0 | BG139: 0 | BH139: 0 | BI139: 0 | BJ139: 0 | BK139: 0.11 | BL139: 0 | BM139: 0.07 | BN139: 0 | BO139: 0.01 | BP139: 0 | BQ139: 0 | BR139: 0 | BS139: 0.4 | BT139: 0 | BU139: 0 | BV139: 1.08 | BW139: 0 | BX139: 0 | BY139: 0 | BZ139: 0 | CA139: 0 | CB139: 212.57 | CE139: 145.68 | CG139: 22.51 | CH139: 12.55 | CI139: 17.53 | CJ139: 874.13 | CK139: 307.09 | CL139: 590.61 | CM139: 42.75 | CN139: 26.46 | CO139: 34.6 | CP139: 0 | CQ139: 0.36
A140: 9/4 | B140: Каша рисовая молочная вязкая с маслом сливочным | C140: 150 | D140: 3.89 | E140: 1.63 | F140: 4.37 | G140: 0.32 | H140: 30.38 | I140: 175.645824 | J140: 2.26 | K140: 0.07 | L140: 0 | M140: 0 | N140: 5.27 | O140: 18.28 | P140: 0.75 | Q140: 0 | R140: 0 | S140: 0.05 | T140: 0.84 | U140: 140.86 | V140: 92.19 | W140: 56.29 | X140: 18.59 | Y140: 75.54 | Z140: 0.32 | AA140: 21 | AB140: 12.15 | AC140: 23.4 | AD140: 0.14 | AE140: 0.03 | AF140: 0.07 | AG140: 0.4 | AH140: 1.24 | AI140: 0.23 | AJ140: 0 | AK140: 109.9 | AL140: 86.58 | AM140: 162.64 | AN140: 68.59 | AO140: 41.9 | AP140: 63.47 | AQ140: 27.14 | AR140: 96.96 | AS140: 101.96 | AT140: 132.71 | AU140: 141.38 | AV140: 45.01 | AW140: 83.5 | AX140: 314.64 | AY140: 0 | AZ140: 86.79 | BA140: 86.97 | BB140: 76.26 | BC140: 35.74 | BD140: 0.08 | BE140: 0.04 | BF140: 0.02 | BG140: 0.04 | BH140: 0.05 | BI140: 0.24 | BJ140: 0 | BK140: 0.7 | BL140: 0 | BM140: 0.21 | BN140: 0 | BO140: 0 | BP140: 0 | BQ140: 0.05 | BR140: 0.07 | BS140: 0.61 | BT140: 0 | BU140: 0 | BV140: 0.08 | BW140: 0 | BX140: 0 | BY140: 0 | BZ140: 0 | CA140: 0 | CB140: 89.5 | CE140: 23.03 | CG140: 17.73 | CH140: 8.49 | CI140: 13.11 | CJ140: 1334.29 | CK140: 616.06 | CL140: 975.17 | CM140: 18.69 | CN140: 8.15 | CO140: 13.42 | CP140: 3 | CQ140: 0.3
A141: ="7" -> 7 | B141: Биточки (котлеты) из мяса бройлер-цыплят | C141: 70 | D141: 10.58 | E141: 8.96 | F141: 9.97 | G141: 2.82 | H141: 9.18 | I141: 168.470883 | J141: 2.74 | K141: 2.28 | L141: 0 | M141: 0 | N141: 0.35 | O141: 8.18 | P141: 0.65 | Q141: 0 | R141: 0 | S141: 0.09 | T141: 1.18 | U141: 178.35 | V141: 105.08 | W141: 11.64 | X141: 14.89 | Y141: 94.05 | Z141: 1.33 | AA141: 29.01 | AB141: 5.53 | AC141: 37.37 | AD141: 2.04 | AE141: 0.05 | AF141: 0.08 | AG141: 3.94 | AH141: 7.04 | AI141: 0.19 | AJ141: 0 | AK141: 470.62 | AL141: 381.67 | AM141: 757.09 | AN141: 798.65 | AO141: 244.02 | AP141: 445.22 | AQ141: 153.44 | AR141: 410.38 | AS141: 595.33 | AT141: 641.13 | AU141: 834.22 | AV141: 255.76 | AW141: 705.51 | AX141: 1515.68 | AY141: 74.31 | AZ141: 511.58 | BA141: 457.51 | BB141: 338.52 | BC141: 128.53 | BD141: 0 | BE141: 0 | BF141: 0 | BG141: 0 | BH141: 0 | BI141: 0 | BJ141: 0 | BK141: 0.17 | BL141: 0 | BM141: 0.11 | BN141: 0.01 | BO141: 0.02 | BP141: 0 | BQ141: 0 | BR141: 0 | BS141: 0.63 | BT141: 0 | BU141: 0 | BV141: 1.58 | BW141: 0 | BX141: 0 | BY141: 0 | BZ141: 0 | CA141: 0 | CB141: 54.38 | CE141: 29.93 | CG141: 17.73 | CH141: 8.4 | CI141: 13.06 | CJ141: 1892.29 | CK141: 1155.41 | CL141: 1523.85 | CM141: 12.53 | CN141: 9.63 | CO141: 11.08 | CP141: 0 | CQ141: 0.35
B142: Итого за 'Обед' | C142: =SUM(C135:C141) -> 670 | D142: =SUM(D135:D141) -> 19.24 | E142: 16.45 | F142: 19.54 | G142: 8.57 | H142: 90.55 | I142: 602.838467 | J142: 5.7 | K142: 5.47 | L142: 0 | M142: 0 | N142: 33.37 | O142: 44.85 | P142: 6.24 | Q142: 0 | R142: 0 | S142: 0.89 | T142: 4.84 | U142: 710.48 | V142: 692.62 | W142: 123.82 | X142: 69.34 | Y142: 253.08 | Z142: 4.36 | AA142: 50.01 | AB142: 906.6 | AC142: 245.65 | AD142: 4.8 | AE142: 0.17 | AF142: 0.23 | AG142: 5.16 | AH142: 9.88 | AI142: 12.82 | AJ142: 0 | AK142: 769.81 | AL142: 647.41 | AM142: 1183.73 | AN142: 1033.47 | AO142: 346.56 | AP142: 645.1 | AQ142: 227.05 | AR142: 711.07 | AS142: 869.91 | AT142: 998.33 | AU142: 1394.63 | AV142: 377.04 | AW142: 950.73 | AX142: 2858.11 | AY142: 74.31 | AZ142: 893.22 | BA142: 726.54 | BB142: 541.43 | BC142: 240.55 | BD142: 0.08 | BE142: 0.04 | BF142: 0.02 | BG142: 0.04 | BH142: 0.05 | BI142: 0.24 | BJ142: 0 | BK142: 1.21 | BL142: 0 | BM142: 0.51 | BN142: 0.02 | BO142: 0.05 | BP142: =SUM(BP135:BP141) -> 0 | BQ142: 0.05 | BR142: 0.07 | BS142: 2.37 | BT142: 0 | BU142: 0 | BV142: 4.63 | BW142: 0.02 | BX142: 0 | BY142: 0 | BZ142: 0 | CA142: 0 | CB142: 636.29 | CC142: 0 | CD142: 0 | CE142: 201.12 | CF142: 0 | CG142: 73.59 | CH142: 40.98 | CI142: 57.28 | CJ142: 5372.44 | CK142: 2554.06 | CL142: 3963.25 | CM142: 114.89 | CN142: 70.06 | CO142: 92.47 | CP142: 21 | CQ142: 1.26
B143: Ужин
A144: ="-" -> - | B144: Хлеб пшеничный | C144: 20 | D144: 1.32 | E144: 0 | F144: 0.13 | G144: 0.13 | H144: 9.38 | I144: 44.7802 | J144: 0 | K144: 0 | L144: 0 | M144: 0 | N144: 0.22 | O144: 9.12 | P144: 0.04 | Q144: 0 | R144: 0 | S144: 0 | T144: 0.36 | U144: 0 | V144: 0 | W144: 0 | X144: 0 | Y144: 0 | Z144: 0 | AA144: 0 | AB144: 0 | AC144: 0 | AD144: 0 | AE144: 0 | AF144: 0 | AG144: 0 | AH144: 0 | AI144: 0 | AJ144: 0 | AK144: 63.86 | AL144: 66.47 | AM144: 101.79 | AN144: 33.76 | AO144: 20.01 | AP144: 40.02 | AQ144: 15.14 | AR144: 72.38 | AS144: 44.89 | AT144: 62.64 | AU144: 51.68 | AV144: 27.14 | AW144: 48.02 | AX144: 401.59 | AY144: 0 | AZ144: 130.85 | BA144: 56.9 | BB144: 37.76 | BC144: 29.93 | BD144: 0 | BE144: 0 | BF144: 0 | BG144: 0 | BH144: 0 | BI144: 0 | BJ144: 0 | BK144: 0.02 | BL144: 0 | BM144: 0 | BN144: 0 | BO144: 0 | BP144: 0 | BQ144: 0 | BR144: 0 | BS144: 0.01 | BT144: 0 | BU144: 0 | BV144: 0.06 | BW144: 0 | BX144: 0 | BY144: 0 | BZ144: 0 | CA144: 0 | CB144: 7.82 | CE144: 0 | CG144: 0 | CH144: 0 | CI144: 0 | CJ144: 665 | CK144: 256.2 | CL144: 460.6 | CM144: 5.32 | CN144: 5.32 | CO144: 5.32 | CP144: 0 | CQ144: 0
A145: ="-" -> - | B145: Хлеб ржаной | C145: 20 | D145: 1.32 | E145: 0 | F145: 0.24 | G145: 0.24 | H145: 8.34 | I145: 38.676 | J145: 0.04 | K145: 0 | L145: 0 | M145: 0 | N145: 0.24 | O145: 6.44 | P145: 1.66 | Q145: 0 | R145: 0 | S145: 0.2 | T145: 0.5 | U145: 122 | V145: 49 | W145: 7 | X145: 9.4 | Y145: 31.6 | Z145: 0.78 | AA145: 0 | AB145: 1 | AC145: 0.2 | AD145: 0.28 | AE145: 0.04 | AF145: 0.02 | AG145: 0.14 | AH145: 0.4 | AI145: 0 | AJ145: 0 | AK145: 64.4 | AL145: 49.6 | AM145: 85.4 | AN145: 44.6 | AO145: 18.6 | AP145: 39.6 | AQ145: 16 | AR145: 74.2 | AS145: 59.4 | AT145: 58.2 | AU145: 92.8 | AV145: 24.8 | AW145: 62 | AX145: 311.8 | AY145: 0 | AZ145: 105.2 | BA145: 58.2 | BB145: 36 | BC145: 26 | BD145: 0 | BE145: 0 | BF145: 0 | BG145: 0 | BH145: 0 | BI145: 0 | BJ145: 0 | BK145: 0.03 | BL145: 0 | BM145: 0 | BN145: 0 | BO145: 0 | BP145: 0 | BQ145: 0 | BR145: 0 | BS145: 0.02 | BT145: 0 | BU145: 0 | BV145: 0.1 | BW145: 0.02 | BX145: 0 | BY145: 0 | BZ145: 0 | CA145: 0 | CB145: 9.4 | CE145: 0.17 | CG145: 1.5 | CH145: 1.5 | CI145: 1.5 | CJ145: 285 | CK145: 109.8 | CL145: 197.4 | CM145: 2.85 | CN145: 2.37 | CO145: 2.61 | CP145: 0 | CQ145: 0
A146: ="29/10" -> 29/10 | B146: Чай с лимоном | C146: 180 | D146: 0.21 | E146: 0 | F146: 0.05 | G146: 0.05 | H146: 8.93 | I146: 35.63244878 | J146: 0 | K146: 0 | L146: 0 | M146: 0 | N146: 8.75 | O146: 0 | P146: 0.18 | Q146: 0 | R146: 0 | S146: 0.25 | T146: 0.08 | U146: 0.57 | V146: 7.35 | W146: 1.96 | X146: 0.5 | Y146: 0.9 | Z146: 0.05 | AA146: 0 | AB146: 0.4 | AC146: 0.09 | AD146: 0.01 | AE146: 0 | AF146: 0 | AG146: 0 | AH146: 0.01 | AI146: 0.7 | AJ146: 0 | AK146: 0.6 | AL146: 0.69 | AM146: 0.56 | AN146: 1.03 | AO146: 0.26 | AP146: 1.08 | AQ146: 0 | AR146: 1.38 | AS146: 0 | AT146: 0 | AU146: 0 | AV146: 0.77 | AW146: 0 | AX146: 0 | AY146: 0 | AZ146: 0 | BA146: 0 | BB146: 0 | BC146: 0 | BD146: 0 | BE146: 0 | BF146: 0 | BG146: 0 | BH146: 0 | BI146: 0 | BJ146: 0 | BK146: 0 | BL146: 0 | BM146: 0 | BN146: 0 | BO146: 0 | BP146: 0 | BQ146: 0 | BR146: 0 | BS146: 0 | BT146: 0 | BU146: 0 | BV146: 0 | BW146: 0 | BX146: 0 | BY146: 0 | BZ146: 0 | CA146: 0 | CB146: 179.55 | CE146: 0.07 | CG146: 3.21 | CH146: 3.1 | CI146: 3.16 | CJ146: 362.2 | CK146: 137.63 | CL146: 249.91 | CM146: 33.27 | CN146: 19.89 | CO146: 26.58 | CP146: 8.78 | CQ146: 0
A147: ="15/4" -> 15/4 | B147: Каша ячневая молочная с маслом сливочным | C147: 180 | D147: 5.37 | E147: 2.12 | F147: 4.29 | G147: 0.47 | H147: 30.37 | I147: 177.2516088 | J147: 3.06 | K147: 0.08 | L147: 0 | M147: 0 | N147: 6.82 | O147: 20.9 | P147: 2.65 | Q147: 0 | R147: 0 | S147: 0.07 | T147: 1.44 | U147: 216.17 | V147: 158.53 | W147: 103.69 | X147: 24.52 | Y147: 165.04 | Z147: 0.65 | AA147: 17.28 | AB147: 14.4 | AC147: 32.04 | AD147: 0.58 | AE147: 0.09 | AF147: 0.11 | AG147: 0.84 | AH147: 2.28 | AI147: 0.37 | AJ147: 0 | AK147: 163.85 | AL147: 158.74 | AM147: 175.16 | AN147: 119.96 | AO147: 54.72 | AP147: 86.19 | AQ147: 42.06 | AR147: 177.39 | AS147: 138.27 | AT147: 166.7 | AU147: 216.81 | AV147: 79.02 | AW147: 139.56 | AX147: 815.27 | AY147: 0 | AZ147: 444.93 | BA147: 133.8 | BB147: 102.94 | BC147: 68.02 | BD147: 0.09 | BE147: 0.04 | BF147: 0.02 | BG147: 0.05 | BH147: 0.05 | BI147: 0.25 | BJ147: 0 | BK147: 0.7 | BL147: 0 | BM147: 0.22 | BN147: 0 | BO147: 0 | BP147: 0 | BQ147: 0.05 | BR147: 0.07 | BS147: 0.57 | BT147: 0 | BU147: 0 | BV147: 0.03 | BW147: 0 | BX147: 0 | BY147: 0 | BZ147: 0 | CA147: 0 | CB147: 160.02 | CE147: 19.68 | CG147: 30.81 | CH147: 13.06 | CI147: 21.94 | CJ147: 1932.9 | CK147: 884.65 | CL147: 1408.77 | CM147: 40.69 | CN147: 21.49 | CO147: 31.09 | CP147: 3.6 | CQ147: 0.45
A148: ="14/12" -> 14/12 | B148: Булочка дорожная | C148: 70 | D148: 5.42 | E148: 0.85 | F148: 7.86 | G148: 0.59 | H148: 38.65 | I148: 245.1636506 | J148: 5.47 | K148: 0.23 | L148: 0 | M148: 0 | N148: 9.08 | O148: 28.11 | P148: 1.45 | Q148: 0 | R148: 0 | S148: 0.02 | T148: 0.96 | U148: 176.81 | V148: 81.46 | W148: 33.75 | X148: 9.21 | Y148: 55.05 | Z148: 0.55 | AA148: 27.9 | AB148: 26.91 | AC148: 52.17 | AD148: 0.8 | AE148: 0.06 | AF148: 0.05 | AG148: 0.48 | AH148: 1.61 | AI148: 0.11 | AJ148: 0 | AK148: 246.56 | AL148: 226.47 | AM148: 418.7 | AN148: 167.07 | AO148: 85.4 | AP148: 169.48 | AQ148: 57.17 | AR148: 252.68 | AS148: 152.28 | AT148: 180.77 | AU148: 163.57 | AV148: 93.72 | AW148: 158.55 | AX148: 1353.11 | AY148: 2.3 | AZ148: 425.26 | BA148: 224.98 | BB148: 152.72 | BC148: 93.71 | BD148: 0.25 | BE148: 0.11 | BF148: 0.06 | BG148: 0.14 | BH148: 0.16 | BI148: 0.73 | BJ148: 0 | BK148: 2.09 | BL148: 0 | BM148: 0.63 | BN148: 0 | BO148: 0 | BP148: 0 | BQ148: 0.14 | BR148: 0.22 | BS148: 1.7 | BT148: 0 | BU148: 0 | BV148: 0.31 | BW148: 0.02 | BX148: 0 | BY148: 0 | BZ148: 0 | CA148: 0 | CB148: 28.44 | CE148: 32.38 | CG148: 28.6 | CH148: 14.01 | CI148: 21.3 | CJ148: 1622.25 | CK148: 569.86 | CL148: 1096.05 | CM148: 14.57 | CN148: 7.13 | CO148: 11.5 | CP148: 8.4 | CQ148: 0.42
B149: Итого за 'Ужин' | C149: =SUM(C144:C148) -> 470 | D149: =SUM(D144:D148) -> 13.64 | E149: 2.97 | F149: 12.57 | G149: 1.48 | H149: 95.67 | I149: 541.5039082 | J149: 8.57 | K149: 0.31 | L149: 0 | M149: 0 | N149: 25.11 | O149: 64.57 | P149: 5.98 | Q149: 0 | R149: 0 | S149: 0.54 | T149: 3.34 | U149: 515.55 | V149: 296.34 | W149: 146.4 | X149: 43.63 | Y149: 252.59 | Z149: 2.03 | AA149: 45.18 | AB149: 42.71 | AC149: 84.5 | AD149: 1.67 | AE149: 0.19 | AF149: 0.18 | AG149: 1.46 | AH149: 4.3 | AI149: 1.18 | AJ149: 0 | AK149: 539.27 | AL149: 501.97 | AM149: 781.61 | AN149: 366.42 | AO149: 178.99 | AP149: 336.37 | AQ149: 130.37 | AR149: 578.03 | AS149: 394.84 | AT149: 468.31 | AU149: 524.86 | AV149: 225.45 | AW149: 408.13 | AX149: 2881.77 | AY149: 2.3 | AZ149: 1106.24 | BA149: 473.88 | BB149: 329.42 | BC149: 217.66 | BD149: 0.34 | BE149: 0.15 | BF149: 0.08 | BG149: 0.19 | BH149: 0.21 | BI149: 0.98 | BJ149: 0 | BK149: 2.84 | BL149: 0 | BM149: 0.85 | BN149: 0 | BO149: 0 | BP149: =SUM(BP144:BP148) -> 0 | BQ149: 0.19 | BR149: 0.29 | BS149: 2.3 | BT149: 0 | BU149: 0 | BV149: 0.5 | BW149: 0.04 | BX149: 0 | BY149: 0 | BZ149: 0 | CA149: 0 | CB149: 385.23 | CC149: 0 | CD149: 0 | CE149: 52.3 | CF149: 0 | CG149: 64.12 | CH149: 31.67 | CI149: 47.9 | CJ149: 4867.35 | CK149: 1958.14 | CL149: 3412.73 | CM149: 96.7 | CN149: 56.2 | CO149: 77.1 | CP149: 17.18 | CQ149: 0.92
B150: Итого за день | C150: =C130+C133+C142+C149 -> 1645 | D150: =D130+D133+D142+D149 -> 50.25 | E150: 28.71 | F150: 48.39 | G150: 13.6 | H150: 257.38 | I150: 1640.732375 | J150: 23.41 | K150: 5.99 | L150: 0 | M150: 0 | N150: 87.04 | O150: 148.69 | P150: 15.55 | Q150: 0 | R150: 0 | S150: 2.83 | T150: 12.19 | U150: 1717.85 | V150: 1574.39 | W150: 634.92 | X150: 209.32 | Y150: 898.21 | Z150: 8.79 | AA150: 179.19 | AB150: 992.66 | AC150: 422.5 | AD150: 7.82 | AE150: 0.65 | AF150: 0.87 | AG150: 7.93 | AH150: 19.7 | AI150: 15.54 | AJ150: 0 | AK150: 1982.4 | AL150: 1748.05 | AM150: 2882.92 | AN150: 2018.9 | AO150: 731.99 | AP150: 1429.56 | AQ150: 537.46 | AR150: 1875.51 | AS150: 1704 | AT150: 2047.95 | AU150: 2712.42 | AV150: 912.27 | AW150: 1925.62 | AX150: 8267.5 | AY150: 76.61 | AZ150: 3050.92 | BA150: 1797.24 | BB150: 1361.89 | BC150: 677.84 | BD150: 0.77 | BE150: 0.38 | BF150: 0.2 | BG150: 0.45 | BH150: 0.52 | BI150: 2.43 | BJ150: 0.03 | BK150: 7.28 | BL150: 0.02 | BM150: 2.39 | BN150: 0.06 | BO150: 0.05 | BP150: =BP130+BP133+BP142+BP149 -> 0 | BQ150: 0.42 | BR150: 0.66 | BS150: 8.28 | BT150: 0.01 | BU150: 0 | BV150: 6.39 | BW150: 0.12 | BX150: 0.08 | BY150: 0 | BZ150: 0 | CA150: 0 | CB150: 1449.08 | CC150: 0 | CE150: 344.65 | CF150: 0 | CG150: 183.86 | CH150: 96.48 | CI150: 140.17 | CJ150: 16655.61 | CK150: 7917.58 | CL150: 12286.58 | CM150: 280.88 | CN150: 163.62 | CO150: 222.89 | CP150: 50.78 | CQ150: 2.63
B152: 6 ДЕНЬ
B153: Завтрак
A154: ="-" -> - | B154: Батон | C154: 40 | D154: 3.08 | E154: 0 | F154: 1.2 | G154: 1.2 | H154: 21.32 | I154: 107.808 | J154: 0.2 | K154: 0 | L154: 0 | M154: 0 | N154: 1.32 | O154: 18.72 | P154: 1.28 | Q154: 0 | R154: 0 | S154: 0.12 | T154: 0.64 | U154: 171.6 | V154: 52.4 | W154: 8.8 | X154: 13.2 | Y154: 34 | Z154: 0.8 | AA154: 0 | AB154: 0 | AC154: 0 | AD154: 0.68 | AE154: 0.06 | AF154: 0.02 | AG154: 0.64 | AH154: 1.2 | AI154: 0 | AJ154: 0 | AK154: 148.8 | AL154: 154.4 | AM154: 236.4 | AN154: 79.6 | AO154: 46.8 | AP154: 93.6 | AQ154: 35.2 | AR154: 168 | AS154: 104.4 | AT154: 145.2 | AU154: 120.4 | AV154: 64.4 | AW154: 112 | AX154: 930 | AY154: 0 | AZ154: 302.8 | BA154: 132.4 | BB154: 88.8 | BC154: 69.2 | BD154: 0 | BE154: 0 | BF154: 0 | BG154: 0 | BH154: 0 | BI154: 0.01 | BJ154: 0 | BK154: 0.13 | BL154: 0 | BM154: 0.06 | BN154: 0 | BO154: 0 | BP154: 0 | BQ154: 0 | BR154: 0 | BS154: 0.47 | BT154: 0 | BU154: 0 | BV154: 0.35 | BW154: 0.01 | BX154: 0 | BY154: 0 | BZ154: 0 | CA154: 0 | CB154: 13.64 | CE154: 0 | CG154: 0 | CH154: 0 | CI154: 0 | CJ154: 665 | CK154: 256.2 | CL154: 460.6 | CM154: 5.32 | CN154: 5.32 | CO154: 5.32 | CP154: 0 | CQ154: 0
A155: ="-" -> - | B155: Масло сливочное | C155: 5 | D155: 0.04 | E155: 0.04 | F155: 3.63 | G155: 0 | H155: 0.07 | I155: 33.032 | J155: 2.36 | K155: 0.11 | L155: 0 | M155: 0 | N155: 0.07 | O155: 0 | P155: 0 | Q155: 0 | R155: 0 | S155: 0 | T155: 0.07 | U155: 0.75 | V155: 1.5 | W155: 1.2 | X155: 0 | Y155: 1.5 | Z155: 0.01 | AA155: 20 | AB155: 15 | AC155: 22.5 | AD155: 0.05 | AE155: 0 | AF155: 0.01 | AG155: 0.01 | AH155: 0.01 | AI155: 0 | AJ155: 0 | AK155: 2.1 | AL155: 2.05 | AM155: 3.8 | AN155: 2.25 | AO155: 0.85 | AP155: 2.35 | AQ155: 2.15 | AR155: 2.1 | AS155: 1.8 | AT155: 1.3 | AU155: 2.85 | AV155: 1.75 | AW155: 1.2 | AX155: 7.1 | AY155: 0 | AZ155: 2.4 | BA155: 2.7 | BB155: 2.1 | BC155: 0.5 | BD155: 0.13 | BE155: 0.06 | BF155: 0.03 | BG155: 0.08 | BH155: 0.09 | BI155: 0.4 | BJ155: 0 | BK155: 1.1 | BL155: 0 | BM155: 0.34 | BN155: 0 | BO155: 0 | BP155: 0 | BQ155: 0.08 | BR155: 0.12 | BS155: 0.9 | BT155: 0 | BU155: 0 | BV155: 0.05 | BW155: 0 | BX155: 0 | BY155: 0 | BZ155: 0 | CA155: 0 | CB155: 1.25 | CE155: 22.5 | CG155: 0.2 | CH155: 0.05 | CI155: 0.13 | CJ155: 10 | CK155: 4.1 | CL155: 7.05 | CM155: 0.86 | CN155: 0.44 | CO155: 0.65 | CP155: 0 | CQ155: 0
A156: ="31/10" -> 31/10 | B156: Чай с молоком (вариант 2) | C156: 180 | D156: 1.46 | E156: 1.28 | F156: 1.15 | G156: 0.04 | H156: 11.05 | I156: 58.09851 | J156: 0.77 | K156: 0 | L156: 0 | M156: 0 | N156: 10.95 | O156: 0 | P156: 0.09 | Q156: 0 | R156: 0 | S156: 0.05 | T156: 0.37 | U156: 22.36 | V156: 65.31 | W156: 52.64 | X156: 5.99 | Y156: 37.67 | Z156: 0.07 | AA156: 9 | AB156: 4.05 | AC156: 9.9 | AD156: 0 | AE156: 0.02 | AF156: 0.06 | AG156: 0.04 | AH156: 0.36 | AI156: 0.23 | AJ156: 0 | AK156: 0 | AL156: 0 | AM156: 0 | AN156: 0 | AO156: 0 | AP156: 0 | AQ156: 0 | AR156: 0 | AS156: 0 | AT156: 0 | AU156: 0 | AV156: 0 | AW156: 0 | AX156: 0 | AY156: 0 | AZ156: 0 | BA156: 0 | BB156: 0 | BC156: 0 | BD156: 0 | BE156: 0 | BF156: 0 | BG156: 0 | BH156: 0 | BI156: 0 | BJ156: 0 | BK156: 0 | BL156: 0 | BM156: 0 | BN156: 0 | BO156: 0 | BP156: 0 | BQ156: 0 | BR156: 0 | BS156: 0 | BT156: 0 | BU156: 0 | BV156: 0 | BW156: 0 | BX156: 0 | BY156: 0 | BZ156: 0 | CA156: 0 | CB156: 175.14 | CE156: 9.68 | CG156: 6.92 | CH156: 3.77 | CI156: 5.35 | CJ156: 605.25 | CK156: 223.2 | CL156: 414.23 | CM156: 36.02 | CN156: 19.37 | CO156: 27.69 | CP156: 9 | CQ156: 0
A157: ="11/4" -> 11/4 | B157: Каша пшенная молочная с маслом сливочным | C157: 180 | D157: 5.89 | E157: 2.12 | F157: 5.5 | G157: 1.19 | H157: 29.37 | I157: 189.0927954 | J157: 3.45 | K157: 0.1 | L157: 0 | M157: 0 | N157: 7.02 | O157: 21.16 | P157: 1.18 | Q157: 0 | R157: 0 | S157: 0.07 | T157: 1.42 | U157: 214.51 | V157: 160.67 | W157: 87.09 | X157: 34.85 | Y157: 130.82 | Z157: 0.94 | AA157: 19.44 | AB157: 22.32 | AC157: 37.17 | AD157: 0.15 | AE157: 0.13 | AF157: 0.1 | AG157: 0.52 | AH157: 2.24 | AI157: 0.37 | AJ157: 0 | AK157: 160.82 | AL157: 147.25 | AM157: 522.32 | AN157: 99.36 | AO157: 100.89 | AP157: 137.35 | AQ157: 62.73 | AR157: 198.05 | AS157: 365.3 | AT157: 144.92 | AU157: 222.37 | AV157: 89.46 | AW157: 102.54 | AX157: 757.25 | AY157: 0 | AZ157: 276.13 | BA157: 239.16 | BB157: 140.52 | BC157: 61.34 | BD157: 0.11 | BE157: 0.05 | BF157: 0.03 | BG157: 0.06 | BH157: 0.07 | BI157: 0.32 | BJ157: 0 | BK157: 0.95 | BL157: 0 | BM157: 0.29 | BN157: 0.01 | BO157: 0 | BP157: 0 | BQ157: 0.06 | BR157: 0.1 | BS157: 0.88 | BT157: 0 | BU157: 0 | BV157: 0.7 | BW157: 0.01 | BX157: 0 | BY157: 0 | BZ157: 0 | CA157: 0 | CB157: 149.45 | CE157: 23.16 | CG157: 23.28 | CH157: 11.46 | CI157: 17.37 | CJ157: 1594.25 | CK157: 730.44 | CL157: 1162.35 | CM157: 27.55 | CN157: 14.21 | CO157: 20.88 | CP157: 3.6 | CQ157: 0.45
B158: Итого за 'Завтрак' | C158: =SUM(C154:C157) -> 405 | D158: 10.46 | E158: 3.44 | F158: 11.47 | G158: 2.43 | H158: 61.8 | I158: 388.03 | J158: 6.77 | K158: 0.21 | L158: 0 | M158: 0 | N158: 19.36 | O158: 39.88 | P158: 2.55 | Q158: 0 | R158: 0 | S158: 0.24 | T158: 2.5 | U158: 409.22 | V158: 279.88 | W158: 149.73 | X158: 54.04 | Y158: 203.98 | Z158: 1.82 | AA158: 48.44 | AB158: 41.37 | AC158: 69.57 | AD158: 0.88 | AE158: 0.21 | AF158: 0.19 | AG158: 1.21 | AH158: 3.81 | AI158: 0.61 | AJ158: 0 | AK158: 311.72 | AL158: 303.7 | AM158: 762.52 | AN158: 181.21 | AO158: 148.54 | AP158: 233.3 | AQ158: 100.08 | AR158: 368.15 | AS158: 471.5 | AT158: 291.42 | AU158: 345.62 | AV158: 155.61 | AW158: 215.74 | AX158: 1694.35 | AY158: 0 | AZ158: 581.33 | BA158: 374.26 | BB158: 231.42 | BC158: 131.04 | BD158: 0.24 | BE158: 0.11 | BF158: 0.06 | BG158: 0.14 | BH158: 0.16 | BI158: 0.72 | BJ158: 0 | BK158: 2.19 | BL158: 0 | BM158: 0.69 | BN158: 0.01 | BO158: 0 | BP158: 0 | BQ158: 0.14 | BR158: 0.22 | BS158: 2.25 | BT158: 0 | BU158: 0 | BV158: 1.1 | BW158: 0.02 | BX158: 0 | BY158: 0 | BZ158: 0 | CA158: 0 | CB158: 339.48 | CD158: =$I$158/#REF!*100 ->  | CE158: 55.34 | CG158: 30.4 | CH158: 15.29 | CI158: 22.84 | CJ158: 2874.5 | CK158: 1213.94 | CL158: 2044.22 | CM158: 69.74 | CN158: 39.33 | CO158: 54.54 | CP158: 12.6 | CQ158: 0.45
B159: 10:00
A160: ="-" -> - | B160: Сок | C160: 100 | D160: 0.5 | E160: 0 | F160: 0.1 | G160: 0 | H160: 10.3 | I160: 43.24 | J160: 0 | K160: 0 | L160: 0 | M160: 0 | N160: 9.9 | O160: 0.2 | P160: 0.2 | Q160: 0 | R160: 0 | S160: 0.5 | T160: 0.3 | U160: 6 | V160: 120 | W160: 7 | X160: 4 | Y160: 7 | Z160: 1.4 | AA160: 0 | AB160: 0 | AC160: 0 | AD160: 0.1 | AE160: 0.01 | AF160: 0.01 | AG160: 0.1 | AH160: 0.2 | AI160: 2 | AJ160: 0.2 | AK160: 8 | AL160: 10 | AM160: 14 | AN160: 14 | AO160: 2 | AP160: 8 | AQ160: 2 | AR160: 7 | AS160: 13 | AT160: 8 | AU160: 58 | AV160: 5 | AW160: 11 | AX160: 32 | AY160: 0 | AZ160: 10 | BA160: 12 | BB160: 5 | BC160: 4 | BD160: 0 | BE160: 0 | BF160: 0 | BG160: 0 | BH160: 0 | BI160: 0 | BJ160: 0 | BK160: 0 | BL160: 0 | BM160: 0 | BN160: 0 | BO160: 0 | BP160: 0 | BQ160: 0 | BR160: 0 | BS160: 0 | BT160: 0 | BU160: 0 | BV160: 0 | BW160: 0 | BX160: 0 | BY160: 0 | BZ160: 0 | CA160: 0 | CB160: 88.1 | CE160: 0 | CG160: 2 | CH160: 2 | CI160: 2 | CJ160: 200 | CK160: 91 | CL160: 145.5 | CM160: 0.3 | CN160: 0.3 | CO160: 0.3 | CP160: 0 | CQ160: 0
B161: Итого за '10:00' | C161: =SUM(C160) -> 100 | D161: 0.5 | E161: 0 | F161: 0.1 | G161: 0 | H161: 10.3 | I161: 43.24 | J161: 0 | K161: 0 | L161: 0 | M161: 0 | N161: 9.9 | O161: 0.2 | P161: 0.2 | Q161: 0 | R161: 0 | S161: 0.5 | T161: 0.3 | U161: 6 | V161: 120 | W161: 7 | X161: 4 | Y161: 7 | Z161: 1.4 | AA161: 0 | AB161: 0 | AC161: 0 | AD161: 0.1 | AE161: 0.01 | AF161: 0.01 | AG161: 0.1 | AH161: 0.2 | AI161: 2 | AJ161: 0.2 | AK161: 8 | AL161: 10 | AM161: 14 | AN161: 14 | AO161: 2 | AP161: 8 | AQ161: 2 | AR161: 7 | AS161: 13 | AT161: 8 | AU161: 58 | AV161: 5 | AW161: 11 | AX161: 32 | AY161: 0 | AZ161: 10 | BA161: 12 | BB161: 5 | BC161: 4 | BD161: 0 | BE161: 0 | BF161: 0 | BG161: 0 | BH161: 0 | BI161: 0 | BJ161: 0 | BK161: 0 | BL161: 0 | BM161: 0 | BN161: 0 | BO161: 0 | BP161: 0 | BQ161: 0 | BR161: 0 | BS161: 0 | BT161: 0 | BU161: 0 | BV161: 0 | BW161: 0 | BX161: 0 | BY161: 0 | BZ161: 0 | CA161: 0 | CB161: 88.1 | CD161: =$I$161/#REF!*100 ->  | CE161: 0 | CG161: 2 | CH161: 2 | CI161: 2 | CJ161: 200 | CK161: 91 | CL161: 145.5 | CM161: 0.3 | CN161: 0.3 | CO161: 0.3 | CP161: 0 | CQ161: 0
B162: Обед
A163: ="-" -> - | B163: Хлеб пшеничный | C163: 20 | D163: 1.32 | E163: 0 | F163: 0.13 | G163: 0.13 | H163: 9.38 | I163: 44.7802 | J163: 0 | K163: 0 | L163: 0 | M163: 0 | N163: 0.22 | O163: 9.12 | P163: 0.04 | Q163: 0 | R163: 0 | S163: 0 | T163: 0.36 | U163: 0 | V163: 0 | W163: 0 | X163: 0 | Y163: 0 | Z163: 0 | AA163: 0 | AB163: 0 | AC163: 0 | AD163: 0 | AE163: 0 | AF163: 0 | AG163: 0 | AH163: 0 | AI163: 0 | AJ163: 0 | AK163: 63.86 | AL163: 66.47 | AM163: 101.79 | AN163: 33.76 | AO163: 20.01 | AP163: 40.02 | AQ163: 15.14 | AR163: 72.38 | AS163: 44.89 | AT163: 62.64 | AU163: 51.68 | AV163: 27.14 | AW163: 48.02 | AX163: 401.59 | AY163: 0 | AZ163: 130.85 | BA163: 56.9 | BB163: 37.76 | BC163: 29.93 | BD163: 0 | BE163: 0 | BF163: 0 | BG163: 0 | BH163: 0 | BI163: 0 | BJ163: 0 | BK163: 0.02 | BL163: 0 | BM163: 0 | BN163: 0 | BO163: 0 | BP163: 0 | BQ163: 0 | BR163: 0 | BS163: 0.01 | BT163: 0 | BU163: 0 | BV163: 0.06 | BW163: 0 | BX163: 0 | BY163: 0 | BZ163: 0 | CA163: 0 | CB163: 7.82 | CE163: 0 | CG163: 0 | CH163: 0 | CI163: 0 | CJ163: 380 | CK163: 146.4 | CL163: 263.2 | CM163: 3.04 | CN163: 3.04 | CO163: 3.04 | CP163: 0 | CQ163: 0
A164: ="-" -> - | B164: Хлеб ржаной | C164: 20 | D164: 1.32 | E164: 0 | F164: 0.24 | G164: 0.24 | H164: 8.34 | I164: 38.676 | J164: 0.04 | K164: 0 | L164: 0 | M164: 0 | N164: 0.24 | O164: 6.44 | P164: 1.66 | Q164: 0 | R164: 0 | S164: 0.2 | T164: 0.5 | U164: 122 | V164: 49 | W164: 7 | X164: 9.4 | Y164: 31.6 | Z164: 0.78 | AA164: 0 | AB164: 1 | AC164: 0.2 | AD164: 0.28 | AE164: 0.04 | AF164: 0.02 | AG164: 0.14 | AH164: 0.4 | AI164: 0 | AJ164: 0 | AK164: 64.4 | AL164: 49.6 | AM164: 85.4 | AN164: 44.6 | AO164: 18.6 | AP164: 39.6 | AQ164: 16 | AR164: 74.2 | AS164: 59.4 | AT164: 58.2 | AU164: 92.8 | AV164: 24.8 | AW164: 62 | AX164: 311.8 | AY164: 0 | AZ164: 105.2 | BA164: 58.2 | BB164: 36 | BC164: 26 | BD164: 0 | BE164: 0 | BF164: 0 | BG164: 0 | BH164: 0 | BI164: 0 | BJ164: 0 | BK164: 0.03 | BL164: 0 | BM164: 0 | BN164: 0 | BO164: 0 | BP164: 0 | BQ164: 0 | BR164: 0 | BS164: 0.02 | BT164: 0 | BU164: 0 | BV164: 0.1 | BW164: 0.02 | BX164: 0 | BY164: 0 | BZ164: 0 | CA164: 0 | CB164: 9.4 | CE164: 0.17 | CG164: 1 | CH164: 1 | CI164: 1 | CJ164: 190 | CK164: 73.2 | CL164: 131.6 | CM164: 1.9 | CN164: 1.58 | CO164: 1.74 | CP164: 0 | CQ164: 0
A165: ="6/10" -> 6/10 | B165: Компот из сухофруктов | C165: 180 | D165: 0.92 | E165: 0 | F165: 0.05 | G165: 0.05 | H165: 20.86 | I165: 78.839028 | J165: 0.02 | K165: 0 | L165: 0 | M165: 0 | N165: 17.27 | O165: 0.51 | P165: 3.08 | Q165: 0 | R165: 0 | S165: 0.27 | T165: 0.73 | U165: 3.12 | V165: 306.24 | W165: 28.2 | X165: 17.96 | Y165: 24.44 | Z165: 0.58 | AA165: 0 | AB165: 567 | AC165: 104.94 | AD165: 0.99 | AE165: 0.02 | AF165: 0.03 | AG165: 0.46 | AH165: 0.7 | AI165: 0.29 | AJ165: 0 | AK165: 0.01 | AL165: 0.01 | AM165: 0.01 | AN165: 0.02 | AO165: 0 | AP165: 0.01 | AQ165: 0 | AR165: 0.01 | AS165: 0.01 | AT165: 0.01 | AU165: 0.05 | AV165: 0 | AW165: 0.01 | AX165: 0.02 | AY165: 0 | AZ165: 0.01 | BA165: 0.01 | BB165: 0.01 | BC165: 0 | BD165: 0 | BE165: 0 | BF165: 0 | BG165: 0 | BH165: 0 | BI165: 0 | BJ165: 0 | BK165: 0 | BL165: 0 | BM165: 0 | BN165: 0 | BO165: 0 | BP165: 0 | BQ165: 0 | BR165: 0 | BS165: 0.01 | BT165: 0 | BU165: 0 | BV165: 0.01 | BW165: 0 | BX165: 0 | BY165: 0 | BZ165: 0 | CA165: 0 | CB165: 192.61 | CE165: 94.5 | CG165: 3.95 | CH165: 3.95 | CI165: 3.95 | CJ165: 454.5 | CK165: 172.98 | CL165: 313.74 | CM165: 41.94 | CN165: 24.93 | CO165: 33.44 | CP165: 9 | CQ165: 0
A166: ="16/1" -> 16/1 | B166: Салат из моркови с растительным маслом | C166: 50 | D166: 0.59 | E166: 0 | F166: 2.98 | G166: 2.98 | H166: 5.66 | I166: 49.174832 | J166: 0.38 | K166: 1.95 | L166: 0 | M166: 0 | N166: 4.49 | O166: 0.09 | P166: 1.08 | Q166: 0 | R166: 0 | S166: 0.14 | T166: 0.45 | U166: 9.48 | V166: 90.2 | W166: 12.22 | X166: 17.13 | Y166: 24.85 | Z166: 0.32 | AA166: 0 | AB166: 5409.6 | AC166: 920 | AD166: 1.5 | AE166: 0.03 | AF166: 0.03 | AG166: 0.45 | AH166: 0.51 | AI166: 2.25 | AJ166: 0 | AK166: 19.38 | AL166: 15.78 | AM166: 19.84 | AN166: 17.13 | AO166: 4.06 | AP166: 14.43 | AQ166: 3.61 | AR166: 13.97 | AS166: 21.64 | AT166: 18.48 | AU166: 60.86 | AV166: 6.31 | AW166: 13.07 | AX166: 105.94 | AY166: 0 | AZ166: 13.52 | BA166: 14.88 | BB166: 8.11 | BC166: 5.41 | BD166: 0 | BE166: 0 | BF166: 0 | BG166: 0 | BH166: 0 | BI166: 0 | BJ166: 0 | BK166: 0.18 | BL166: 0 | BM166: 0.12 | BN166: 0.01 | BO166: 0.02 | BP166: 0 | BQ166: 0 | BR166: 0 | BS166: 0.7 | BT166: 0 | BU166: 0 | BV166: 1.73 | BW166: 0 | BX166: 0 | BY166: 0 | BZ166: 0 | CA166: 0 | CB166: 40.48 | CE166: 901.6 | CG166: 1.96 | CH166: 1.89 | CI166: 1.92 | CJ166: 327.8 | CK166: 77.97 | CL166: 202.88 | CM166: 1.72 | CN166: 1.01 | CO166: 1.36 | CP166: 1.5 | CQ166: 0
A167: ="14/2" -> 14/2 | B167: Суп картофельный с крупой на говяжьем бульоне | C167: 180 | D167: 1.6 | E167: 5.86 | F167: 3.48 | G167: 3.95 | H167: 12.09 | I167: 84.3455718 | J167: 0.53 | K167: 2.34 | L167: 0 | M167: 0 | N167: 1.52 | O167: 9.2 | P167: 1.36 | Q167: 0 | R167: 0 | S167: 0.14 | T167: 1.14 | U167: 143.89 | V167: 302.97 | W167: 9.74 | X167: 20.18 | Y167: 43.05 | Z167: 0.72 | AA167: 0 | AB167: 700.13 | AC167: 145.69 | AD167: 1.71 | AE167: 0.06 | AF167: 0.04 | AG167: 0.75 | AH167: 1.34 | AI167: 4.68 | AJ167: 0 | AK167: 35.57 | AL167: 38.24 | AM167: 53.57 | AN167: 50.97 | AO167: 16.51 | AP167: 36.01 | AQ167: 16.79 | AR167: 42.94 | AS167: 52.32 | AT167: 121.9 | AU167: 81.96 | AV167: 18.22 | AW167: 47.14 | AX167: 204.06 | AY167: 0 | AZ167: 34.18 | BA167: 36.45 | BB167: 31 | BC167: 18.58 | BD167: 0 | BE167: 0 | BF167: 0 | BG167: 0 | BH167: 0 | BI167: 0 | BJ167: 0 | BK167: 0.25 | BL167: 0 | BM167: 0.14 | BN167: 0.01 | BO167: 0.02 | BP167: 0 | BQ167: 0 | BR167: 0 | BS167: 0.86 | BT167: 0 | BU167: 0 | BV167: 2.21 | BW167: 0 | BX167: 0 | BY167: 0 | BZ167: 0 | CA167: 0 | CB167: 179.93 | CE167: 116.69 | CG167: 20.4 | CH167: 13.1 | CI167: 16.75 | CJ167: 691.86 | CK167: 391.87 | CL167: 541.86 | CM167: 38.66 | CN167: 18.8 | CO167: 28.73 | CP167: 0 | CQ167: 0.36
A168: ="292/17" -> 292/17 | B168: Жаркое из мясо птиц с овощами | C168: 180 | D168: 17.22 | E168: 15.2 | F168: 22.71 | G168: 7.34 | H168: 15.48 | I168: 332.3122932 | J168: 4.71 | K168: 4.68 | L168: 0 | M168: 0 | N168: 4.87 | O168: 8.67 | P168: 1.93 | Q168: 0 | R168: 0 | S168: 0.38 | T168: 2.53 | U168: 299.2 | V168: 634.73 | W168: 34.27 | X168: 42.69 | Y168: 189.98 | Z168: 2.31 | AA168: 59.64 | AB168: 3096.47 | AC168: 633.14 | AD168: 3.86 | AE168: 0.14 | AF168: 0.18 | AG168: 6.6 | AH168: 12.27 | AI168: 7.67 | AJ168: 0 | AK168: 758.59 | AL168: 611.62 | AM168: 1220.27 | AN168: 1365.64 | AO168: 401.58 | AP168: 746.07 | AQ168: 258.57 | AR168: 653.71 | AS168: 1010.64 | AT168: 1128.02 | AU168: 1439.5 | AV168: 417.84 | AW168: 1179.19 | AX168: 2347.98 | AY168: 126.08 | AZ168: 758.02 | BA168: 742.04 | BB168: 557.72 | BC168: 197.92 | BD168: 0 | BE168: 0 | BF168: 0 | BG168: 0 | BH168: 0 | BI168: 0 | BJ168: 0 | BK168: 0.48 | BL168: 0 | BM168: 0.3 | BN168: 0.02 | BO168: 0.05 | BP168: 0 | BQ168: 0 | BR168: 0 | BS168: 1.77 | BT168: 0 | BU168: 0 | BV168: 4.22 | BW168: 0 | BX168: 0 | BY168: 0 | BZ168: 0 | CA168: 0 | CB168: 142.41 | CE168: 575.72 | CG168: 34.98 | CH168: 19.15 | CI168: 27.07 | CJ168: 3345.68 | CK168: 2068.04 | CL168: 2706.86 | CM168: 30.87 | CN168: 16.12 | CO168: 23.49 | CP168: 0 | CQ168: 0.6
B169: Итого за 'Обед' | C169: =SUM(C163:C168) -> 630 | D169: 22.97 | E169: 21.06 | F169: 29.59 | G169: 14.7 | H169: 71.81 | I169: 628.13 | J169: 5.67 | K169: 8.97 | L169: 0 | M169: 0 | N169: 28.61 | O169: 34.04 | P169: 9.16 | Q169: 0 | R169: 0 | S169: 1.12 | T169: 5.72 | U169: 577.69 | V169: 1383.14 | W169: 91.42 | X169: 107.35 | Y169: 313.92 | Z169: 4.71 | AA169: 59.64 | AB169: 9774.2 | AC169: 1803.98 | AD169: 8.34 | AE169: 0.28 | AF169: 0.3 | AG169: 8.4 | AH169: 15.21 | AI169: 14.89 | AJ169: 0 | AK169: 941.81 | AL169: 781.71 | AM169: 1480.88 | AN169: 1512.11 | AO169: 460.76 | AP169: 876.13 | AQ169: 310.1 | AR169: 857.22 | AS169: 1188.9 | AT169: 1389.25 | AU169: 1726.86 | AV169: 494.31 | AW169: 1349.44 | AX169: 3371.4 | AY169: 126.08 | AZ169: 1041.79 | BA169: 908.47 | BB169: 670.6 | BC169: 277.84 | BD169: 0 | BE169: 0 | BF169: 0 | BG169: 0 | BH169: 0 | BI169: 0 | BJ169: 0 | BK169: 0.96 | BL169: 0 | BM169: 0.56 | BN169: 0.04 | BO169: 0.09 | BP169: 0 | BQ169: 0 | BR169: 0.01 | BS169: 3.38 | BT169: 0 | BU169: 0 | BV169: 8.32 | BW169: 0.02 | BX169: 0 | BY169: 0 | BZ169: 0 | CA169: 0 | CB169: 572.65 | CD169: =$I$169/#REF!*100 ->  | CE169: 1688.67 | CG169: 62.3 | CH169: 39.08 | CI169: 50.69 | CJ169: 5389.84 | CK169: 2930.46 | CL169: 4160.15 | CM169: 118.12 | CN169: 65.48 | CO169: 91.8 | CP169: 10.5 | CQ169: 0.96
B170: Ужин
A171: ="-" -> - | B171: Хлеб пшеничный | C171: 20 | D171: 1.32 | E171: 0 | F171: 0.13 | G171: 0.13 | H171: 9.38 | I171: 44.7802 | J171: 0 | K171: 0 | L171: 0 | M171: 0 | N171: 0.22 | O171: 9.12 | P171: 0.04 | Q171: 0 | R171: 0 | S171: 0 | T171: 0.36 | U171: 0 | V171: 0 | W171: 0 | X171: 0 | Y171: 0 | Z171: 0 | AA171: 0 | AB171: 0 | AC171: 0 | AD171: 0 | AE171: 0 | AF171: 0 | AG171: 0 | AH171: 0 | AI171: 0 | AJ171: 0 | AK171: 63.86 | AL171: 66.47 | AM171: 101.79 | AN171: 33.76 | AO171: 20.01 | AP171: 40.02 | AQ171: 15.14 | AR171: 72.38 | AS171: 44.89 | AT171: 62.64 | AU171: 51.68 | AV171: 27.14 | AW171: 48.02 | AX171: 401.59 | AY171: 0 | AZ171: 130.85 | BA171: 56.9 | BB171: 37.76 | BC171: 29.93 | BD171: 0 | BE171: 0 | BF171: 0 | BG171: 0 | BH171: 0 | BI171: 0 | BJ171: 0 | BK171: 0.02 | BL171: 0 | BM171: 0 | BN171: 0 | BO171: 0 | BP171: 0 | BQ171: 0 | BR171: 0 | BS171: 0.01 | BT171: 0 | BU171: 0 | BV171: 0.06 | BW171: 0 | BX171: 0 | BY171: 0 | BZ171: 0 | CA171: 0 | CB171: 7.82 | CE171: 0 | CG171: 0 | CH171: 0 | CI171: 0 | CJ171: 665 | CK171: 256.2 | CL171: 460.6 | CM171: 5.32 | CN171: 5.32 | CO171: 5.32 | CP171: 0 | CQ171: 0
A172: ="-" -> - | B172: Хлеб ржаной | C172: 20 | D172: 1.32 | E172: 0 | F172: 0.24 | G172: 0.24 | H172: 8.34 | I172: 38.676 | J172: 0.04 | K172: 0 | L172: 0 | M172: 0 | N172: 0.24 | O172: 6.44 | P172: 1.66 | Q172: 0 | R172: 0 | S172: 0.2 | T172: 0.5 | U172: 122 | V172: 49 | W172: 7 | X172: 9.4 | Y172: 31.6 | Z172: 0.78 | AA172: 0 | AB172: 1 | AC172: 0.2 | AD172: 0.28 | AE172: 0.04 | AF172: 0.02 | AG172: 0.14 | AH172: 0.4 | AI172: 0 | AJ172: 0 | AK172: 64.4 | AL172: 49.6 | AM172: 85.4 | AN172: 44.6 | AO172: 18.6 | AP172: 39.6 | AQ172: 16 | AR172: 74.2 | AS172: 59.4 | AT172: 58.2 | AU172: 92.8 | AV172: 24.8 | AW172: 62 | AX172: 311.8 | AY172: 0 | AZ172: 105.2 | BA172: 58.2 | BB172: 36 | BC172: 26 | BD172: 0 | BE172: 0 | BF172: 0 | BG172: 0 | BH172: 0 | BI172: 0 | BJ172: 0 | BK172: 0.03 | BL172: 0 | BM172: 0 | BN172: 0 | BO172: 0 | BP172: 0 | BQ172: 0 | BR172: 0 | BS172: 0.02 | BT172: 0 | BU172: 0 | BV172: 0.1 | BW172: 0.02 | BX172: 0 | BY172: 0 | BZ172: 0 | CA172: 0 | CB172: 9.4 | CE172: 0.17 | CG172: 1.5 | CH172: 1.5 | CI172: 1.5 | CJ172: 285 | CK172: 109.8 | CL172: 197.4 | CM172: 2.85 | CN172: 2.37 | CO172: 2.61 | CP172: 0 | CQ172: 0
A173: ="27/10" -> 27/10 | B173: Чай | C173: 180 | D173: 0.18 | E173: 0 | F173: 0.04 | G173: 0.04 | H173: 8.93 | I173: 34.88157 | J173: 0 | K173: 0 | L173: 0 | M173: 0 | N173: 8.84 | O173: 0 | P173: 0.09 | Q173: 0 | R173: 0 | S173: 0 | T173: 0.06 | U173: 0.09 | V173: 0.27 | W173: 0.26 | X173: 0 | Y173: 0 | Z173: 0.03 | AA173: 0 | AB173: 0 | AC173: 0 | AD173: 0 | AE173: 0 | AF173: 0 | AG173: 0 | AH173: 0 | AI173: 0 | AJ173: 0 | AK173: 0 | AL173: 0 | AM173: 0 | AN173: 0 | AO173: 0 | AP173: 0 | AQ173: 0 | AR173: 0 | AS173: 0 | AT173: 0 | AU173: 0 | AV173: 0 | AW173: 0 | AX173: 0 | AY173: 0 | AZ173: 0 | BA173: 0 | BB173: 0 | BC173: 0 | BD173: 0 | BE173: 0 | BF173: 0 | BG173: 0 | BH173: 0 | BI173: 0 | BJ173: 0 | BK173: 0 | BL173: 0 | BM173: 0 | BN173: 0 | BO173: 0 | BP173: 0 | BQ173: 0 | BR173: 0 | BS173: 0 | BT173: 0 | BU173: 0 | BV173: 0 | BW173: 0 | BX173: 0 | BY173: 0 | BZ173: 0 | CA173: 0 | CB173: 180.09 | CE173: 0 | CG173: 3.14 | CH173: 3.14 | CI173: 3.14 | CJ173: 363.75 | CK173: 138 | CL173: 250.88 | CM173: 33.32 | CN173: 19.82 | CO173: 26.57 | CP173: 9 | CQ173: 0
A174: ="24/2" -> 24/2 | B174: Суп молочный с макаронными изделиями | C174: 180 | D174: 4.76 | E174: 3.6 | F174: 4.5 | G174: 0.14 | H174: 14.54 | I174: 116.6125918 | J174: 3.01 | K174: 0.04 | L174: 0 | M174: 0 | N174: 7.22 | O174: 6.95 | P174: 0.38 | Q174: 0 | R174: 0 | S174: 0.13 | T174: 1.32 | U174: 200.93 | V174: 195.87 | W174: 150.39 | X174: 18.47 | Y174: 114.95 | Z174: 0.31 | AA174: 32.4 | AB174: 16.2 | AC174: 35.82 | AD174: 0.18 | AE174: 0.06 | AF174: 0.18 | AG174: 0.22 | AH174: 1.32 | AI174: 0.66 | AJ174: 0 | AK174: 51.12 | AL174: 46.76 | AM174: 87.6 | AN174: 27.57 | AO174: 16.71 | AP174: 34.06 | AQ174: 11.45 | AR174: 54.3 | AS174: 35.99 | AT174: 43.22 | AU174: 37.41 | AV174: 22 | AW174: 37.89 | AX174: 332.09 | AY174: 0 | AZ174: 104.68 | BA174: 54.51 | BB174: 27.52 | BC174: 21.56 | BD174: 0.05 | BE174: 0.02 | BF174: 0.01 | BG174: 0.03 | BH174: 0.03 | BI174: 0.14 | BJ174: 0 | BK174: 0.41 | BL174: 0 | BM174: 0.12 | BN174: 0 | BO174: 0 | BP174: 0 | BQ174: 0.03 | BR174: 0.04 | BS174: 0.32 | BT174: 0 | BU174: 0 | BV174: 0.06 | BW174: 0 | BX174: 0 | BY174: 0 | BZ174: 0 | CA174: 0 | CB174: 150 | CE174: 35.1 | CG174: 26.71 | CH174: 10.64 | CI174: 18.68 | CJ174: 886.94 | CK174: 375.42 | CL174: 631.18 | CM174: 26.47 | CN174: 9.57 | CO174: 18.02 | CP174: 1.08 | CQ174: 0.36
A175: ="-" -> - | B175: Фрукты | C175: 100 | D175: 0.4 | E175: 0 | F175: 0.4 | G175: 0.4 | H175: 11.6 | I175: 48.68 | J175: 0.1 | K175: 0 | L175: 0 | M175: 0 | N175: 9 | O175: 0.8 | P175: 1.8 | Q175: 0 | R175: 0 | S175: 0.8 | T175: 0.5 | U175: 26 | V175: 278 | W175: 16 | X175: 9 | Y175: 11 | Z175: 2.2 | AA175: 0 | AB175: 30 | AC175: 5 | AD175: 0.2 | AE175: 0.03 | AF175: 0.02 | AG175: 0.3 | AH175: 0.4 | AI175: 10 | AJ175: 0 | AK175: 12 | AL175: 13 | AM175: 19 | AN175: 18 | AO175: 3 | AP175: 11 | AQ175: 3 | AR175: 9 | AS175: 17 | AT175: 10 | AU175: 78 | AV175: 7 | AW175: 14 | AX175: 42 | AY175: 0 | AZ175: 13 | BA175: 16 | BB175: 6 | BC175: 5 | BD175: 0 | BE175: 0 | BF175: 0 | BG175: 0 | BH175: 0 | BI175: 0 | BJ175: 0 | BK175: 0 | BL175: 0 | BM175: 0 | BN175: 0 | BO175: 0 | BP175: 0 | BQ175: 0 | BR175: 0 | BS175: 0 | BT175: 0 | BU175: 0 | BV175: 0 | BW175: 0 | BX175: 0 | BY175: 0 | BZ175: 0 | CA175: 0 | CB175: 86.3 | CE175: 5 | CG175: 2 | CH175: 2 | CI175: 2 | CJ175: 150 | CK175: 150 | CL175: 150 | CM175: 46.8 | CN175: 46.8 | CO175: 46.8 | CP175: 0 | CQ175: 0
B176: Итого за 'Ужин' | C176: =SUM(C171:C175) -> 500 | D176: 7.98 | E176: 3.6 | F176: 5.32 | G176: 0.95 | H176: 52.8 | I176: 283.63 | J176: 3.15 | K176: 0.04 | L176: 0 | M176: 0 | N176: 25.52 | O176: 23.31 | P176: 3.97 | Q176: 0 | R176: 0 | S176: 1.13 | T176: 2.74 | U176: 349.02 | V176: 523.14 | W176: 173.65 | X176: 36.87 | Y176: 157.55 | Z176: 3.31 | AA176: 32.4 | AB176: 47.2 | AC176: 41.02 | AD176: 0.66 | AE176: 0.12 | AF176: 0.21 | AG176: 0.66 | AH176: 2.12 | AI176: 10.66 | AJ176: 0 | AK176: 191.38 | AL176: 175.83 | AM176: 293.79 | AN176: 123.93 | AO176: 58.32 | AP176: 124.68 | AQ176: 45.59 | AR176: 209.88 | AS176: 157.28 | AT176: 174.06 | AU176: 259.89 | AV176: 80.94 | AW176: 161.91 | AX176: 1087.48 | AY176: 0 | AZ176: 353.72 | BA176: 185.61 | BB176: 107.28 | BC176: 82.48 | BD176: 0.05 | BE176: 0.02 | BF176: 0.01 | BG176: 0.03 | BH176: 0.03 | BI176: 0.14 | BJ176: 0 | BK176: 0.45 | BL176: 0 | BM176: 0.12 | BN176: 0 | BO176: 0 | BP176: 0 | BQ176: 0.03 | BR176: 0.05 | BS176: 0.35 | BT176: 0 | BU176: 0 | BV176: 0.21 | BW176: 0.02 | BX176: 0 | BY176: 0 | BZ176: 0 | CA176: 0 | CB176: 433.6 | CD176: =$I$176/#REF!*100 ->  | CE176: 40.27 | CG176: 33.36 | CH176: 17.28 | CI176: 25.32 | CJ176: 2350.69 | CK176: 1029.42 | CL176: 1690.06 | CM176: 114.76 | CN176: 83.88 | CO176: 99.32 | CP176: 10.08 | CQ176: 0.36
B177: Итого за день | C177: =C158+C161+C169+C176 -> 1635 | D177: =D158+D161+D169+D176 -> 41.91 | E177: 28.1 | F177: 46.48 | G177: 18.08 | H177: 196.71 | I177: 1343.03 | J177: 15.59 | K177: 9.22 | L177: 0 | M177: 0 | N177: 83.39 | O177: 97.43 | P177: 15.88 | Q177: 0 | R177: 0 | S177: 2.99 | T177: 11.26 | U177: 1341.93 | V177: 2306.16 | W177: 421.8 | X177: 202.26 | Y177: 682.45 | Z177: 11.24 | AA177: 140.48 | AB177: 9862.77 | AC177: 1914.57 | AD177: 9.98 | AE177: 0.62 | AF177: 0.71 | AG177: 10.37 | AH177: 21.34 | AI177: 28.16 | AJ177: 0.2 | AK177: 1452.91 | AL177: 1271.24 | AM177: 2551.19 | AN177: 1831.25 | AO177: 669.62 | AP177: 1242.11 | AQ177: 457.77 | AR177: 1442.25 | AS177: 1830.68 | AT177: 1862.73 | AU177: 2390.37 | AV177: 735.86 | AW177: 1738.09 | AX177: 6185.23 | AY177: 126.08 | AZ177: 1986.84 | BA177: 1480.34 | BB177: 1014.3 | BC177: 495.36 | BD177: 0.29 | BE177: 0.13 | BF177: 0.07 | BG177: 0.17 | BH177: 0.19 | BI177: 0.86 | BJ177: 0 | BK177: 3.6 | BL177: 0 | BM177: 1.37 | BN177: 0.05 | BO177: 0.09 | BP177: =BP158+BP161+BP169+BP176 -> 0 | BQ177: 0.17 | BR177: 0.28 | BS177: 5.98 | BT177: 0 | BU177: 0 | BV177: 9.63 | BW177: 0.06 | BX177: 0 | BY177: 0 | BZ177: 0 | CA177: 0 | CB177: 1433.83 | CC177: 0 | CE177: 1784.28 | CF177: 0 | CG177: 128.06 | CH177: 73.65 | CI177: 100.85 | CJ177: 10815.03 | CK177: 5264.82 | CL177: 8039.93 | CM177: 302.92 | CN177: 188.99 | CO177: 245.96 | CP177: 33.18 | CQ177: 1.77
B179: 2 НЕДЕЛЯ
B181: 1 ДЕНЬ
B182: Завтрак
A183: ="-" -> - | B183: Батон | C183: 40 | D183: 3.08 | E183: 0 | F183: 1.2 | G183: 1.2 | H183: 21.32 | I183: 107.808 | J183: 0.2 | K183: 0 | L183: 0 | M183: 0 | N183: 1.32 | O183: 18.72 | P183: 1.28 | Q183: 0 | R183: 0 | S183: 0.12 | T183: 0.64 | U183: 171.6 | V183: 52.4 | W183: 8.8 | X183: 13.2 | Y183: 34 | Z183: 0.8 | AA183: 0 | AB183: 0 | AC183: 0 | AD183: 0.68 | AE183: 0.06 | AF183: 0.02 | AG183: 0.64 | AH183: 1.2 | AI183: 0 | AJ183: 0 | AK183: 148.8 | AL183: 154.4 | AM183: 236.4 | AN183: 79.6 | AO183: 46.8 | AP183: 93.6 | AQ183: 35.2 | AR183: 168 | AS183: 104.4 | AT183: 145.2 | AU183: 120.4 | AV183: 64.4 | AW183: 112 | AX183: 930 | AY183: 0 | AZ183: 302.8 | BA183: 132.4 | BB183: 88.8 | BC183: 69.2 | BD183: 0 | BE183: 0 | BF183: 0 | BG183: 0 | BH183: 0 | BI183: 0.01 | BJ183: 0 | BK183: 0.13 | BL183: 0 | BM183: 0.06 | BN183: 0 | BO183: 0 | BP183: 0 | BQ183: 0 | BR183: 0 | BS183: 0.47 | BT183: 0 | BU183: 0 | BV183: 0.35 | BW183: 0.01 | BX183: 0 | BY183: 0 | BZ183: 0 | CA183: 0 | CB183: 13.64 | CE183: 0 | CG183: 0 | CH183: 0 | CI183: 0 | CJ183: 665 | CK183: 256.2 | CL183: 460.6 | CM183: 5.32 | CN183: 5.32 | CO183: 5.32 | CP183: 0 | CQ183: 0
A184: ="-" -> - | B184: Масло сливочное | C184: 5 | D184: 0.04 | E184: 0.04 | F184: 3.63 | G184: 0 | H184: 0.07 | I184: 33.032 | J184: 2.36 | K184: 0.11 | L184: 0 | M184: 0 | N184: 0.07 | O184: 0 | P184: 0 | Q184: 0 | R184: 0 | S184: 0 | T184: 0.07 | U184: 0.75 | V184: 1.5 | W184: 1.2 | X184: 0 | Y184: 1.5 | Z184: 0.01 | AA184: 20 | AB184: 15 | AC184: 22.5 | AD184: 0.05 | AE184: 0 | AF184: 0.01 | AG184: 0.01 | AH184: 0.01 | AI184: 0 | AJ184: 0 | AK184: 2.1 | AL184: 2.05 | AM184: 3.8 | AN184: 2.25 | AO184: 0.85 | AP184: 2.35 | AQ184: 2.15 | AR184: 2.1 | AS184: 1.8 | AT184: 1.3 | AU184: 2.85 | AV184: 1.75 | AW184: 1.2 | AX184: 7.1 | AY184: 0 | AZ184: 2.4 | BA184: 2.7 | BB184: 2.1 | BC184: 0.5 | BD184: 0.13 | BE184: 0.06 | BF184: 0.03 | BG184: 0.08 | BH184: 0.09 | BI184: 0.4 | BJ184: 0 | BK184: 1.1 | BL184: 0 | BM184: 0.34 | BN184: 0 | BO184: 0 | BP184: 0 | BQ184: 0.08 | BR184: 0.12 | BS184: 0.9 | BT184: 0 | BU184: 0 | BV184: 0.05 | BW184: 0 | BX184: 0 | BY184: 0 | BZ184: 0 | CA184: 0 | CB184: 1.25 | CE184: 22.5 | CG184: 0.2 | CH184: 0.05 | CI184: 0.13 | CJ184: 10 | CK184: 4.1 | CL184: 7.05 | CM184: 0.86 | CN184: 0.44 | CO184: 0.65 | CP184: 0 | CQ184: 0
A185: ="-" -> - | B185: Печенье | C185: 20 | D185: 1.5 | E185: 0 | F185: 1.96 | G185: 0 | H185: 15.34 | I185: 84.452 | J185: 0.42 | K185: 0 | L185: 0 | M185: 0 | N185: 4.72 | O185: 10.16 | P185: 0.46 | Q185: 0 | R185: 0 | S185: 0.1 | T185: 0.2 | U185: 66 | V185: 22 | W185: 5.8 | X185: 4 | Y185: 18 | Z185: 0.42 | AA185: 2 | AB185: 1.6 | AC185: 2.2 | AD185: 0.7 | AE185: 0.02 | AF185: 0.01 | AG185: 0.14 | AH185: 0.38 | AI185: 0 | AJ185: 0 | AK185: 249.4 | AL185: 185.2 | AM185: 318.8 | AN185: 286.6 | AO185: 87.6 | AP185: 162.4 | AQ185: 47.6 | AR185: 185.6 | AS185: 0 | AT185: 0 | AU185: 0 | AV185: 87.8 | AW185: 0 | AX185: 0 | AY185: 0 | AZ185: 0 | BA185: 0 | BB185: 0 | BC185: 0 | BD185: 0 | BE185: 0 | BF185: 0 | BG185: 0 | BH185: 0 | BI185: 0 | BJ185: 0 | BK185: 0 | BL185: 0 | BM185: 0 | BN185: 0 | BO185: 0 | BP185: 0 | BQ185: 0 | BR185: 0 | BS185: 0 | BT185: 0 | BU185: 0 | BV185: 0 | BW185: 0 | BX185: 0 | BY185: 0 | BZ185: 0 | CA185: 0 | CB185: 0.9 | CE185: 2.27 | CG185: 1.26 | CH185: 1.26 | CI185: 1.26 | CJ185: 648 | CK185: 414 | CL185: 531 | CM185: 6.16 | CN185: 6.16 | CO185: 6.16 | CP185: 0 | CQ185: 0
A186: ="29/10" -> 29/10 | B186: Чай с лимоном | C186: 180 | D186: 0.21 | E186: 0 | F186: 0.05 | G186: 0.05 | H186: 8.93 | I186: 35.63244878 | J186: 0 | K186: 0 | L186: 0 | M186: 0 | N186: 8.75 | O186: 0 | P186: 0.18 | Q186: 0 | R186: 0 | S186: 0.25 | T186: 0.08 | U186: 0.57 | V186: 7.35 | W186: 1.96 | X186: 0.5 | Y186: 0.9 | Z186: 0.05 | AA186: 0 | AB186: 0.4 | AC186: 0.09 | AD186: 0.01 | AE186: 0 | AF186: 0 | AG186: 0 | AH186: 0.01 | AI186: 0.7 | AJ186: 0 | AK186: 0.6 | AL186: 0.69 | AM186: 0.56 | AN186: 1.03 | AO186: 0.26 | AP186: 1.08 | AQ186: 0 | AR186: 1.38 | AS186: 0 | AT186: 0 | AU186: 0 | AV186: 0.77 | AW186: 0 | AX186: 0 | AY186: 0 | AZ186: 0 | BA186: 0 | BB186: 0 | BC186: 0 | BD186: 0 | BE186: 0 | BF186: 0 | BG186: 0 | BH186: 0 | BI186: 0 | BJ186: 0 | BK186: 0 | BL186: 0 | BM186: 0 | BN186: 0 | BO186: 0 | BP186: 0 | BQ186: 0 | BR186: 0 | BS186: 0 | BT186: 0 | BU186: 0 | BV186: 0 | BW186: 0 | BX186: 0 | BY186: 0 | BZ186: 0 | CA186: 0 | CB186: 179.55 | CE186: 0.07 | CG186: 3.21 | CH186: 3.1 | CI186: 3.16 | CJ186: 362.2 | CK186: 137.63 | CL186: 249.91 | CM186: 33.27 | CN186: 19.89 | CO186: 26.58 | CP186: 8.78 | CQ186: 0
A187: ="17/4" -> 17/4 | B187: Каша молочная ассорти (рис, пшено) с маслом сливочным | C187: 180 | D187: 5.27 | E187: 2.7 | F187: 5.51 | G187: 0.7 | H187: 28.44 | I187: 183.0142449 | J187: 3.77 | K187: 0.1 | L187: 0 | M187: 0 | N187: 8.5 | O187: 19.01 | P187: 0.93 | Q187: 0 | R187: 0 | S187: 0.09 | T187: 1.44 | U187: 224.15 | V187: 162.92 | W187: 104.48 | X187: 29.49 | Y187: 125.63 | Z187: 0.63 | AA187: 21.82 | AB187: 20.88 | AC187: 40.96 | AD187: 0.15 | AE187: 0.09 | AF187: 0.12 | AG187: 0.47 | AH187: 1.98 | AI187: 0.48 | AJ187: 0 | AK187: 130.62 | AL187: 112.73 | AM187: 328.47 | AN187: 81.19 | AO187: 68.6 | AP187: 96.74 | AQ187: 43.44 | AR187: 141.96 | AS187: 223.81 | AT187: 134.13 | AU187: 175.42 | AV187: 64.85 | AW187: 89.85 | AX187: 515.13 | AY187: 0 | AZ187: 174.11 | BA187: 156.68 | BB187: 104.48 | BC187: 46.74 | BD187: 0.11 | BE187: 0.05 | BF187: 0.03 | BG187: 0.06 | BH187: 0.07 | BI187: 0.32 | BJ187: 0 | BK187: 0.93 | BL187: 0 | BM187: 0.28 | BN187: 0 | BO187: 0 | BP187: 0 | BQ187: 0.06 | BR187: 0.09 | BS187: 0.83 | BT187: 0 | BU187: 0 | BV187: 0.38 | BW187: 0.01 | BX187: 0 | BY187: 0 | BZ187: 0 | CA187: 0 | CB187: 150.12 | CE187: 25.3 | CG187: 28.87 | CH187: 13.31 | CI187: 21.09 | CJ187: 1807.26 | CK187: 809.43 | CL187: 1308.34 | CM187: 30.52 | CN187: 13.78 | CO187: 22.15 | CP187: 4.5 | CQ187: 0.45
B188: Итого за 'Завтрак' | C188: =SUM(C183:C187) -> 425 | D188: 10.1 | E188: 2.74 | F188: 12.34 | G188: 1.95 | H188: 74.09 | I188: 443.94 | J188: 6.75 | K188: 0.21 | L188: 0 | M188: 0 | N188: 23.36 | O188: 47.89 | P188: 2.84 | Q188: 0 | R188: 0 | S188: 0.56 | T188: 2.43 | U188: 463.06 | V188: 246.16 | W188: 122.24 | X188: 47.19 | Y188: 180.03 | Z188: 1.91 | AA188: 43.82 | AB188: 37.88 | AC188: 65.75 | AD188: 1.59 | AE188: 0.17 | AF188: 0.16 | AG188: 1.26 | AH188: 3.57 | AI188: 1.18 | AJ188: 0 | AK188: 531.52 | AL188: 455.07 | AM188: 888.03 | AN188: 450.67 | AO188: 204.11 | AP188: 356.17 | AQ188: 128.39 | AR188: 499.04 | AS188: 330.01 | AT188: 280.63 | AU188: 298.67 | AV188: 219.57 | AW188: 203.05 | AX188: 1452.23 | AY188: 0 | AZ188: 479.31 | BA188: 291.78 | BB188: 195.38 | BC188: 116.44 | BD188: 0.24 | BE188: 0.11 | BF188: 0.06 | BG188: 0.14 | BH188: 0.16 | BI188: 0.72 | BJ188: 0 | BK188: 2.17 | BL188: 0 | BM188: 0.68 | BN188: 0.01 | BO188: 0 | BP188: 0 | BQ188: 0.14 | BR188: 0.21 | BS188: 2.2 | BT188: 0 | BU188: 0 | BV188: 0.78 | BW188: 0.02 | BX188: 0 | BY188: 0 | BZ188: 0 | CA188: 0 | CB188: 345.45 | CD188: =$I$188/#REF!*100 ->  | CE188: 50.13 | CG188: 33.54 | CH188: 17.72 | CI188: 25.63 | CJ188: 3492.45 | CK188: 1621.36 | CL188: 2556.91 | CM188: 76.12 | CN188: 45.59 | CO188: 60.85 | CP188: 13.28 | CQ188: 0.45
B189: 10:00
A190: ="-" -> - | B190: Сок | C190: 100 | D190: 0.5 | E190: 0 | F190: 0.1 | G190: 0 | H190: 10.3 | I190: 43.24 | J190: 0 | K190: 0 | L190: 0 | M190: 0 | N190: 9.9 | O190: 0.2 | P190: 0.2 | Q190: 0 | R190: 0 | S190: 0.5 | T190: 0.3 | U190: 6 | V190: 120 | W190: 7 | X190: 4 | Y190: 7 | Z190: 1.4 | AA190: 0 | AB190: 0 | AC190: 0 | AD190: 0.1 | AE190: 0.01 | AF190: 0.01 | AG190: 0.1 | AH190: 0.2 | AI190: 2 | AJ190: 0.2 | AK190: 8 | AL190: 10 | AM190: 14 | AN190: 14 | AO190: 2 | AP190: 8 | AQ190: 2 | AR190: 7 | AS190: 13 | AT190: 8 | AU190: 58 | AV190: 5 | AW190: 11 | AX190: 32 | AY190: 0 | AZ190: 10 | BA190: 12 | BB190: 5 | BC190: 4 | BD190: 0 | BE190: 0 | BF190: 0 | BG190: 0 | BH190: 0 | BI190: 0 | BJ190: 0 | BK190: 0 | BL190: 0 | BM190: 0 | BN190: 0 | BO190: 0 | BP190: 0 | BQ190: 0 | BR190: 0 | BS190: 0 | BT190: 0 | BU190: 0 | BV190: 0 | BW190: 0 | BX190: 0 | BY190: 0 | BZ190: 0 | CA190: 0 | CB190: 88.1 | CE190: 0 | CG190: 2 | CH190: 2 | CI190: 2 | CJ190: 200 | CK190: 91 | CL190: 145.5 | CM190: 0.3 | CN190: 0.3 | CO190: 0.3 | CP190: 0 | CQ190: 0
B191: Итого за '10:00' | C191: =SUM(C190) -> 100 | D191: 0.5 | E191: 0 | F191: 0.1 | G191: 0 | H191: 10.3 | I191: 43.24 | J191: 0 | K191: 0 | L191: 0 | M191: 0 | N191: 9.9 | O191: 0.2 | P191: 0.2 | Q191: 0 | R191: 0 | S191: 0.5 | T191: 0.3 | U191: 6 | V191: 120 | W191: 7 | X191: 4 | Y191: 7 | Z191: 1.4 | AA191: 0 | AB191: 0 | AC191: 0 | AD191: 0.1 | AE191: 0.01 | AF191: 0.01 | AG191: 0.1 | AH191: 0.2 | AI191: 2 | AJ191: 0.2 | AK191: 8 | AL191: 10 | AM191: 14 | AN191: 14 | AO191: 2 | AP191: 8 | AQ191: 2 | AR191: 7 | AS191: 13 | AT191: 8 | AU191: 58 | AV191: 5 | AW191: 11 | AX191: 32 | AY191: 0 | AZ191: 10 | BA191: 12 | BB191: 5 | BC191: 4 | BD191: 0 | BE191: 0 | BF191: 0 | BG191: 0 | BH191: 0 | BI191: 0 | BJ191: 0 | BK191: 0 | BL191: 0 | BM191: 0 | BN191: 0 | BO191: 0 | BP191: 0 | BQ191: 0 | BR191: 0 | BS191: 0 | BT191: 0 | BU191: 0 | BV191: 0 | BW191: 0 | BX191: 0 | BY191: 0 | BZ191: 0 | CA191: 0 | CB191: 88.1 | CD191: =$I$191/#REF!*100 ->  | CE191: 0 | CG191: 2 | CH191: 2 | CI191: 2 | CJ191: 200 | CK191: 91 | CL191: 145.5 | CM191: 0.3 | CN191: 0.3 | CO191: 0.3 | CP191: 0 | CQ191: 0
B192: Обед
A193: ="-" -> - | B193: Хлеб пшеничный | C193: 20 | D193: 1.32 | E193: 0 | F193: 0.13 | G193: 0.13 | H193: 9.38 | I193: 44.7802 | J193: 0 | K193: 0 | L193: 0 | M193: 0 | N193: 0.22 | O193: 9.12 | P193: 0.04 | Q193: 0 | R193: 0 | S193: 0 | T193: 0.36 | U193: 0 | V193: 0 | W193: 0 | X193: 0 | Y193: 0 | Z193: 0 | AA193: 0 | AB193: 0 | AC193: 0 | AD193: 0 | AE193: 0 | AF193: 0 | AG193: 0 | AH193: 0 | AI193: 0 | AJ193: 0 | AK193: 63.86 | AL193: 66.47 | AM193: 101.79 | AN193: 33.76 | AO193: 20.01 | AP193: 40.02 | AQ193: 15.14 | AR193: 72.38 | AS193: 44.89 | AT193: 62.64 | AU193: 51.68 | AV193: 27.14 | AW193: 48.02 | AX193: 401.59 | AY193: 0 | AZ193: 130.85 | BA193: 56.9 | BB193: 37.76 | BC193: 29.93 | BD193: 0 | BE193: 0 | BF193: 0 | BG193: 0 | BH193: 0 | BI193: 0 | BJ193: 0 | BK193: 0.02 | BL193: 0 | BM193: 0 | BN193: 0 | BO193: 0 | BP193: 0 | BQ193: 0 | BR193: 0 | BS193: 0.01 | BT193: 0 | BU193: 0 | BV193: 0.06 | BW193: 0 | BX193: 0 | BY193: 0 | BZ193: 0 | CA193: 0 | CB193: 7.82 | CE193: 0 | CG193: 0 | CH193: 0 | CI193: 0 | CJ193: 380 | CK193: 146.4 | CL193: 263.2 | CM193: 3.04 | CN193: 3.04 | CO193: 3.04 | CP193: 0 | CQ193: 0
A194: ="-" -> - | B194: Хлеб ржаной | C194: 20 | D194: 1.32 | E194: 0 | F194: 0.24 | G194: 0.24 | H194: 8.34 | I194: 38.676 | J194: 0.04 | K194: 0 | L194: 0 | M194: 0 | N194: 0.24 | O194: 6.44 | P194: 1.66 | Q194: 0 | R194: 0 | S194: 0.2 | T194: 0.5 | U194: 122 | V194: 49 | W194: 7 | X194: 9.4 | Y194: 31.6 | Z194: 0.78 | AA194: 0 | AB194: 1 | AC194: 0.2 | AD194: 0.28 | AE194: 0.04 | AF194: 0.02 | AG194: 0.14 | AH194: 0.4 | AI194: 0 | AJ194: 0 | AK194: 64.4 | AL194: 49.6 | AM194: 85.4 | AN194: 44.6 | AO194: 18.6 | AP194: 39.6 | AQ194: 16 | AR194: 74.2 | AS194: 59.4 | AT194: 58.2 | AU194: 92.8 | AV194: 24.8 | AW194: 62 | AX194: 311.8 | AY194: 0 | AZ194: 105.2 | BA194: 58.2 | BB194: 36 | BC194: 26 | BD194: 0 | BE194: 0 | BF194: 0 | BG194: 0 | BH194: 0 | BI194: 0 | BJ194: 0 | BK194: 0.03 | BL194: 0 | BM194: 0 | BN194: 0 | BO194: 0 | BP194: 0 | BQ194: 0 | BR194: 0 | BS194: 0.02 | BT194: 0 | BU194: 0 | BV194: 0.1 | BW194: 0.02 | BX194: 0 | BY194: 0 | BZ194: 0 | CA194: 0 | CB194: 9.4 | CE194: 0.17 | CG194: 1 | CH194: 1 | CI194: 1 | CJ194: 190 | CK194: 73.2 | CL194: 131.6 | CM194: 1.9 | CN194: 1.58 | CO194: 1.74 | CP194: 0 | CQ194: 0
A195: ="3/10" -> 3/10 | B195: Компот из яблок | C195: 180 | D195: 0.14 | E195: 0 | F195: 0.14 | G195: 0.14 | H195: 21.67 | I195: 84.015216 | J195: 0.04 | K195: 0 | L195: 0 | M195: 0 | N195: 20.78 | O195: 0.27 | P195: 0.62 | Q195: 0 | R195: 0 | S195: 0.29 | T195: 0.2 | U195: 9.44 | V195: 99.61 | W195: 6.11 | X195: 3.08 | Y195: 3.68 | Z195: 0.82 | AA195: 0 | AB195: 9.72 | AC195: 1.8 | AD195: 0.07 | AE195: 0.01 | AF195: 0.01 | AG195: 0.09 | AH195: 0.14 | AI195: 1.44 | AJ195: 0 | AK195: 4.23 | AL195: 4.59 | AM195: 6.7 | AN195: 6.35 | AO195: 1.06 | AP195: 3.88 | AQ195: 1.06 | AR195: 3.18 | AS195: 6 | AT195: 3.53 | AU195: 27.52 | AV195: 2.47 | AW195: 4.94 | AX195: 14.82 | AY195: 0 | AZ195: 4.59 | BA195: 5.64 | BB195: 2.12 | BC195: 1.76 | BD195: 0 | BE195: 0 | BF195: 0 | BG195: 0 | BH195: 0 | BI195: 0 | BJ195: 0 | BK195: 0 | BL195: 0 | BM195: 0 | BN195: 0 | BO195: 0 | BP195: 0 | BQ195: 0 | BR195: 0 | BS195: 0 | BT195: 0 | BU195: 0 | BV195: 0 | BW195: 0 | BX195: 0 | BY195: 0 | BZ195: 0 | CA195: 0 | CB195: 220.09 | CE195: 1.62 | CG195: 3.75 | CH195: 3.75 | CI195: 3.75 | CJ195: 360 | CK195: 174.15 | CL195: 267.08 | CM195: 34.34 | CN195: 20.16 | CO195: 27.25 | CP195: 18 | CQ195: 0
A196: ="3/1" -> 3/1 | B196: Салат из белокочанной капусты с растительным маслом | C196: 50 | D196: 0.8 | E196: 0 | F196: 2.98 | G196: 2.98 | H196: 4.45 | I196: 45.782219 | J196: 0.38 | K196: 1.95 | L196: 0 | M196: 0 | N196: 3.52 | O196: 0.04 | P196: 0.89 | Q196: 0 | R196: 0 | S196: 0.13 | T196: 0.56 | U196: 100.65 | V196: 133.84 | W196: 22.35 | X196: 7.19 | Y196: 14.07 | Z196: 0.28 | AA196: 0 | AB196: 8.92 | AC196: 1.37 | AD196: 1.37 | AE196: 0.01 | AF196: 0.02 | AG196: 0.31 | AH196: 0.41 | AI196: 20.07 | AJ196: 0 | AK196: 25.86 | AL196: 22.3 | AM196: 28.54 | AN196: 27.2 | AO196: 9.81 | AP196: 20.07 | AQ196: 4.46 | AR196: 24.97 | AS196: 31.66 | AT196: 37.9 | AU196: 76.69 | AV196: 12.49 | AW196: 20.96 | AX196: 122.62 | AY196: 0 | AZ196: 26.31 | BA196: 26.31 | BB196: 22.3 | BC196: 8.92 | BD196: 0 | BE196: 0 | BF196: 0 | BG196: 0 | BH196: 0 | BI196: 0 | BJ196: 0 | BK196: 0.18 | BL196: 0 | BM196: 0.12 | BN196: 0.01 | BO196: 0.02 | BP196: 0 | BQ196: 0 | BR196: 0 | BS196: 0.7 | BT196: 0 | BU196: 0 | BV196: 1.73 | BW196: 0 | BX196: 0 | BY196: 0 | BZ196: 0 | CA196: 0 | CB196: 41.14 | CE196: 1.49 | CG196: 11.03 | CH196: 4.77 | CI196: 7.9 | CJ196: 325.07 | CK196: 77.83 | CL196: 201.45 | CM196: 5.97 | CN196: 5.77 | CO196: 5.87 | CP196: 1.5 | CQ196: 0.25
A197: ="18/2" -> 18/2 | B197: Суп картофельный с макаронными изделиями на говяжьем бульоне | C197: 180 | D197: 1.93 | E197: 5.74 | F197: 1.72 | G197: 1.72 | H197: 14.6 | I197: 80.27548092 | J197: 0.24 | K197: 0.94 | L197: 0 | M197: 0 | N197: 1.75 | O197: 11.6 | P197: 1.25 | Q197: 0 | R197: 0 | S197: 0.14 | T197: 1.09 | U197: 142.66 | V197: 317.96 | W197: 11.24 | X197: 15.92 | Y197: 40.02 | Z197: 0.66 | AA197: 0 | AB197: 942.19 | AC197: 174.31 | AD197: 0.84 | AE197: 0.07 | AF197: 0.04 | AG197: 0.7 | AH197: 1.24 | AI197: 4.41 | AJ197: 0 | AK197: 48.91 | AL197: 52.8 | AM197: 84.78 | AN197: 50.35 | AO197: 16.42 | AP197: 44.18 | AQ197: 17.54 | AR197: 57.87 | AS197: 55.81 | AT197: 110.44 | AU197: 69.8 | AV197: 22.08 | AW197: 47.19 | AX197: 343.9 | AY197: 0 | AZ197: 85.19 | BA197: 51.12 | BB197: 33.84 | BC197: 21.41 | BD197: 0 | BE197: 0 | BF197: 0 | BG197: 0 | BH197: 0 | BI197: 0 | BJ197: 0 | BK197: 0.14 | BL197: 0 | BM197: 0.07 | BN197: 0 | BO197: 0.01 | BP197: 0 | BQ197: 0 | BR197: 0 | BS197: 0.42 | BT197: 0 | BU197: 0 | BV197: 0.9 | BW197: 0 | BX197: 0 | BY197: 0 | BZ197: 0 | CA197: 0 | CB197: 187.49 | CE197: 157.03 | CG197: 20.37 | CH197: 13.13 | CI197: 16.75 | CJ197: 622.77 | CK197: 372.86 | CL197: 497.82 | CM197: 38.79 | CN197: 19.02 | CO197: 28.9 | CP197: 0 | CQ197: 0.36
A198: ="39/3" -> 39/3 | B198: Каша гречневая рассыпчатая | C198: 150 | D198: 6.58 | E198: 0 | F198: 1.72 | G198: 1.72 | H198: 34.47 | I198: 170.9136495 | J198: 0.32 | K198: 0 | L198: 0 | M198: 0 | N198: 0.73 | O198: 28.03 | P198: 5.72 | Q198: 0 | R198: 0 | S198: 0 | T198: 1.28 | U198: 145.29 | V198: 200.36 | W198: 11.67 | X198: 101.25 | Y198: 147.84 | Z198: 3.47 | AA198: 0 | AB198: 4.79 | AC198: 1.07 | AD198: 0.43 | AE198: 0.19 | AF198: 0.1 | AG198: 1.9 | AH198: 3.83 | AI198: 0 | AJ198: 0 | AK198: 307.89 | AL198: 240.05 | AM198: 388.78 | AN198: 276.58 | AO198: 166.99 | AP198: 208.74 | AQ198: 93.93 | AR198: 308.94 | AS198: 302.67 | AT198: 584.47 | AU198: 575.08 | AV198: 156.56 | AW198: 375.73 | AX198: 1179.38 | AY198: 0 | AZ198: 260.93 | BA198: 316.24 | BB198: 224.4 | BC198: 172.21 | BD198: 0 | BE198: 0 | BF198: 0 | BG198: 0 | BH198: 0 | BI198: 0.01 | BJ198: 0 | BK198: 0.28 | BL198: 0 | BM198: 0.02 | BN198: 0.01 | BO198: 0 | BP198: 0 | BQ198: 0 | BR198: 0.01 | BS198: 0.56 | BT198: 0.01 | BU198: 0 | BV198: 0.55 | BW198: 0.05 | BX198: 0 | BY198: 0 | BZ198: 0 | CA198: 0 | CB198: 87.71 | CE198: 0.8 | CG198: 22.03 | CH198: 13.03 | CI198: 17.53 | CJ198: 2500.89 | CK198: 1230.66 | CL198: 1865.78 | CM198: 36.59 | CN198: 24.34 | CO198: 30.46 | CP198: 0 | CQ198: 0.38
A199: ="16/8" -> 16/8 | B199: Биточки (котлеты) из мяса говядины | C199: 70 | D199: 10.88 | E199: 9.15 | F199: 9.57 | G199: 3.35 | H199: 9.77 | I199: 168.495544 | J199: 4.23 | K199: 2.73 | L199: 0 | M199: 0 | N199: 0.36 | O199: 8.76 | P199: 0.65 | Q199: 0 | R199: 0 | S199: 0.09 | T199: 1.18 | U199: 153.12 | V199: 163.19 | W199: 8.15 | X199: 16.74 | Y199: 104.15 | Z199: 1.87 | AA199: 0 | AB199: 0.35 | AC199: 0.07 | AD199: 2.3 | AE199: 0.05 | AF199: 0.08 | AG199: 2.54 | AH199: 4.81 | AI199: 0 | AJ199: 0 | AK199: 553.25 | AL199: 430.55 | AM199: 797.35 | AN199: 1297.27 | AO199: 232.75 | AP199: 422.69 | AQ199: 113.75 | AR199: 441.01 | AS199: 565.3 | AT199: 556.35 | AU199: 907.06 | AV199: 368.06 | AW199: 494.13 | AX199: 1788.49 | AY199: 142.71 | AZ199: 427.1 | BA199: 422.98 | BB199: 349.78 | BC199: 148.04 | BD199: 0 | BE199: 0 | BF199: 0 | BG199: 0 | BH199: 0 | BI199: 0 | BJ199: 0 | BK199: 0.21 | BL199: 0 | BM199: 0.13 | BN199: 0.01 | BO199: 0.02 | BP199: 0 | BQ199: 0 | BR199: 0 | BS199: 0.76 | BT199: 0 | BU199: 0 | BV199: 1.89 | BW199: 0 | BX199: 0 | BY199: 0 | BZ199: 0 | CA199: 0 | CB199: 55.91 | CE199: 0.06 | CG199: 38.39 | CH199: 23.99 | CI199: 31.19 | CJ199: 4933.68 | CK199: 2996.81 | CL199: 3965.24 | CM199: 33.96 | CN199: 21.98 | CO199: 27.97 | CP199: 0 | CQ199: 0.28
B200: Итого за 'Обед' | C200: =SUM(C193:C199) -> 670 | D200: 22.97 | E200: 14.89 | F200: 16.5 | G200: 10.28 | H200: 102.69 | I200: 632.94 | J200: 5.25 | K200: 5.62 | L200: 0 | M200: 0 | N200: 27.6 | O200: 64.26 | P200: 10.83 | Q200: 0 | R200: 0 | S200: 0.85 | T200: 5.16 | U200: 673.17 | V200: 963.96 | W200: 66.52 | X200: 153.57 | Y200: 341.35 | Z200: 7.88 | AA200: 0 | AB200: 966.97 | AC200: 178.81 | AD200: 5.28 | AE200: 0.37 | AF200: 0.26 | AG200: 5.69 | AH200: 10.83 | AI200: 25.91 | AJ200: 0 | AK200: 1068.4 | AL200: 866.35 | AM200: 1493.34 | AN200: 1736.11 | AO200: 465.64 | AP200: 779.17 | AQ200: 261.88 | AR200: 982.55 | AS200: 1065.73 | AT200: 1413.54 | AU200: 1800.63 | AV200: 613.6 | AW200: 1052.97 | AX200: 4162.6 | AY200: 142.71 | AZ200: 1040.16 | BA200: 937.39 | BB200: 706.18 | BC200: 408.27 | BD200: 0 | BE200: 0 | BF200: 0 | BG200: 0 | BH200: 0 | BI200: 0.01 | BJ200: 0 | BK200: 0.84 | BL200: 0 | BM200: 0.34 | BN200: 0.03 | BO200: 0.05 | BP200: 0 | BQ200: 0 | BR200: 0.02 | BS200: 2.46 | BT200: 0.01 | BU200: 0 | BV200: 5.23 | BW200: 0.07 | BX200: 0 | BY200: 0 | BZ200: 0 | CA200: 0 | CB200: 609.55 | CD200: =$I$200/#REF!*100 ->  | CE200: 161.16 | CG200: 96.57 | CH200: 59.68 | CI200: 78.13 | CJ200: 9312.41 | CK200: 5071.91 | CL200: 7192.16 | CM200: 154.58 | CN200: 95.88 | CO200: 125.23 | CP200: 19.5 | CQ200: 1.27
B201: Ужин
A202: ="-" -> - | B202: Хлеб пшеничный | C202: 20 | D202: 1.32 | E202: 0 | F202: 0.13 | G202: 0.13 | H202: 9.38 | I202: 44.7802 | J202: 0 | K202: 0 | L202: 0 | M202: 0 | N202: 0.22 | O202: 9.12 | P202: 0.04 | Q202: 0 | R202: 0 | S202: 0 | T202: 0.36 | U202: 0 | V202: 0 | W202: 0 | X202: 0 | Y202: 0 | Z202: 0 | AA202: 0 | AB202: 0 | AC202: 0 | AD202: 0 | AE202: 0 | AF202: 0 | AG202: 0 | AH202: 0 | AI202: 0 | AJ202: 0 | AK202: 63.86 | AL202: 66.47 | AM202: 101.79 | AN202: 33.76 | AO202: 20.01 | AP202: 40.02 | AQ202: 15.14 | AR202: 72.38 | AS202: 44.89 | AT202: 62.64 | AU202: 51.68 | AV202: 27.14 | AW202: 48.02 | AX202: 401.59 | AY202: 0 | AZ202: 130.85 | BA202: 56.9 | BB202: 37.76 | BC202: 29.93 | BD202: 0 | BE202: 0 | BF202: 0 | BG202: 0 | BH202: 0 | BI202: 0 | BJ202: 0 | BK202: 0.02 | BL202: 0 | BM202: 0 | BN202: 0 | BO202: 0 | BP202: 0 | BQ202: 0 | BR202: 0 | BS202: 0.01 | BT202: 0 | BU202: 0 | BV202: 0.06 | BW202: 0 | BX202: 0 | BY202: 0 | BZ202: 0 | CA202: 0 | CB202: 7.82 | CE202: 0 | CG202: 0 | CH202: 0 | CI202: 0 | CJ202: 665 | CK202: 256.2 | CL202: 460.6 | CM202: 5.32 | CN202: 5.32 | CO202: 5.32 | CP202: 0 | CQ202: 0
A203: ="-" -> - | B203: Хлеб ржаной | C203: 20 | D203: 1.32 | E203: 0 | F203: 0.24 | G203: 0.24 | H203: 8.34 | I203: 38.676 | J203: 0.04 | K203: 0 | L203: 0 | M203: 0 | N203: 0.24 | O203: 6.44 | P203: 1.66 | Q203: 0 | R203: 0 | S203: 0.2 | T203: 0.5 | U203: 122 | V203: 49 | W203: 7 | X203: 9.4 | Y203: 31.6 | Z203: 0.78 | AA203: 0 | AB203: 1 | AC203: 0.2 | AD203: 0.28 | AE203: 0.04 | AF203: 0.02 | AG203: 0.14 | AH203: 0.4 | AI203: 0 | AJ203: 0 | AK203: 64.4 | AL203: 49.6 | AM203: 85.4 | AN203: 44.6 | AO203: 18.6 | AP203: 39.6 | AQ203: 16 | AR203: 74.2 | AS203: 59.4 | AT203: 58.2 | AU203: 92.8 | AV203: 24.8 | AW203: 62 | AX203: 311.8 | AY203: 0 | AZ203: 105.2 | BA203: 58.2 | BB203: 36 | BC203: 26 | BD203: 0 | BE203: 0 | BF203: 0 | BG203: 0 | BH203: 0 | BI203: 0 | BJ203: 0 | BK203: 0.03 | BL203: 0 | BM203: 0 | BN203: 0 | BO203: 0 | BP203: 0 | BQ203: 0 | BR203: 0 | BS203: 0.02 | BT203: 0 | BU203: 0 | BV203: 0.1 | BW203: 0.02 | BX203: 0 | BY203: 0 | BZ203: 0 | CA203: 0 | CB203: 9.4 | CE203: 0.17 | CG203: 1.5 | CH203: 1.5 | CI203: 1.5 | CJ203: 285 | CK203: 109.8 | CL203: 197.4 | CM203: 2.85 | CN203: 2.37 | CO203: 2.61 | CP203: 0 | CQ203: 0
A204: ="27/10" -> 27/10 | B204: Чай (вариант 2) | C204: 180 | D204: 0.18 | E204: 0 | F204: 0.04 | G204: 0.04 | H204: 4.53 | I204: 18.157086 | J204: 0 | K204: 0 | L204: 0 | M204: 0 | N204: 4.44 | O204: 0 | P204: 0.09 | Q204: 0 | R204: 0 | S204: 0 | T204: 0.05 | U204: 0.04 | V204: 0.13 | W204: 0.13 | X204: 0 | Y204: 0 | Z204: 0.01 | AA204: 0 | AB204: 0 | AC204: 0 | AD204: 0 | AE204: 0 | AF204: 0 | AG204: 0 | AH204: 0 | AI204: 0 | AJ204: 0 | AK204: 0 | AL204: 0 | AM204: 0 | AN204: 0 | AO204: 0 | AP204: 0 | AQ204: 0 | AR204: 0 | AS204: 0 | AT204: 0 | AU204: 0 | AV204: 0 | AW204: 0 | AX204: 0 | AY204: 0 | AZ204: 0 | BA204: 0 | BB204: 0 | BC204: 0 | BD204: 0 | BE204: 0 | BF204: 0 | BG204: 0 | BH204: 0 | BI204: 0 | BJ204: 0 | BK204: 0 | BL204: 0 | BM204: 0 | BN204: 0 | BO204: 0 | BP204: 0 | BQ204: 0 | BR204: 0 | BS204: 0 | BT204: 0 | BU204: 0 | BV204: 0 | BW204: 0 | BX204: 0 | BY204: 0 | BZ204: 0 | CA204: 0 | CB204: 180.08 | CE204: 0 | CG204: 3.07 | CH204: 3.07 | CI204: 3.07 | CJ204: 331.88 | CK204: 130.5 | CL204: 231.19 | CM204: 33.01 | CN204: 19.51 | CO204: 26.26 | CP204: 4.5 | CQ204: 0
A205: ="10/150" -> 10/150 | B205: Сырники из творога | C205: 100 | D205: 20.83 | E205: 19.29 | F205: 5.49 | G205: 3.97 | H205: 16.41 | I205: 200.26511 | J205: 1.37 | K205: 2.6 | L205: 0 | M205: 0 | N205: 6.91 | O205: 9.03 | P205: 0.47 | Q205: 0 | R205: 0 | S205: 1.11 | T205: 1.45 | U205: 125.93 | V205: 119.49 | W205: 105.52 | X205: 22.26 | Y205: 163.64 | Z205: 0.51 | AA205: 13.3 | AB205: 3.6 | AC205: 14.68 | AD205: 2.01 | AE205: 0.05 | AF205: 0.21 | AG205: 0.49 | AH205: 4.19 | AI205: 0.23 | AJ205: 0 | AK205: 938.43 | AL205: 934.88 | AM205: 1730.03 | AN205: 1307.31 | AO205: 446.86 | AP205: 748.54 | AQ205: 174.95 | AR205: 886.43 | AS205: 447.07 | AT205: 775.66 | AU205: 946.92 | AV205: 518.32 | AW205: 284.66 | AX205: 3298.51 | AY205: 0.53 | AZ205: 1896.81 | BA205: 802.86 | BB205: 846.49 | BC205: 123.23 | BD205: 0 | BE205: 0 | BF205: 0 | BG205: 0 | BH205: 0 | BI205: 0 | BJ205: 0 | BK205: 0.25 | BL205: 0 | BM205: 0.16 | BN205: 0.01 | BO205: 0.03 | BP205: 0 | BQ205: 0 | BR205: 0 | BS205: 0.91 | BT205: 0 | BU205: 0 | BV205: 2.31 | BW205: 0 | BX205: 0 | BY205: 0 | BZ205: 0 | CA205: 0 | CB205: 72.56 | CE205: 13.9 | CG205: 10.99 | CH205: 6.05 | CI205: 8.52 | CJ205: 608.4 | CK205: 426.4 | CL205: 517.4 | CM205: 14.25 | CN205: 10.4 | CO205: 12.47 | CP205: 4 | CQ205: 0.24
A206: ="7/11" -> 7/11 | B206: Соус сметанный | C206: 30 | D206: 0.36 | E206: 0.01 | F206: 2.19 | G206: 0.02 | H206: 1.32 | I206: 26.5134855 | J206: 1.38 | K206: 0.03 | L206: 0 | M206: 0 | N206: 0.3 | O206: 0.97 | P206: 0.05 | Q206: 0 | R206: 0 | S206: 0.06 | T206: 0.31 | U206: 95.21 | V206: 10.89 | W206: 7.87 | X206: 0.92 | Y206: 6.04 | Z206: 0.04 | AA206: 13.5 | AB206: 6.75 | AC206: 14.78 | AD206: 0.06 | AE206: 0 | AF206: 0.01 | AG206: 0.02 | AH206: 0.09 | AI206: 0.01 | AJ206: 0 | AK206: 83.61 | AL206: 64.4 | AM206: 134.75 | AN206: 127.23 | AO206: 40.35 | AP206: 68.4 | AQ206: 18.86 | AR206: 66.99 | AS206: 90.13 | AT206: 85.86 | AU206: 145.78 | AV206: 56.23 | AW206: 77.97 | AX206: 290.65 | AY206: 0 | AZ206: 78.1 | BA206: 72.97 | BB206: 55.67 | BC206: 24.84 | BD206: 0.04 | BE206: 0.02 | BF206: 0.01 | BG206: 0.02 | BH206: 0.03 | BI206: 0.12 | BJ206: 0 | BK206: 0.33 | BL206: 0 | BM206: 0.1 | BN206: 0 | BO206: 0 | BP206: 0 | BQ206: 0.02 | BR206: 0.03 | BS206: 0.27 | BT206: 0 | BU206: 0 | BV206: 0.02 | BW206: 0.01 | BX206: 0 | BY206: 0 | BZ206: 0 | CA206: 0 | CB206: 28.9 | CE206: 14.63 | CG206: 10.66 | CH206: 5.81 | CI206: 8.24 | CJ206: 93.8 | CK206: 37.13 | CL206: 65.46 | CM206: 5.35 | CN206: 3.12 | CO206: 4.25 | CP206: 0 | CQ206: 0.24
A207: ="-" -> - | B207: Фрукты | C207: 100 | D207: 0.4 | E207: 0 | F207: 0.4 | G207: 0.4 | H207: 11.6 | I207: 48.68 | J207: 0.1 | K207: 0 | L207: 0 | M207: 0 | N207: 9 | O207: 0.8 | P207: 1.8 | Q207: 0 | R207: 0 | S207: 0.8 | T207: 0.5 | U207: 26 | V207: 278 | W207: 16 | X207: 9 | Y207: 11 | Z207: 2.2 | AA207: 0 | AB207: 30 | AC207: 5 | AD207: 0.2 | AE207: 0.03 | AF207: 0.02 | AG207: 0.3 | AH207: 0.4 | AI207: 10 | AJ207: 0 | AK207: 12 | AL207: 13 | AM207: 19 | AN207: 18 | AO207: 3 | AP207: 11 | AQ207: 3 | AR207: 9 | AS207: 17 | AT207: 10 | AU207: 78 | AV207: 7 | AW207: 14 | AX207: 42 | AY207: 0 | AZ207: 13 | BA207: 16 | BB207: 6 | BC207: 5 | BD207: 0 | BE207: 0 | BF207: 0 | BG207: 0 | BH207: 0 | BI207: 0 | BJ207: 0 | BK207: 0 | BL207: 0 | BM207: 0 | BN207: 0 | BO207: 0 | BP207: 0 | BQ207: 0 | BR207: 0 | BS207: 0 | BT207: 0 | BU207: 0 | BV207: 0 | BW207: 0 | BX207: 0 | BY207: 0 | BZ207: 0 | CA207: 0 | CB207: 86.3 | CE207: 5 | CG207: 2 | CH207: 2 | CI207: 2 | CJ207: 150 | CK207: 150 | CL207: 150 | CM207: 46.8 | CN207: 46.8 | CO207: 46.8 | CP207: 0 | CQ207: 0
B208: Итого за 'Ужин' | C208: =SUM(C202:C207) -> 450 | D208: 24.41 | E208: 19.3 | F208: 8.49 | G208: 4.8 | H208: 51.57 | I208: 377.07 | J208: 2.89 | K208: 2.63 | L208: 0 | M208: 0 | N208: 21.11 | O208: 26.36 | P208: 4.11 | Q208: 0 | R208: 0 | S208: 2.17 | T208: 3.17 | U208: 369.19 | V208: 457.51 | W208: 136.52 | X208: 41.58 | Y208: 212.28 | Z208: 3.54 | AA208: 26.8 | AB208: 41.35 | AC208: 34.66 | AD208: 2.55 | AE208: 0.12 | AF208: 0.26 | AG208: 0.95 | AH208: 5.08 | AI208: 10.25 | AJ208: 0 | AK208: 1162.3 | AL208: 1128.34 | AM208: 2070.97 | AN208: 1530.9 | AO208: 528.82 | AP208: 907.56 | AQ208: 227.95 | AR208: 1109 | AS208: 658.49 | AT208: 992.36 | AU208: 1315.18 | AV208: 633.49 | AW208: 486.65 | AX208: 4344.55 | AY208: 0.53 | AZ208: 2223.96 | BA208: 1006.93 | BB208: 981.91 | BC208: 209.01 | BD208: 0.04 | BE208: 0.02 | BF208: 0.01 | BG208: 0.02 | BH208: 0.03 | BI208: 0.12 | BJ208: 0 | BK208: 0.63 | BL208: 0 | BM208: 0.26 | BN208: 0.02 | BO208: 0.03 | BP208: 0 | BQ208: 0.02 | BR208: 0.04 | BS208: 1.22 | BT208: 0 | BU208: 0 | BV208: 2.48 | BW208: 0.03 | BX208: 0 | BY208: 0 | BZ208: 0 | CA208: 0 | CB208: 385.06 | CD208: =$I$208/#REF!*100 ->  | CE208: 33.69 | CG208: 28.22 | CH208: 18.43 | CI208: 23.33 | CJ208: 2134.07 | CK208: 1110.03 | CL208: 1622.05 | CM208: 107.58 | CN208: 87.52 | CO208: 97.71 | CP208: 8.5 | CQ208: 0.48
B209: Итого за день | C209: =C188+C191+C200+C208 -> 1645 | D209: 57.98 | E209: 36.94 | F209: 37.43 | G209: 17.04 | H209: 238.65 | I209: 1497.19 | J209: 14.89 | K209: 8.46 | L209: 0 | M209: 0 | N209: 81.96 | O209: 138.71 | P209: 17.98 | Q209: 0 | R209: 0 | S209: 4.08 | T209: 11.07 | U209: 1511.42 | V209: 1787.64 | W209: 332.27 | X209: 246.34 | Y209: 740.66 | Z209: 14.73 | AA209: 70.62 | AB209: 1046.2 | AC209: 279.21 | AD209: 9.52 | AE209: 0.67 | AF209: 0.69 | AG209: 8 | AH209: 19.69 | AI209: 39.34 | AJ209: 0.2 | AK209: 2770.23 | AL209: 2459.76 | AM209: 4466.34 | AN209: 3731.68 | AO209: 1200.57 | AP209: 2050.9 | AQ209: 620.23 | AR209: 2597.58 | AS209: 2067.23 | AT209: 2694.53 | AU209: 3472.47 | AV209: 1471.66 | AW209: 1753.67 | AX209: 9991.39 | AY209: 143.24 | AZ209: 3753.43 | BA209: 2248.1 | BB209: 1888.48 | BC209: 737.72 | BD209: 0.28 | BE209: 0.13 | BF209: 0.07 | BG209: 0.16 | BH209: 0.18 | BI209: 0.85 | BJ209: 0 | BK209: 3.64 | BL209: 0 | BM209: 1.29 | BN209: 0.05 | BO209: 0.08 | BP209: 0 | BQ209: 0.16 | BR209: 0.27 | BS209: 5.88 | BT209: 0.01 | BU209: 0 | BV209: 8.49 | BW209: 0.12 | BX209: 0 | BY209: 0 | BZ209: 0 | CA209: 0 | CB209: 1428.17 | CE209: 244.98 | CG209: 160.34 | CH209: 97.83 | CI209: 129.08 | CJ209: 15138.93 | CK209: 7894.3 | CL209: 11516.62 | CM209: 338.58 | CN209: 229.29 | CO209: 284.09 | CP209: 41.28 | CQ209: 2.2
B211: 2 ДЕНЬ
B212: Завтрак
... 132 more rows

Sheet Dop
A1: Дата составления | B1: 2024-01-08
A2: Дата печати | B2: 2023-12-21T10:24:03
A3: Группа | B3: Сад
A4: Физ.Норма | B4: СанПиН 2.3/2.4.3590-20 3-7 лет
B5: 1
B6: 20.01.2024
